Ref No,Fund Type,Dept,Cost Centre Description    ,Description    ,Creditor Name    ,GL Code Net Amount,Payment date        
2,Revenue,CAHD,18-25 Year Olds,Permanent Residential,1 St Georges House,13021.00, 15-Jan-2019
3,Revenue,CAHD,Supporting People Programme,Grants to Voluntary Bodies,1625 Independent People,9811.67, 04-Jan-2019
4,Revenue,CAHD,CSC - Care Leavers Independent Living,Independent Living,16Pluscare Support Solutions,7120.08, 10-Jan-2019
5,Revenue,CAHD,CSC - Asylum Seekers - Unaccompanied,Independent Living,16Pluscare Support Solutions,7120.08, 10-Jan-2019
6,Revenue,CAHD,CSC - Care Leavers Support Costs,Leaving Care,16Pluscare Support Solutions,829.30, 18-Jan-2019
7,Revenue,CAHD,CSC - Care Leavers Support Costs,Leaving Care,16Pluscare Support Solutions,522.40, 18-Jan-2019
8,Revenue,CAHD,Bed Purchasing - North,Permanent Residential,1St Floor Lingfield House,2677.24, 15-Jan-2019
9,Revenue,CAHD,Bed Purchasing - North,Permanent Nursing,1St Floor Lingfield House,2215.16, 15-Jan-2019
10,Revenue,CAHD,Homecare - Central,Day Care / Social Activities,3 Trees Community Support Ltd,385.56, 11-Jan-2019
11,Revenue,CAHD,Homecare - Central,Other Small Contracts,3 Trees Community Support Ltd,2910.88, 11-Jan-2019
12,Revenue,CAHD,Homecare - Central,Supported Living,3 Trees Community Support Ltd,5451.01, 11-Jan-2019
13,Revenue,CAHD,Home Care - Elderly - North,Day Care / Social Activities,3 Trees Community Support Ltd,656.88, 11-Jan-2019
14,Revenue,CAHD,Homecare - Central,Day Care / Social Activities,3 Trees Community Support Ltd,190.40, 11-Jan-2019
15,Revenue,CAHD,Homecare - Central,Other Small Contracts,3 Trees Community Support Ltd,2270.26, 11-Jan-2019
16,Revenue,CAHD,Homecare - Central,Supported Living,3 Trees Community Support Ltd,5122.92, 11-Jan-2019
17,Revenue,CAHD,Home Care - Elderly - North,Day Care / Social Activities,3 Trees Community Support Ltd,247.52, 11-Jan-2019
18,Revenue,CAHD,Homecare - Central,Day Care / Social Activities,3 Trees Community Support Ltd,380.80, 11-Jan-2019
19,Revenue,CAHD,Homecare - Central,Other Small Contracts,3 Trees Community Support Ltd,3104.62, 11-Jan-2019
20,Revenue,CAHD,Homecare - Central,Supported Living,3 Trees Community Support Ltd,5462.24, 11-Jan-2019
21,Revenue,CAHD,Home Care - Elderly - North,Day Care / Social Activities,3 Trees Community Support Ltd,656.88, 11-Jan-2019
22,Revenue,CAHD,18-25 Year Olds,Permanent Residential,5Th Floor Harlech Court,14897.40, 15-Jan-2019
23,Revenue,CAHD,18-25 Year Olds,Permanent Residential,5Th Floor Harlech Court,17792.32, 15-Jan-2019
24,Revenue,CAHD,Bed Purchasing - North,Permanent Residential,5Th Floor Harlech Court,13492.04, 15-Jan-2019
25,Revenue,CAHD,18-25 Year Olds,Permanent Residential,5Th Floor Harlech Court,13505.44, 15-Jan-2019
26,Revenue,CAHD,Bed Purchasing - North,Permanent Residential,5Th Floor Harlech Court,14372.24, 15-Jan-2019
27,Revenue,CAHD,Jointly Funded H&SC Packages,Permanent Residential,5Th Floor Harlech Court,3556.48, 15-Jan-2019
28,Revenue,CAHD,Bed Purchasing - South,Permanent Residential,5Th Floor Harlech Court,16276.48, 15-Jan-2019
29,Revenue,CAHD,Bed Purchasing - South,Permanent Residential,5Th Floor Harlech Court,10175.32, 15-Jan-2019
30,Revenue,CAHD,Bed purchasing - S28A Under 65 - South,Permanent Residential,5Th Floor Harlech Court,10649.12, 15-Jan-2019
31,Revenue,CAHD,Bed Purchasing - South,Permanent Residential,5Th Floor Harlech Court,11168.36, 15-Jan-2019
32,Revenue,CAHD,Bed Purchasing - North,Permanent Residential,5Th Floor Harlech Court,12205.64, 15-Jan-2019
33,Revenue,CAHD,Bed Purchasing - North,Permanent Residential,5Th Floor Harlech Court,10290.28, 15-Jan-2019
34,Revenue,CAHD,Bed Purchasing - North,Permanent Residential,5Th Floor Harlech Court,8858.52, 15-Jan-2019
35,Revenue,CAHD,Alexandra Way,Mechanical & Electrical Maintenance,A E Horder (Contracting) Limited,449.76, 04-Jan-2019
36,Revenue,CAHD,CSC - Section 17 0-25,Preventative Assistance,A+bility Ltd,582.00, 25-Jan-2019
37,Revenue,CAHD,CSC - Section 17 0-25,Preventative Assistance,A+bility Ltd,829.00, 15-Jan-2019
38,Revenue,CAHD,Bed Purchasing - North,Permanent Nursing,Abbots Leigh Nursing,3747.36, 15-Jan-2019
39,Revenue,CAHD,Early Years Development,Training Expenses,ABC Does Limited,2086.00, 28-Jan-2019
40,Revenue,CAHD,CSC - Vinney Green Secure Unit,Educational Supplies & Equipment,Absolute Bounce,1100.00, 07-Jan-2019
41,Revenue,CAHD,Section 117 Placements MH Younger,Permanent Residential,Acorn Care Providers,6453.32, 15-Jan-2019
42,Revenue,CAHD,MH Purchasing - Younger,Permanent Residential,Acorn Care Providers,6000.00, 15-Jan-2019
43,Revenue,CAHD,Training - Adult Services,Training Expenses,Acorn Health & Safety Limited,465.00, 02-Jan-2019
44,Revenue,CAHD,Training - Adult Services,Training Expenses,Acorn Health & Safety Limited,462.50, 02-Jan-2019
45,Revenue,CAHD,Training - Adult Services,Training Expenses,Acorn Health & Safety Limited,465.00, 10-Jan-2019
46,Revenue,CAHD,Training - Adult Services,Training Expenses,Acorn Health & Safety Limited,432.25, 10-Jan-2019
47,Revenue,CAHD,Training - Adult Services,Training Expenses,Acorn Health & Safety Limited,418.00, 17-Jan-2019
48,Revenue,CAHD,Training - Adult Services,Training Expenses,Acorn Health & Safety Limited,422.75, 30-Jan-2019
49,Revenue,CAHD,CSC - Agency Fostering,Foster Parent Allowances,Action for Children,3352.34, 08-Jan-2019
50,Revenue,CAHD,CSC - Agency Fostering,Foster Parent Allowances,Action for Children,6975.00, 10-Jan-2019
51,Revenue,CAHD,CSC - Agency Fostering,Foster Parent Allowances,Action for Children,3660.17, 07-Jan-2019
52,Revenue,CAHD,CSC - Agency Fostering,Foster Parent Allowances,Action for Children,3660.17, 07-Jan-2019
53,Revenue,CAHD,CSC - Agency Fostering,Foster Parent Allowances,Action for Children,3852.68, 07-Jan-2019
54,Revenue,CAHD,CSC - Agency Fostering,Foster Parent Allowances,Action for Children,3352.34, 31-Jan-2019
55,Revenue,CAHD,CSC - Agency Fostering,Foster Parent Allowances,Action for Children,6975.00, 31-Jan-2019
56,Revenue,CAHD,CSC - Agency Fostering,Foster Parent Allowances,Action for Children,3660.17, 31-Jan-2019
57,Revenue,CAHD,CSC - Agency Fostering,Foster Parent Allowances,Action for Children,3660.17, 31-Jan-2019
58,Revenue,CAHD,CSC - Agency Fostering,Foster Parent Allowances,Action for Children,3852.68, 31-Jan-2019
59,Revenue,CAHD,Home Care - Elderly - North,Other Small Contracts,Advantedge Commercial Finance Limited,781.20, 24-Jan-2019
60,Revenue,CAHD,Home Care - Elderly - South,Other Small Contracts,Advantedge Commercial Finance Limited,520.80, 24-Jan-2019
61,Revenue,CAHD,Home Care - Elderly - South,Other Small Contracts,Advantedge Commercial Finance Limited,613.80, 25-Jan-2019
62,Revenue,CAHD,Home Care - Elderly - South,Other Small Contracts,Advantedge Commercial Finance Limited,520.80, 25-Jan-2019
63,Revenue,CAHD,Home Care - Elderly - North,Other Small Contracts,Advantedge Commercial Finance Limited,781.20, 28-Jan-2019
64,Revenue,CAHD,Homecare - Central,Day Care / Social Activities,Age Concern,500.04, 15-Jan-2019
65,Revenue,CAHD,Homecare - Central,Other Small Contracts,Agincare UK Limited,725.35, 11-Jan-2019
66,Revenue,CAHD,Home Care - Elderly - South,Other Small Contracts,Agincare UK Limited,809.90, 11-Jan-2019
67,Revenue,CAHD,Home Care - Elderly - North,Other Small Contracts,Agincare UK Limited,502.85, 11-Jan-2019
68,Revenue,CAHD,Homecare - Central,Other Small Contracts,Agincare UK Limited,680.85, 11-Jan-2019
69,Revenue,CAHD,Home Care - Elderly - South,Other Small Contracts,Agincare UK Limited,783.20, 11-Jan-2019
70,Revenue,CAHD,Home Care - Elderly - North,Other Small Contracts,Agincare UK Limited,378.25, 11-Jan-2019
71,Revenue,CAHD,Homecare - Central,Other Small Contracts,Agincare UK Limited,529.55, 11-Jan-2019
72,Revenue,CAHD,Home Care - Elderly - South,Other Small Contracts,Agincare UK Limited,551.80, 11-Jan-2019
73,Revenue,CAHD,Home Care - Elderly - North,Other Small Contracts,Agincare UK Limited,44.50, 11-Jan-2019
74,Revenue,CAHD,Homecare - Central,Other Small Contracts,Agincare UK Limited,600.75, 23-Jan-2019
75,Revenue,CAHD,Home Care - Elderly - South,Other Small Contracts,Agincare UK Limited,685.30, 23-Jan-2019
76,Revenue,CAHD,Home Care - Elderly - North,Other Small Contracts,Agincare UK Limited,80.10, 23-Jan-2019
77,Revenue,CAHD,Extra Care Housing,Private & Voluntary Home Care,Agincare UK Limited,27590.00, 04-Jan-2019
78,Revenue,CAHD,Extra Care Housing,Private & Voluntary Home Care,Agincare UK Limited,894.08, 09-Jan-2019
79,Revenue,CAHD,Extra Care Housing,Private & Voluntary Home Care,Agincare UK Limited,1941.44, 11-Jan-2019
80,Revenue,CAHD,Extra Care Housing,Private & Voluntary Home Care,Agincare UK Limited,3311.08, 11-Jan-2019
81,Revenue,CAHD,Extra Care Housing,Private & Voluntary Home Care,Agincare UK Limited,3581.46, 11-Jan-2019
82,Revenue,CAHD,Extra Care Housing,Private & Voluntary Home Care,Agincare UK Limited,2074.41, 11-Jan-2019
83,Revenue,CAHD,Extra Care Housing,Private & Voluntary Home Care,Agincare UK Limited,4295.09, 11-Jan-2019
84,Revenue,CAHD,Extra Care Housing,Private & Voluntary Home Care,Agincare UK Limited,3918.33, 11-Jan-2019
85,Revenue,CAHD,Extra Care Housing,Private & Voluntary Home Care,Agincare UK Limited,4516.72, 11-Jan-2019
86,Revenue,CAHD,Extra Care Housing,Private & Voluntary Home Care,Agincare UK Limited,6055.08, 18-Jan-2019
87,Revenue,CAHD,Extra Care Housing,Private & Voluntary Home Care,Agincare UK Limited,5546.29, 18-Jan-2019
88,Revenue,CAHD,Extra Care Housing,Private & Voluntary Home Care,Agincare UK Limited,5667.19, 18-Jan-2019
89,Revenue,CAHD,Extra Care Housing,Private & Voluntary Home Care,Agincare UK Limited,6397.63, 18-Jan-2019
90,Revenue,CAHD,Extra Care Housing,Private & Voluntary Home Care,Agincare UK Limited,5329.68, 18-Jan-2019
91,Revenue,CAHD,Extra Care Housing,Private & Voluntary Home Care,Agincare UK Limited,926.90, 14-Jan-2019
92,Revenue,CAHD,Prison Assessments & Costs,Other Supplies & Services,Agincare UK Limited,2902.50, 24-Jan-2019
93,Revenue,CAHD,18-25 Year Olds,Permanent Residential,Alexander House,69251.40, 15-Jan-2019
94,Revenue,CAHD,18-25 Year Olds,Permanent Residential,Alexander House,13850.28, 15-Jan-2019
95,Revenue,CAHD,Home Care - Elderly - South,Other Small Contracts,AliMo Care Ltd,530.12, 04-Jan-2019
96,Revenue,CAHD,Home Care - Elderly - North,Other Small Contracts,AliMo Care Ltd,159.95, 04-Jan-2019
97,Revenue,CAHD,Home Care - Elderly - South,Other Small Contracts,AliMo Care Ltd,525.55, 11-Jan-2019
98,Revenue,CAHD,Home Care - Elderly - North,Other Small Contracts,AliMo Care Ltd,146.24, 11-Jan-2019
99,Revenue,CAHD,Home Care - Elderly - South,Other Small Contracts,AliMo Care Ltd,498.13, 18-Jan-2019
100,Revenue,CAHD,Home Care - Elderly - North,Other Small Contracts,AliMo Care Ltd,150.81, 18-Jan-2019
101,Revenue,CAHD,Home Care - Elderly - South,Other Small Contracts,AliMo Care Ltd,484.42, 23-Jan-2019
102,Revenue,CAHD,Home Care - Elderly - North,Other Small Contracts,AliMo Care Ltd,164.52, 23-Jan-2019
103,Revenue,CAHD,Bed Purchasing - North,Permanent Nursing,Allambie Court,2266.04, 15-Jan-2019
104,Revenue,CAHD,Bed Purchasing - North,Permanent Nursing,Allambie Court,2266.04, 15-Jan-2019
105,Revenue,CAHD,Bed Purchasing - North,Permanent Nursing,Amerind Grove Nursing Home,2642.88, 15-Jan-2019
106,Revenue,CAHD,A & CL - Flexible Learning 18/19,Computer Equipment - Purchase,Amey Computer Services,525.00, 09-Jan-2019
107,Revenue,CAHD,CSC - Agency Fostering,Foster Parent Allowances,Amicus Foster Care Ltd,5070.67, 07-Jan-2019
108,Revenue,CAHD,CSC - Agency Fostering,Foster Parent Allowances,Amicus Foster Care Ltd,4879.00, 03-Jan-2019
109,Revenue,CAHD,CSC - Agency Fostering,Foster Parent Allowances,Amicus Foster Care Ltd,576.00, 07-Jan-2019
110,Revenue,CAHD,CSC - Section 17 0-25,Preventative Assistance,Angel Care Support Limited,2772.00, 21-Jan-2019
111,Revenue,CAHD,CSC - Section 17 0-25,Preventative Assistance,Angel Care Support Limited,504.00, 21-Jan-2019
112,Revenue,CAHD,Early Years Inclusion Fund,Other Public Bodies,Apple Tree Pre-School,1800.00, 11-Jan-2019
113,Revenue,CAHD,Jointly Funded H&SC Packages,Permanent Residential,Ash View House,1085.36, 15-Jan-2019
114,Revenue,CAHD,Bed Purchasing - South,Permanent Residential,Ash View House,5293.96, 15-Jan-2019
115,Revenue,CAHD,S117 Placements PCT,Permanent Residential,Ash View House,7379.20, 15-Jan-2019
116,Revenue,CAHD,18-25 Year Olds,Permanent Residential,Ash View House,6933.12, 15-Jan-2019
117,Revenue,CAHD,Section 117 Placements MH Younger,Permanent Residential,Ash View House,4808.72, 15-Jan-2019
118,Revenue,CAHD,Jointly Funded H&SC Packages,Permanent Residential,Ash View House,2060.92, 15-Jan-2019
119,Revenue,CAHD,Bed purchasing - Elderly S117 - South,Permanent Residential,Ash View House,6535.92, 15-Jan-2019
120,Revenue,CAHD,18-25 Year Olds,Permanent Residential,Ash View House,6460.48, 15-Jan-2019
121,Revenue,CAHD,CSC - Legal Fees,Legal Fees,Asha Groves,700.00, 08-Jan-2019
122,Revenue,CAHD,Drug and Alcohol Programme,Electricity,Ashville Asset Management Limited,491.27, 29-Jan-2019
123,Revenue,CAHD,Bed Purchasing - North,Permanent Residential,Aspects 2 Limited,7062.40, 15-Jan-2019
124,Revenue,CAHD,Home Care - Elderly - South,Adults - Family Support,Ategi Limited,620.64, 16-Jan-2019
125,Revenue,CAHD,Home Care - Elderly - South,Adults - Family Support,Ategi Limited,509.31, 16-Jan-2019
126,Revenue,CAHD,Home Care - Elderly - South,Adults - Family Support,Ategi Limited,863.96, 08-Jan-2019
127,Revenue,CAHD,Bed Purchasing - South,Adults - Family Support,Ategi Limited,13031.12, 09-Jan-2019
128,Revenue,CAHD,Shared Lives,Other Supplies & Services,Ategi Limited,10879.25, 07-Jan-2019
129,Revenue,CAHD,18-25 Year Olds,Permanent Residential,Aurora Care & Education,16666.09, 03-Jan-2019
130,Revenue,CAHD,Independent Special Placements - Post 16,Other Private Contractors,Aurora Care & Education,62497.60, 18-Jan-2019
131,Revenue,CAHD,Independent Special Placements - Pre 16,Other Private Contractors,Aurora Hedgeway School,27638.33, 04-Jan-2019
132,Revenue,CAHD,Independent Special Placements - Pre 16,Other Private Contractors,Aurora Hedgeway School,27638.33, 08-Jan-2019
133,Revenue,CAHD,Independent Special Placements - Pre 16,Other Private Contractors,Aurora Hedgeway School,17258.67, 02-Jan-2019
134,Revenue,CAHD,Independent Special Placements - Pre 16,Other Private Contractors,Aurora Hedgeway School,15154.33, 10-Jan-2019
135,Revenue,CAHD,Independent Special Placements - Pre 16,Other Private Contractors,Aurora Hedgeway School,15154.33, 10-Jan-2019
136,Revenue,CAHD,Independent Special Placements - Pre 16,Other Private Contractors,Aurora Hedgeway School,15154.33, 10-Jan-2019
137,Revenue,CAHD,Bed Purchasing - South,Permanent Residential,Autism Specialised Care Homes,6354.36, 15-Jan-2019
138,Revenue,CAHD,Bed Purchasing - North,Permanent Residential,Avery Homes Downend Limited,4200.00, 15-Jan-2019
139,Revenue,CAHD,CSC - LAC - Counselling & Therapy,Other Supplies & Services,Avon & Wiltshire Mental Health,15000.00, 23-Jan-2019
140,Revenue,CAHD,Younger Adult Mental Health,Health Services (Third Party Payments),Avon & Wiltshire Mental Health,1693.33, 07-Jan-2019
141,Revenue,CAHD,Leadership and Business Support,Other Supplies & Services,Avon Wildlife Trust,600.00, 03-Jan-2019
142,Revenue,CAHD,Early Years High Needs Support,Other Private Contractors,Baker Street Nursery & Pre-School,910.13, 29-Jan-2019
143,Revenue,CAHD,Purchase of RAC places,Other L.A.'s - General,Bath & North East Somerset Council,681.50, 08-Jan-2019
144,Revenue,CAHD,Purchase of RAC places,Other L.A.'s - General,Bath & North East Somerset Council,961.94, 08-Jan-2019
145,Revenue,CAHD,Pensions - Non DSG,Annual Pension,Bath & North East Somerset Council,108667.42, 04-Jan-2019
146,Revenue,CAHD,Pathway 3 - (Complex Beds),Permanent Nursing,Beaufort Care Ltd,5441.00, 17-Jan-2019
147,Revenue,CAHD,Pathway 3 - (Complex Beds),Permanent Nursing,Beaufort Care Ltd,5441.00, 22-Jan-2019
148,Revenue,CAHD,South Glos Users in South Glos Homes,Permanent Nursing,Beaufort Grange Care Home,1581.60, 15-Jan-2019
149,Revenue,CAHD,South Glos Users in South Glos Homes,Permanent Nursing,Beaufort Grange Care Home,632.64, 15-Jan-2019
150,Revenue,CAHD,South Glos Users in South Glos Homes,Permanent Nursing,Beaufort Grange Care Home,632.64, 15-Jan-2019
151,Revenue,CAHD,South Glos Users in South Glos Homes,Permanent Nursing,Beaufort Grange Care Home,632.64, 15-Jan-2019
152,Revenue,CAHD,South Glos Users in South Glos Homes,Permanent Nursing,Beaufort Grange Care Home,2598.34, 15-Jan-2019
153,Revenue,CAHD,South Glos Users in South Glos Homes,Permanent Nursing,Beaufort Grange Care Home,632.64, 15-Jan-2019
154,Revenue,CAHD,South Glos Users in South Glos Homes,Permanent Nursing,Beaufort Grange Care Home,632.64, 15-Jan-2019
155,Revenue,CAHD,South Glos Users in South Glos Homes,Permanent Nursing,Beaufort Grange Care Home,632.64, 15-Jan-2019
156,Revenue,CAHD,South Glos Users in South Glos Homes,Permanent Nursing,Beaufort Grange Care Home,632.64, 15-Jan-2019
157,Revenue,CAHD,South Glos Users in South Glos Homes,Permanent Nursing,Beaufort Grange Care Home,632.64, 15-Jan-2019
158,Revenue,CAHD,South Glos Users in South Glos Homes,Permanent Nursing,Beaufort Grange Care Home,632.64, 15-Jan-2019
159,Revenue,CAHD,South Glos Users in South Glos Homes,Permanent Nursing,Beaufort Grange Care Home,632.64, 15-Jan-2019
160,Revenue,CAHD,Bed Purchasing - Elderly S117- North,Permanent Nursing,Beaufort Grange Care Home,4762.72, 15-Jan-2019
161,Revenue,CAHD,South Glos Users in South Glos Homes,Permanent Nursing,Beaufort Grange Care Home,632.64, 15-Jan-2019
162,Revenue,CAHD,South Glos Users in South Glos Homes,Permanent Nursing,Beaufort Grange Care Home,3886.22, 15-Jan-2019
163,Revenue,CAHD,South Glos Users in South Glos Homes,Permanent Nursing,Beaufort Grange Care Home,632.64, 15-Jan-2019
164,Revenue,CAHD,South Glos Users in South Glos Homes,Permanent Nursing,Beaufort Grange Care Home,632.64, 15-Jan-2019
165,Revenue,CAHD,South Glos Users in South Glos Homes,Permanent Nursing,Beaufort Grange Care Home,632.64, 15-Jan-2019
166,Revenue,CAHD,South Glos Users in South Glos Homes,Permanent Nursing,Beaufort Grange Care Home,632.64, 15-Jan-2019
167,Revenue,CAHD,South Glos Users in South Glos Homes,Permanent Nursing,Beaufort Grange Care Home,1671.98, 15-Jan-2019
168,Revenue,CAHD,South Glos Users in South Glos Homes,Permanent Nursing,Beaufort Grange Care Home,632.64, 15-Jan-2019
169,Revenue,CAHD,South Glos Users in South Glos Homes,Permanent Nursing,Beaufort Grange Care Home,3773.25, 15-Jan-2019
170,Revenue,CAHD,South Glos Users in South Glos Homes,Permanent Nursing,Beaufort Grange Care Home,632.64, 15-Jan-2019
171,Revenue,CAHD,South Glos Users in South Glos Homes,Permanent Nursing,Beaufort Grange Care Home,632.64, 15-Jan-2019
172,Revenue,CAHD,South Glos Users in South Glos Homes,Permanent Nursing,Beaufort Grange Care Home,632.64, 15-Jan-2019
173,Revenue,CAHD,South Glos Users in South Glos Homes,Permanent Nursing,Beaufort Grange Care Home,632.64, 15-Jan-2019
174,Revenue,CAHD,South Glos Users in South Glos Homes,Permanent Nursing,Beaufort Grange Care Home,632.64, 15-Jan-2019
175,Revenue,CAHD,South Glos Users in South Glos Homes,Permanent Nursing,Beaufort Grange Care Home,632.64, 15-Jan-2019
176,Revenue,CAHD,South Glos Users in South Glos Homes,Permanent Nursing,Beaufort Grange Care Home,632.64, 15-Jan-2019
177,Revenue,CAHD,South Glos Users in South Glos Homes,Permanent Nursing,Beaufort Grange Care Home,632.64, 15-Jan-2019
178,Revenue,CAHD,South Glos Users in South Glos Homes,Permanent Nursing,Beaufort Grange Care Home,632.64, 15-Jan-2019
179,Revenue,CAHD,South Glos Users in South Glos Homes,Permanent Nursing,Beaufort Grange Care Home,632.64, 15-Jan-2019
180,Revenue,CAHD,South Glos Users in South Glos Homes,Permanent Nursing,Beaufort Grange Care Home,632.64, 15-Jan-2019
181,Revenue,CAHD,South Glos Users in South Glos Homes,Permanent Nursing,Beaufort Grange Care Home,3479.52, 15-Jan-2019
182,Revenue,CAHD,South Glos Users in South Glos Homes,Permanent Nursing,Beaufort Grange Care Home,632.64, 15-Jan-2019
183,Revenue,CAHD,South Glos Users in South Glos Homes,Permanent Nursing,Beaufort Grange Care Home,1423.44, 15-Jan-2019
184,Revenue,CAHD,South Glos Users in South Glos Homes,Permanent Nursing,Beaufort Grange Care Home,632.64, 15-Jan-2019
185,Revenue,CAHD,South Glos Users in South Glos Homes,Permanent Nursing,Beaufort Grange Care Home,3434.33, 15-Jan-2019
186,Revenue,CAHD,South Glos Users in South Glos Homes,Permanent Nursing,Beaufort Grange Care Home,632.64, 15-Jan-2019
187,Revenue,CAHD,South Glos Users in South Glos Homes,Permanent Nursing,Beaufort Grange Care Home,632.64, 15-Jan-2019
188,Revenue,CAHD,South Glos Users in South Glos Homes,Permanent Nursing,Beaufort Grange Care Home,632.64, 15-Jan-2019
189,Revenue,CAHD,South Glos Users in South Glos Homes,Permanent Nursing,Beaufort Grange Care Home,632.64, 15-Jan-2019
190,Revenue,CAHD,Bed Purchasing - North,Permanent Residential,Beaufort House,2489.80, 15-Jan-2019
191,Revenue,CAHD,Bed Purchasing - Central,Permanent Residential,Beaufort House,2800.00, 15-Jan-2019
192,Revenue,CAHD,Bed Purchasing - Central,Permanent Residential,Beaufort House,2710.56, 15-Jan-2019
193,Revenue,CAHD,Bed Purchasing - North,Permanent Residential,Beaufort House,2511.12, 15-Jan-2019
194,Revenue,CAHD,Bed Purchasing - South,Permanent Residential,Beaufort House,2477.40, 15-Jan-2019
195,Revenue,CAHD,Bed Purchasing - Central,Permanent Residential,Beaufort House,2710.56, 15-Jan-2019
196,Revenue,CAHD,Bed Purchasing - North,Permanent Residential,Beaufort House,2636.64, 15-Jan-2019
197,Revenue,CAHD,Bed Purchasing - South,Permanent Residential,Beaufort House,2649.40, 15-Jan-2019
198,Revenue,CAHD,South Glos Users in South Glos Homes,Permanent Nursing,Beech House,632.64, 15-Jan-2019
199,Revenue,CAHD,Bed Purchasing - South,Permanent Residential,Beech House,2890.28, 15-Jan-2019
200,Revenue,CAHD,South Glos Users in South Glos Homes,Permanent Nursing,Beech House,632.64, 15-Jan-2019
201,Revenue,CAHD,South Glos Users in South Glos Homes,Permanent Nursing,Beech House,1559.01, 15-Jan-2019
202,Revenue,CAHD,South Glos Users in South Glos Homes,Permanent Nursing,Beech House,632.64, 15-Jan-2019
203,Revenue,CAHD,South Glos Users in South Glos Homes,Permanent Nursing,Beech House,1717.17, 15-Jan-2019
204,Revenue,CAHD,South Glos Users in South Glos Homes,Permanent Nursing,Beech House,632.64, 15-Jan-2019
205,Revenue,CAHD,South Glos Users in South Glos Homes,Permanent Nursing,Beech House,632.64, 15-Jan-2019
206,Revenue,CAHD,Bed Purchasing - North,Permanent Nursing,Beech House,2761.24, 15-Jan-2019
207,Revenue,CAHD,South Glos Users in South Glos Homes,Permanent Nursing,Beech House,632.64, 15-Jan-2019
208,Revenue,CAHD,South Glos Users in South Glos Homes,Permanent Nursing,Beech House,632.64, 15-Jan-2019
209,Revenue,CAHD,Bed Purchasing - North,Permanent Nursing,Beech House,3088.64, 15-Jan-2019
210,Revenue,CAHD,South Glos Users in South Glos Homes,Permanent Nursing,Beech House,632.64, 15-Jan-2019
211,Revenue,CAHD,South Glos Users in South Glos Homes,Permanent Nursing,Beech House,1378.25, 15-Jan-2019
212,Revenue,CAHD,South Glos Users in South Glos Homes,Permanent Nursing,Beech House,632.64, 15-Jan-2019
213,Revenue,CAHD,Bed Purchasing - North,Permanent Nursing,Beech House,3464.60, 15-Jan-2019
214,Revenue,CAHD,South Glos Users in South Glos Homes,Permanent Nursing,Beech House,632.64, 15-Jan-2019
215,Revenue,CAHD,Bed Purchasing - North,Permanent Residential,Beech House,2890.28, 15-Jan-2019
216,Revenue,CAHD,South Glos Users in South Glos Homes,Permanent Nursing,Beech House,632.64, 15-Jan-2019
217,Revenue,CAHD,South Glos Users in South Glos Homes,Permanent Nursing,Beech House,632.64, 15-Jan-2019
218,Revenue,CAHD,South Glos Users in South Glos Homes,Permanent Nursing,Beech House,632.64, 15-Jan-2019
219,Revenue,CAHD,South Glos Users in South Glos Homes,Permanent Nursing,Beech House,632.64, 15-Jan-2019
220,Revenue,CAHD,South Glos Users in South Glos Homes,Permanent Nursing,Beech House,2349.81, 15-Jan-2019
221,Revenue,CAHD,South Glos Users in South Glos Homes,Permanent Nursing,Beech House,632.64, 15-Jan-2019
222,Revenue,CAHD,Bed Purchasing - North,Permanent Nursing,Beech House,3900.00, 15-Jan-2019
223,Revenue,CAHD,South Glos Users in South Glos Homes,Permanent Nursing,Beech House,632.64, 15-Jan-2019
224,Revenue,CAHD,South Glos Users in South Glos Homes,Permanent Nursing,Beech House,632.64, 15-Jan-2019
225,Revenue,CAHD,Bed Purchasing - North,Permanent Residential,Beech House,3974.12, 15-Jan-2019
226,Revenue,CAHD,South Glos Users in South Glos Homes,Permanent Nursing,Beech House,632.64, 15-Jan-2019
227,Revenue,CAHD,Bed Purchasing - North,Permanent Residential,Beech House,3749.92, 15-Jan-2019
228,Revenue,CAHD,South Glos Users in South Glos Homes,Permanent Nursing,Beech House,1355.66, 15-Jan-2019
229,Revenue,CAHD,South Glos Users in South Glos Homes,Permanent Nursing,Beech House,632.64, 15-Jan-2019
230,Revenue,CAHD,South Glos Users in South Glos Homes,Permanent Nursing,Beech House,632.64, 15-Jan-2019
231,Revenue,CAHD,South Glos Users in South Glos Homes,Permanent Nursing,Beech House,632.64, 15-Jan-2019
232,Revenue,CAHD,South Glos Users in South Glos Homes,Permanent Nursing,Beech House,632.64, 15-Jan-2019
233,Revenue,CAHD,South Glos Users in South Glos Homes,Permanent Nursing,Beech House,632.64, 15-Jan-2019
234,Revenue,CAHD,South Glos Users in South Glos Homes,Permanent Nursing,Beech House,1084.53, 15-Jan-2019
235,Revenue,CAHD,Bed Purchasing - North,Permanent Nursing,Beech House,3362.72, 15-Jan-2019
236,Revenue,CAHD,South Glos Users in South Glos Homes,Permanent Nursing,Beech House,632.64, 15-Jan-2019
237,Revenue,CAHD,Bed Purchasing - North,Permanent Nursing,Beech House,3229.92, 15-Jan-2019
238,Revenue,CAHD,South Glos Users in South Glos Homes,Permanent Nursing,Beech House,632.64, 15-Jan-2019
239,Revenue,CAHD,South Glos Users in South Glos Homes,Permanent Nursing,Beech House,632.64, 15-Jan-2019
240,Revenue,CAHD,South Glos Users in South Glos Homes,Permanent Nursing,Beech House,632.64, 15-Jan-2019
241,Revenue,CAHD,Statemented Support Payments to OLAs,Other L.A.'s - General,Beechen Cliff School,718.49, 25-Jan-2019
242,Revenue,CAHD,Independent Special Placements - Pre 16,Other Private Contractors,Belgrave School,6500.00, 28-Jan-2019
243,Revenue,CAHD,Independent Special Placements - Pre 16,Other Private Contractors,Belgrave School,7654.33, 30-Jan-2019
244,Revenue,CAHD,Independent Special Placements - Pre 16,Other Private Contractors,Belgrave School,4700.00, 30-Jan-2019
245,Revenue,CAHD,Independent Special Placements - Pre 16,Other Private Contractors,Belgrave School,5441.00, 30-Jan-2019
246,Revenue,CAHD,Independent Special Placements - Pre 16,Other Private Contractors,Belgrave School,4122.33, 30-Jan-2019
247,Revenue,CAHD,Independent Special Placements - Pre 16,Other Private Contractors,Belgrave School,4807.33, 30-Jan-2019
248,Revenue,CAHD,Independent Special Placements - Pre 16,Other Private Contractors,Belgrave School,4666.67, 29-Jan-2019
249,Revenue,CAHD,CSC - Section 17 0-25,Preventative Assistance,Bibby Factors Leicester Limited,463.20, 09-Jan-2019
250,Revenue,CAHD,Bed purchasing - Elderly S117 - South,Permanent Residential,Bidna House,3606.08, 15-Jan-2019
251,Revenue,CAHD,Bed Purchasing - North,Permanent Nursing,Bloomfield Care Centre,4367.36, 15-Jan-2019
252,Revenue,CAHD,South Glos Users in South Glos Homes,Permanent Nursing,Blossom Field,632.64, 15-Jan-2019
253,Revenue,CAHD,South Glos Users in South Glos Homes,Permanent Nursing,Blossom Field,632.64, 15-Jan-2019
254,Revenue,CAHD,Bed Purchasing - Elderly S117- North,Permanent Nursing,Blossom Field,3607.00, 15-Jan-2019
255,Revenue,CAHD,South Glos Users in South Glos Homes,Permanent Nursing,Blossom Field,632.64, 15-Jan-2019
256,Revenue,CAHD,South Glos Users in South Glos Homes,Permanent Nursing,Blossom Field,632.64, 15-Jan-2019
257,Revenue,CAHD,South Glos Users in South Glos Homes,Permanent Nursing,Blossom Field,858.58, 15-Jan-2019
258,Revenue,CAHD,South Glos Users in South Glos Homes,Permanent Nursing,Blossom Field,632.64, 15-Jan-2019
259,Revenue,CAHD,South Glos Users in South Glos Homes,Permanent Nursing,Blossom Field,587.45, 15-Jan-2019
260,Revenue,CAHD,South Glos Users in South Glos Homes,Permanent Nursing,Blossom Field,632.64, 15-Jan-2019
261,Revenue,CAHD,Bed Purchasing - North,Permanent Nursing,Blossom Field,4167.36, 15-Jan-2019
262,Revenue,CAHD,South Glos Users in South Glos Homes,Permanent Nursing,Blossom Field,632.64, 15-Jan-2019
263,Revenue,CAHD,Bed Purchasing - North,Permanent Nursing,Blossom Field,9364.29, 15-Jan-2019
264,Revenue,CAHD,Bed Purchasing - North,Permanent Nursing,Blossom Field,3800.00, 15-Jan-2019
265,Revenue,CAHD,South Glos Users in South Glos Homes,Permanent Nursing,Blossom Field,632.64, 15-Jan-2019
266,Revenue,CAHD,Bed Purchasing - North,Fees & Charges Income - General,Blossom Field,1190.40, 15-Jan-2019
267,Revenue,CAHD,South Glos Users in South Glos Homes,Permanent Nursing,Blossom Field,632.64, 15-Jan-2019
268,Revenue,CAHD,Bed Purchasing - South,Permanent Nursing,Blossom Field,4309.64, 15-Jan-2019
269,Revenue,CAHD,South Glos Users in South Glos Homes,Permanent Nursing,Blossom Field,632.64, 15-Jan-2019
270,Revenue,CAHD,South Glos Users in South Glos Homes,Permanent Nursing,Blossom Field,903.77, 15-Jan-2019
271,Revenue,CAHD,South Glos Users in South Glos Homes,Permanent Nursing,Blossom Field,632.64, 15-Jan-2019
272,Revenue,CAHD,Bed Purchasing - North,Permanent Nursing,Blossom Field,3447.36, 15-Jan-2019
273,Revenue,CAHD,South Glos Users in South Glos Homes,Permanent Nursing,Blossom Field,632.64, 15-Jan-2019
274,Revenue,CAHD,Bed Purchasing - North,Permanent Nursing,Blossom Field,4687.40, 15-Jan-2019
275,Revenue,CAHD,South Glos Users in South Glos Homes,Permanent Nursing,Blossom Field,632.64, 15-Jan-2019
276,Revenue,CAHD,South Glos Users in South Glos Homes,Permanent Nursing,Blossom Field,632.64, 15-Jan-2019
277,Revenue,CAHD,South Glos Users in South Glos Homes,Permanent Nursing,Blossom Field,632.64, 15-Jan-2019
278,Revenue,CAHD,South Glos Users in South Glos Homes,Permanent Nursing,Blossom Field,632.64, 15-Jan-2019
279,Revenue,CAHD,South Glos Users in South Glos Homes,Permanent Nursing,Blossom Field,632.64, 15-Jan-2019
280,Revenue,CAHD,South Glos Users in South Glos Homes,Permanent Nursing,Blossom Field,1807.54, 15-Jan-2019
281,Revenue,CAHD,South Glos Users in South Glos Homes,Permanent Nursing,Blossom Field,632.64, 15-Jan-2019
282,Revenue,CAHD,South Glos Users in South Glos Homes,Permanent Nursing,Blossom Field,632.64, 15-Jan-2019
283,Revenue,CAHD,South Glos Users in South Glos Homes,Permanent Nursing,Blossom Field,632.64, 15-Jan-2019
284,Revenue,CAHD,Bed Purchasing - North,Permanent Nursing,Blossom Field,3549.76, 15-Jan-2019
285,Revenue,CAHD,South Glos Users in South Glos Homes,Permanent Nursing,Blossom Field,632.64, 15-Jan-2019
286,Revenue,CAHD,South Glos Users in South Glos Homes,Permanent Nursing,Blossom Field,632.64, 15-Jan-2019
287,Revenue,CAHD,South Glos Users in South Glos Homes,Permanent Nursing,Blossom Field,632.64, 15-Jan-2019
288,Revenue,CAHD,Bed Purchasing - North,Permanent Residential,Bluebells,3612.88, 15-Jan-2019
289,Revenue,CAHD,EARLY YEARS DISABILITY  ACCES FUND,Preventative Assistance,Bluebells Pre School,615.00, 02-Jan-2019
290,Revenue,CAHD,Homecare - Central,Other Small Contracts,Bluebird Care (South Gloucestershire),848.90, 23-Jan-2019
291,Revenue,CAHD,Home Care - Elderly - South,Other Small Contracts,Bluebird Care (South Gloucestershire),331.20, 23-Jan-2019
292,Revenue,CAHD,Home Care - Elderly - North,Other Small Contracts,Bluebird Care (South Gloucestershire),1850.05, 23-Jan-2019
293,Revenue,CAHD,Homecare - Central,Other Small Contracts,Bluebird Care (South Gloucestershire),1813.56, 23-Jan-2019
294,Revenue,CAHD,Home Care - Elderly - South,Other Small Contracts,Bluebird Care (South Gloucestershire),297.10, 23-Jan-2019
295,Revenue,CAHD,Home Care - Elderly - North,Other Small Contracts,Bluebird Care (South Gloucestershire),1866.28, 23-Jan-2019
296,Revenue,CAHD,Homecare - Central,Other Small Contracts,Bluebird Care (South Gloucestershire),1400.30, 23-Jan-2019
297,Revenue,CAHD,Home Care - Elderly - South,Other Small Contracts,Bluebird Care (South Gloucestershire),306.94, 23-Jan-2019
298,Revenue,CAHD,Home Care - Elderly - North,Other Small Contracts,Bluebird Care (South Gloucestershire),1646.12, 23-Jan-2019
299,Revenue,CAHD,Homecare - Central,Other Small Contracts,Bluebird Care (South Gloucestershire),1552.47, 23-Jan-2019
300,Revenue,CAHD,Home Care - Elderly - South,Other Small Contracts,Bluebird Care (South Gloucestershire),301.68, 23-Jan-2019
301,Revenue,CAHD,Home Care - Elderly - North,Other Small Contracts,Bluebird Care (South Gloucestershire),1392.09, 23-Jan-2019
302,Revenue,CAHD,Training - Adult Services,Training Expenses,Bob Dawson,1000.00, 17-Jan-2019
303,Revenue,CAHD,CSC - Vinney Green Secure Unit,"Provisions (Food, etc)",Booker Cash & Carry,613.09, 07-Jan-2019
304,Revenue,CAHD,CSC - Vinney Green Secure Unit,"Provisions (Food, etc)",Booker Cash & Carry,502.96, 21-Jan-2019
305,Revenue,CAHD,Training - Adult Services,Training Expenses,Bournemouth University,1150.00, 18-Jan-2019
306,Revenue,CAHD,Bed purchasing - S28A Under 65 - South,Permanent Residential,Bradbury House,4946.40, 15-Jan-2019
307,Revenue,CAHD,18-25 Year Olds,Permanent Residential,Bradbury House,9684.64, 15-Jan-2019
308,Revenue,CAHD,Bed Purchasing - North,Permanent Residential,Bradbury House,2751.32, 15-Jan-2019
309,Revenue,CAHD,Tobacco Control,Other Small Contracts,Bradley Stoke Surgery,530.00, 16-Jan-2019
310,Revenue,CAHD,CSC - Residential Placements,Permanent Residential,Branas ISAF Ltd,19928.57, 03-Jan-2019
311,Revenue,CAHD,CSC - Residential Placements,Permanent Residential,Branas ISAF Ltd,21035.71, 23-Jan-2019
312,Revenue,CAHD,Social Lettings Agency,Fees - General,Individual,8.15, 03-Jan-2019
313,Revenue,CAHD,Social Lettings Agency,Other Supplies & Services,Individual,766.10, 03-Jan-2019
314,Revenue,CAHD,Bed Purchasing - North,Permanent Residential,Bridge House Care Home,2469.12, 15-Jan-2019
315,Revenue,CAHD,Bed Purchasing - North,Permanent Residential,Bridge House Care Home,2427.40, 15-Jan-2019
316,Revenue,CAHD,Bed Purchasing - North,Permanent Residential,Bridge House Care Home,2564.00, 15-Jan-2019
317,Revenue,CAHD,CSC - Vinney Green Secure Unit,Training Expenses,Bridgwater and Taunton College,16615.00, 23-Jan-2019
318,Revenue,CAHD,Bed Purchasing - North,Permanent Residential,Bridgwater Court,10521.12, 15-Jan-2019
319,Revenue,CAHD,Early Years Inclusion Fund,Other Public Bodies,Bright Sparks Pre-School,1400.00, 21-Jan-2019
320,Revenue,CAHD,Early Years Inclusion Fund,Other Public Bodies,Bright Sparks Pre-School,3600.00, 21-Jan-2019
321,Revenue,CAHD,Early Years Inclusion Fund,Other Public Bodies,Bright Sparks Pre-School,1500.00, 21-Jan-2019
322,Revenue,CAHD,Early Years High Needs Support,Other Private Contractors,Bright Sparks Pre-School,819.11, 29-Jan-2019
323,Revenue,CAHD,Statemented Support Academies,Schools Funding,Bristol & South Gloucestershire UTC,7298.24, 25-Jan-2019
324,Revenue,CAHD,Sensory Support Joint Arrangement,Other L.A.'s - General,Bristol City Council,147563.00, 03-Jan-2019
325,Revenue,CAHD,Sexual Health,Other Small Contracts,Bristol City Council,236277.25, 15-Jan-2019
326,Revenue,CAHD,Placements OLA Special Schools and RB,Other L.A.'s - General,Bristol City Council - Schools,2578.00, 25-Jan-2019
327,Revenue,CAHD,Placements OLA Special Schools and RB,Other L.A.'s - General,Bristol City Council - Schools,1350.17, 25-Jan-2019
328,Revenue,CAHD,Statemented Support Payments to OLAs,Other L.A.'s - General,Bristol City Council - Schools,1378.83, 25-Jan-2019
329,Revenue,CAHD,Placements OLA Special Schools and RB,Other L.A.'s - General,Bristol City Council - Schools,914.33, 25-Jan-2019
330,Revenue,CAHD,Placements OLA Special Schools and RB,Other L.A.'s - General,Bristol City Council - Schools,2578.00, 25-Jan-2019
331,Revenue,CAHD,Placements OLA Special Schools and RB,Other L.A.'s - General,Bristol City Council - Schools,1305.58, 25-Jan-2019
332,Revenue,CAHD,Statemented Support Payments to OLAs,Other L.A.'s - General,Bristol City Council - Schools,659.53, 25-Jan-2019
333,Revenue,CAHD,Placements OLA Special Schools and RB,Other L.A.'s - General,Bristol City Council - Schools,3356.33, 25-Jan-2019
334,Revenue,CAHD,Statemented Support Payments to OLAs,Other L.A.'s - General,Bristol City Council - Schools,907.16, 25-Jan-2019
335,Revenue,CAHD,Placements OLA Special Schools and RB,Other L.A.'s - General,Bristol City Council - Schools,2578.00, 25-Jan-2019
336,Revenue,CAHD,Placements OLA Special Schools and RB,Other L.A.'s - General,Bristol City Council - Schools,1381.00, 25-Jan-2019
337,Revenue,CAHD,Placements OLA Special Schools and RB,Other L.A.'s - General,Bristol City Council - Schools,2050.17, 25-Jan-2019
338,Revenue,CAHD,Placements OLA Special Schools and RB,Other L.A.'s - General,Bristol City Council - Schools,914.33, 25-Jan-2019
339,Revenue,CAHD,Placements OLA Special Schools and RB,Other L.A.'s - General,Bristol City Council - Schools,1381.00, 25-Jan-2019
340,Revenue,CAHD,Placements OLA Special Schools and RB,Other L.A.'s - General,Bristol City Council - Schools,2050.17, 25-Jan-2019
341,Revenue,CAHD,Placements OLA Special Schools and RB,Other L.A.'s - General,Bristol City Council - Schools,2578.00, 25-Jan-2019
342,Revenue,CAHD,Placements OLA Special Schools and RB,Other L.A.'s - General,Bristol City Council - Schools,809.00, 25-Jan-2019
343,Revenue,CAHD,Placements OLA Special Schools and RB,Other L.A.'s - General,Bristol City Council - Schools,883.50, 25-Jan-2019
344,Revenue,CAHD,Placements OLA Special Schools and RB,Other L.A.'s - General,Bristol City Council - Schools,4107.54, 25-Jan-2019
345,Revenue,CAHD,Placements OLA Special Schools and RB,Other L.A.'s - General,Bristol City Council - Schools,1031.20, 25-Jan-2019
346,Revenue,CAHD,Placements OLA Special Schools and RB,Other L.A.'s - General,Bristol City Council - Schools,2578.00, 25-Jan-2019
347,Revenue,CAHD,Placements OLA Special Schools and RB,Other L.A.'s - General,Bristol City Council - Schools,809.00, 25-Jan-2019
348,Revenue,CAHD,Placements OLA Special Schools and RB,Other L.A.'s - General,Bristol City Council - Schools,2578.00, 25-Jan-2019
349,Revenue,CAHD,Placements OLA Special Schools and RB,Other L.A.'s - General,Bristol City Council - Schools,883.50, 25-Jan-2019
350,Revenue,CAHD,Placements OLA Special Schools and RB,Other L.A.'s - General,Bristol City Council - Schools,2062.40, 25-Jan-2019
351,Revenue,CAHD,Placements OLA Special Schools and RB,Other L.A.'s - General,Bristol City Council - Schools,2578.00, 25-Jan-2019
352,Revenue,CAHD,Placements OLA Special Schools and RB,Other L.A.'s - General,Bristol City Council - Schools,883.50, 25-Jan-2019
353,Revenue,CAHD,Statemented Support Payments to OLAs,Other L.A.'s - General,Broadlands Academy,1331.66, 25-Jan-2019
354,Revenue,CAHD,South Glos Users in South Glos Homes,Permanent Nursing,Brunelcare,700.42, 17-Jan-2019
355,Revenue,CAHD,South Glos Users in South Glos Homes,Permanent Nursing,Brunelcare,700.42, 17-Jan-2019
356,Revenue,CAHD,South Glos Users in South Glos Homes,Permanent Nursing,Brunelcare,700.42, 17-Jan-2019
357,Revenue,CAHD,South Glos Users in South Glos Homes,Permanent Nursing,Brunelcare,700.42, 17-Jan-2019
358,Revenue,CAHD,South Glos Users in South Glos Homes,Permanent Nursing,Brunelcare,700.42, 17-Jan-2019
359,Revenue,CAHD,South Glos Users in South Glos Homes,Permanent Nursing,Brunelcare,700.42, 17-Jan-2019
360,Revenue,CAHD,South Glos Users in South Glos Homes,Permanent Nursing,Brunelcare,700.42, 17-Jan-2019
361,Revenue,CAHD,South Glos Users in South Glos Homes,Permanent Nursing,Brunelcare,700.42, 17-Jan-2019
362,Revenue,CAHD,South Glos Users in South Glos Homes,Permanent Nursing,Brunelcare,700.42, 17-Jan-2019
363,Revenue,CAHD,South Glos Users in South Glos Homes,Permanent Nursing,Brunelcare,700.42, 17-Jan-2019
364,Revenue,CAHD,South Glos Users in South Glos Homes,Permanent Nursing,Brunelcare,700.42, 17-Jan-2019
365,Revenue,CAHD,South Glos Users in South Glos Homes,Permanent Nursing,Brunelcare,700.42, 17-Jan-2019
366,Revenue,CAHD,Bed purchasing - Elderly S117 - South,Permanent Nursing,Brunelcare,3583.11, 17-Jan-2019
367,Revenue,CAHD,Bed purchasing - Elderly S117 - South,Permanent Nursing,Brunelcare,3583.11, 17-Jan-2019
368,Revenue,CAHD,Bed purchasing - Elderly S117 - South,Permanent Nursing,Brunelcare,2311.69, 17-Jan-2019
369,Revenue,CAHD,Bed Purchasing - Elderly S117- North,Permanent Nursing,Brunelcare,3583.11, 17-Jan-2019
370,Revenue,CAHD,Bed Purchasing - Elderly S117- North,Permanent Nursing,Brunelcare,3583.11, 17-Jan-2019
371,Revenue,CAHD,Bed Purchasing - South,Permanent Nursing,Brunelcare,2790.53, 17-Jan-2019
372,Revenue,CAHD,Bed Purchasing - South,Permanent Nursing,Brunelcare,2615.87, 17-Jan-2019
373,Revenue,CAHD,Bed Purchasing - South,Permanent Nursing,Brunelcare,2769.19, 17-Jan-2019
374,Revenue,CAHD,Bed Purchasing - South,Permanent Nursing,Brunelcare,1065.16, 17-Jan-2019
375,Revenue,CAHD,Bed Purchasing - South,Permanent Nursing,Brunelcare,3002.53, 17-Jan-2019
376,Revenue,CAHD,Bed Purchasing - South,Permanent Nursing,Brunelcare,1387.01, 17-Jan-2019
377,Revenue,CAHD,Bed Purchasing - South,Permanent Nursing,Brunelcare,1597.14, 17-Jan-2019
378,Revenue,CAHD,Bed Purchasing - South,Permanent Nursing,Brunelcare,2971.53, 17-Jan-2019
379,Revenue,CAHD,Bed Purchasing - South,Permanent Nursing,Brunelcare,2616.75, 17-Jan-2019
380,Revenue,CAHD,Enhanced Dementia Beds,Respite Planned - Nursing,Brunelcare,1245.86, 17-Jan-2019
381,Revenue,CAHD,Enhanced Dementia Beds,Respite Planned - Nursing,Brunelcare,3045.43, 17-Jan-2019
382,Revenue,CAHD,Bed Purchasing - South,Respite Planned - Nursing,Brunelcare,1618.18, 17-Jan-2019
383,Revenue,CAHD,Bed Purchasing - South,Respite Planned - Nursing,Brunelcare,924.67, 17-Jan-2019
384,Revenue,CAHD,Bed Purchasing - North,Permanent Nursing,Brunelcare,1243.61, 17-Jan-2019
385,Revenue,CAHD,Bed Purchasing - North,Permanent Nursing,Brunelcare,2884.46, 17-Jan-2019
386,Revenue,CAHD,Bed Purchasing - North,Permanent Nursing,Brunelcare,2874.01, 17-Jan-2019
387,Revenue,CAHD,Bed Purchasing - North,Permanent Nursing,Brunelcare,3583.11, 17-Jan-2019
388,Revenue,CAHD,Bed Purchasing - North,Respite Planned - Nursing,Brunelcare,924.67, 17-Jan-2019
389,Revenue,CAHD,Pathway 2 - (Interim Beds),Permanent Nursing,Brunelcare,17598.00, 24-Jan-2019
390,Revenue,CAHD,Home Care - Elderly - South,Other Small Contracts,Brunelcare,24506.30, 04-Jan-2019
391,Revenue,CAHD,Home Care - Elderly - North,Other Small Contracts,Brunelcare,696.15, 04-Jan-2019
392,Revenue,CAHD,Home Care - Elderly - South,Other Small Contracts,Brunelcare,25548.25, 04-Jan-2019
393,Revenue,CAHD,Home Care - Elderly - North,Other Small Contracts,Brunelcare,18.20, 04-Jan-2019
394,Revenue,CAHD,Home Care - Elderly - South,Other Small Contracts,Brunelcare,24788.40, 04-Jan-2019
395,Revenue,CAHD,Home Care - Elderly - North,Other Small Contracts,Brunelcare,18.20, 04-Jan-2019
396,Revenue,CAHD,Home Care - Elderly - South,Other Small Contracts,Brunelcare,24701.95, 08-Jan-2019
397,Revenue,CAHD,Home Care - Elderly - North,Other Small Contracts,Brunelcare,18.20, 08-Jan-2019
398,Revenue,CAHD,Home Care - Elderly - South,Other Small Contracts,Brunelcare,24583.65, 24-Jan-2019
399,Revenue,CAHD,Home Care - Elderly - North,Other Small Contracts,Brunelcare,18.20, 24-Jan-2019
400,Revenue,CAHD,Home Care - Elderly - South,Other Small Contracts,Brunelcare,25352.60, 29-Jan-2019
401,Revenue,CAHD,Home Care - Elderly - North,Other Small Contracts,Brunelcare,18.20, 29-Jan-2019
402,Revenue,CAHD,Pathway 1 - Re-Ablement Home Care,Other Small Contracts,Brunelcare,41033.82, 30-Jan-2019
403,Revenue,CAHD,Pathway 1 - Re-Ablement Home Care,Other Small Contracts,Brunelcare,49692.01, 04-Jan-2019
404,Revenue,CAHD,Pathway 1 - Re-Ablement Home Care,Other Small Contracts,Brunelcare,1369.55, 24-Jan-2019
405,Revenue,CAHD,Pathway 1 - Re-Ablement Home Care,Other Small Contracts,Brunelcare,37609.54, 04-Jan-2019
406,Revenue,CAHD,Pathway 1 - Re-Ablement Home Care,Other Small Contracts,Brunelcare,1428.70, 24-Jan-2019
407,Revenue,CAHD,Pathway 1 - Re-Ablement Home Care,Other Small Contracts,Brunelcare,1860.95, 24-Jan-2019
408,Revenue,CAHD,EARLY YEARS DISABILITY  ACCES FUND,Preventative Assistance,Buckingham Gardens Day Nursery,615.00, 24-Jan-2019
409,Revenue,CAHD,Early Years Inclusion Fund,Other Public Bodies,Busy Bees Day Nursery,1500.00, 24-Jan-2019
410,Revenue,CAHD,CSC - Asylum Seekers - Unaccompanied,Foster Parent Allowances,By the Bridge Ltd,4424.14, 25-Jan-2019
411,Revenue,CAHD,CSC - Asylum Seekers - Unaccompanied,Foster Parent Allowances,By the Bridge Ltd,4424.14, 31-Jan-2019
412,Revenue,CAHD,CSC - Asylum Seekers - Unaccompanied,Foster Parent Allowances,By the Bridge Ltd,8705.57, 29-Jan-2019
413,Revenue,CAHD,Minor Adaptations Service,Prop.Serv. General Repairs,C A P Security Limited,514.29, 14-Jan-2019
414,Revenue,CAHD,Social Lettings Agency,Fees - General,Individual,16.16, 25-Jan-2019
415,Revenue,CAHD,Social Lettings Agency,Other Supplies & Services,Individual,710.96, 25-Jan-2019
416,Revenue,CAHD,Academy Resource Base Funding,Other Public Bodies,Cabot Learning Federation,1175.88, 23-Jan-2019
417,Revenue,CAHD,Academy Resource Base Funding,Other Public Bodies,Cabot Learning Federation,1175.88, 23-Jan-2019
418,Revenue,CAHD,Academy Resource Base Funding,Other Public Bodies,Cabot Learning Federation,1702.96, 23-Jan-2019
419,Revenue,CAHD,Academy Resource Base Funding,Other Public Bodies,Cabot Learning Federation,1540.83, 23-Jan-2019
420,Revenue,CAHD,Academy Resource Base Funding,Other Public Bodies,Cabot Learning Federation,1175.88, 23-Jan-2019
421,Revenue,CAHD,Academy Resource Base Funding,Other Public Bodies,Cabot Learning Federation,1540.83, 23-Jan-2019
422,Revenue,CAHD,Academy Resource Base Funding,Other Public Bodies,Cabot Learning Federation,1702.96, 23-Jan-2019
423,Revenue,CAHD,Academy Resource Base Funding,Other Public Bodies,Cabot Learning Federation,892.04, 23-Jan-2019
424,Revenue,CAHD,Academy Resource Base Funding,Other Public Bodies,Cabot Learning Federation,1702.96, 23-Jan-2019
425,Revenue,CAHD,Academy Resource Base Funding,Other Public Bodies,Cabot Learning Federation,1175.88, 23-Jan-2019
426,Revenue,CAHD,Schools Block Growth Contingency,Other Public Bodies,Cabot Learning Federation,68894.00, 25-Jan-2019
427,Revenue,CAHD,Statemented Support Payments to OLAs,Other L.A.'s - General,Cabot Learning Federation,518.03, 25-Jan-2019
428,Revenue,CAHD,Statemented Support Academies,Schools Funding,Cabot Learning Federation,706.70, 25-Jan-2019
429,Revenue,CAHD,Statemented Support Academies,Schools Funding,Cabot Learning Federation,753.87, 25-Jan-2019
430,Revenue,CAHD,Statemented Support Academies,Schools Funding,Cabot Learning Federation,659.53, 25-Jan-2019
431,Revenue,CAHD,Statemented Support Academies,Schools Funding,Cabot Learning Federation,706.70, 25-Jan-2019
432,Revenue,CAHD,Statemented Support Payments to OLAs,Other L.A.'s - General,Cabot Learning Federation,1013.28, 25-Jan-2019
433,Revenue,CAHD,Statemented Support Academies,Schools Funding,Cabot Learning Federation,518.03, 25-Jan-2019
434,Revenue,CAHD,Statemented Support Academies,Schools Funding,Cabot Learning Federation,836.41, 25-Jan-2019
435,Revenue,CAHD,Statemented Support Academies,Schools Funding,Cabot Learning Federation,576.99, 25-Jan-2019
436,Revenue,CAHD,Statemented Support Academies,Schools Funding,Cabot Learning Federation,753.87, 25-Jan-2019
437,Revenue,CAHD,Statemented Support Academies,Schools Funding,Cabot Learning Federation,954.33, 25-Jan-2019
438,Revenue,CAHD,Statemented Support Academies,Schools Funding,Cabot Learning Federation,706.70, 25-Jan-2019
439,Revenue,CAHD,Statemented Support Academies,Schools Funding,Cabot Learning Federation,553.41, 25-Jan-2019
440,Revenue,CAHD,Statemented Support Academies,Schools Funding,Cabot Learning Federation,694.91, 25-Jan-2019
441,Revenue,CAHD,Statemented Support Academies,Schools Funding,Cabot Learning Federation,883.58, 25-Jan-2019
442,Revenue,CAHD,Statemented Support Academies,Schools Funding,Cabot Learning Federation,1084.03, 25-Jan-2019
443,Revenue,CAHD,Statemented Support Academies,Schools Funding,Cabot Learning Federation,954.33, 25-Jan-2019
444,Revenue,CAHD,Statemented Support Payments to OLAs,Other L.A.'s - General,Cabot Learning Federation,600.58, 25-Jan-2019
445,Revenue,CAHD,Statemented Support Academies,Schools Funding,Cabot Learning Federation,859.99, 25-Jan-2019
446,Revenue,CAHD,Statemented Support Academies,Schools Funding,Cabot Learning Federation,600.58, 25-Jan-2019
447,Revenue,CAHD,Statemented Support Academies,Schools Funding,Cabot Learning Federation,871.78, 25-Jan-2019
448,Revenue,CAHD,Statemented Support Academies,Schools Funding,Cabot Learning Federation,1048.66, 25-Jan-2019
449,Revenue,CAHD,Statemented Support Academies,Schools Funding,Cabot Learning Federation,883.58, 25-Jan-2019
450,Revenue,CAHD,Statemented Support Academies,Schools Funding,Cabot Learning Federation,506.24, 25-Jan-2019
451,Revenue,CAHD,Statemented Support Academies,Schools Funding,Cabot Learning Federation,1048.66, 25-Jan-2019
452,Revenue,CAHD,Statemented Support Payments to OLAs,Other L.A.'s - General,Cabot Learning Federation,600.58, 25-Jan-2019
453,Revenue,CAHD,Statemented Support Payments to OLAs,Other L.A.'s - General,Cabot Learning Federation,1072.24, 25-Jan-2019
454,Revenue,CAHD,Statemented Support Payments to OLAs,Other L.A.'s - General,Cabot Learning Federation,588.78, 25-Jan-2019
455,Revenue,CAHD,Statemented Support Academies,Schools Funding,Cabot Learning Federation,918.95, 25-Jan-2019
456,Revenue,CAHD,Early Years High Needs Support,Other Private Contractors,Caerleon Childcare,515.74, 29-Jan-2019
457,Revenue,CAHD,CSC - Residential Placements,Permanent Residential,Cambian Childcare Ltd,19928.66, 24-Jan-2019
458,Revenue,CAHD,Post 16 High Needs Placements,Other Private Contractors,Cambian Whinfell School Limited,30826.07, 04-Jan-2019
459,Revenue,CAHD,Post 16 High Needs Placements,Other Private Contractors,Cambian Whinfell School Limited,26930.15, 10-Jan-2019
460,Revenue,CAHD,Post 16 High Needs Placements,Other Private Contractors,Cambian Whinfell School Limited,27747.77, 10-Jan-2019
461,Revenue,CAHD,Post 16 High Needs Placements,Other Private Contractors,Cambian Whinfell School Limited,28867.27, 07-Jan-2019
462,Revenue,CAHD,Post 16 High Needs Placements,Other Private Contractors,Cambian Whinfell School Limited,28734.89, 10-Jan-2019
463,Revenue,CAHD,Post 16 High Needs Placements,Other Private Contractors,Cambian Whinfell School Limited,39075.30, 04-Jan-2019
464,Revenue,CAHD,Cambrian Green Day Service,Catering,Cambrian Court Dining,566.50, 21-Jan-2019
465,Revenue,CAHD,Cambrian Green Day Service,Catering,Cambrian Court Dining,605.00, 21-Jan-2019
466,Revenue,CAHD,Cambrian Green Day Service,Catering,Cambrian Court Dining,704.00, 21-Jan-2019
467,Revenue,CAHD,Cambrian Green Day Service,Catering,Cambrian Court Dining,577.50, 21-Jan-2019
468,Revenue,CAHD,Home Care - Elderly - North,Day Care / Social Activities,Camphill Communities Thornbury Limited,835.36, 04-Jan-2019
469,Revenue,CAHD,Home Care - Elderly - North,Supported Living,Camphill Communities Thornbury Limited,1026.04, 04-Jan-2019
470,Revenue,CAHD,Home Care - Elderly - North,Day Care / Social Activities,Camphill Communities Thornbury Limited,812.66, 11-Jan-2019
471,Revenue,CAHD,Home Care - Elderly - North,Supported Living,Camphill Communities Thornbury Limited,998.80, 11-Jan-2019
472,Revenue,CAHD,Home Care - Elderly - North,Day Care / Social Activities,Camphill Communities Thornbury Limited,771.80, 18-Jan-2019
473,Revenue,CAHD,Home Care - Elderly - North,Supported Living,Camphill Communities Thornbury Limited,994.26, 18-Jan-2019
474,Revenue,CAHD,Bed Purchasing - Elderly S117- North,Permanent Residential,Canjayor,2468.44, 15-Jan-2019
475,Revenue,CAHD,Planning & Development,Consultants Fees,Capita Business Services Limited,900.00, 04-Jan-2019
476,Revenue,CAHD,CSC - Agency Fostering,Foster Parent Allowances,Capstone Foster Care (South West) Limited,820.72, 23-Jan-2019
477,Revenue,CAHD,Homecare - Central,Other Small Contracts,Care 1st Homecare,2862.72, 11-Jan-2019
478,Revenue,CAHD,Homecare - Central,Other Small Contracts,Care 1st Homecare,1226.88, 07-Jan-2019
479,Revenue,CAHD,Homecare - Central,Other Small Contracts,Care 1st Homecare,1022.40, 30-Jan-2019
480,Revenue,CAHD,Homecare - Central,Other Small Contracts,Care 1st Homecare,2249.28, 30-Jan-2019
481,Revenue,CAHD,Homecare - Central,Other Small Contracts,Care 1st Homecare,2862.72, 30-Jan-2019
482,Revenue,CAHD,18-25 Year Olds,Other Small Contracts,Care Horizons Limited,75.36, 07-Jan-2019
483,Revenue,CAHD,Homecare - Central,Other Small Contracts,Care Horizons Limited,720.63, 07-Jan-2019
484,Revenue,CAHD,Home Care - Elderly - South,Other Small Contracts,Care Horizons Limited,390.93, 07-Jan-2019
485,Revenue,CAHD,Home Care - Elderly - North,Day Care / Social Activities,Care Horizons Limited,263.76, 07-Jan-2019
486,Revenue,CAHD,Home Care - Elderly - North,Other Small Contracts,Care Horizons Limited,122.46, 07-Jan-2019
487,Revenue,CAHD,Younger MH non-res purchasing,Other Small Contracts,Care Horizons Limited,127.17, 07-Jan-2019
488,Revenue,CAHD,Home care - Elderly MH - North,Other Small Contracts,Care Horizons Limited,65.94, 07-Jan-2019
489,Revenue,CAHD,18-25 Year Olds,Other Small Contracts,Care Horizons Limited,127.17, 07-Jan-2019
490,Revenue,CAHD,Homecare - Central,Other Small Contracts,Care Horizons Limited,211.95, 07-Jan-2019
491,Revenue,CAHD,Home Care - Elderly - South,Other Small Contracts,Care Horizons Limited,287.31, 07-Jan-2019
492,Revenue,CAHD,Home Care - Elderly - North,Day Care / Social Activities,Care Horizons Limited,268.47, 07-Jan-2019
493,Revenue,CAHD,Home Care - Elderly - North,Other Small Contracts,Care Horizons Limited,131.88, 07-Jan-2019
494,Revenue,CAHD,Younger MH non-res purchasing,Other Small Contracts,Care Horizons Limited,131.88, 07-Jan-2019
495,Revenue,CAHD,18-25 Year Olds,Other Small Contracts,Care Horizons Limited,56.52, 15-Jan-2019
496,Revenue,CAHD,Homecare - Central,Other Small Contracts,Care Horizons Limited,395.64, 15-Jan-2019
497,Revenue,CAHD,Home Care - Elderly - South,Other Small Contracts,Care Horizons Limited,174.27, 15-Jan-2019
498,Revenue,CAHD,Home Care - Elderly - North,Day Care / Social Activities,Care Horizons Limited,263.76, 15-Jan-2019
499,Revenue,CAHD,Home Care - Elderly - North,Other Small Contracts,Care Horizons Limited,56.52, 15-Jan-2019
500,Revenue,CAHD,Younger MH non-res purchasing,Other Small Contracts,Care Horizons Limited,202.53, 15-Jan-2019
501,Revenue,CAHD,Homecare - Central,Other Small Contracts,Care Horizons Limited,852.51, 23-Jan-2019
502,Revenue,CAHD,Home Care - Elderly - South,Other Small Contracts,Care Horizons Limited,240.21, 23-Jan-2019
503,Revenue,CAHD,Home Care - Elderly - North,Day Care / Social Activities,Care Horizons Limited,381.51, 23-Jan-2019
504,Revenue,CAHD,Home Care - Elderly - North,Other Small Contracts,Care Horizons Limited,131.88, 23-Jan-2019
505,Revenue,CAHD,Younger MH non-res purchasing,Other Small Contracts,Care Horizons Limited,263.76, 23-Jan-2019
506,Revenue,CAHD,Homecare - Central,Other Small Contracts,Care Horizons Limited,852.51, 25-Jan-2019
507,Revenue,CAHD,Home Care - Elderly - South,Other Small Contracts,Care Horizons Limited,240.21, 25-Jan-2019
508,Revenue,CAHD,Home Care - Elderly - North,Day Care / Social Activities,Care Horizons Limited,390.93, 25-Jan-2019
509,Revenue,CAHD,Home Care - Elderly - North,Other Small Contracts,Care Horizons Limited,131.88, 25-Jan-2019
510,Revenue,CAHD,Younger MH non-res purchasing,Other Small Contracts,Care Horizons Limited,240.21, 25-Jan-2019
511,Revenue,CAHD,Home Care - Elderly - South,Other Small Contracts,Caring Comes 1st Limited,695.64, 14-Jan-2019
512,Revenue,CAHD,Home Care - Elderly - South,Other Small Contracts,Caring Comes 1st Limited,2827.44, 14-Jan-2019
513,Revenue,CAHD,Home Care - Elderly - South,Other Small Contracts,Caring Comes 1st Limited,617.10, 14-Jan-2019
514,Revenue,CAHD,Home Care - Elderly - South,Other Small Contracts,Caring Comes 1st Limited,583.44, 14-Jan-2019
515,Revenue,CAHD,Early Years Inclusion Fund,Other Public Bodies,Carol Reynolds,1600.00, 16-Jan-2019
516,Revenue,CAHD,Homecare - Central,Supported Living,Cartrefi Cymru Co Operative,13744.92, 14-Jan-2019
517,Revenue,CAHD,Home Care - Elderly - North,Supported Living,Cartrefi Cymru Co Operative,8671.32, 14-Jan-2019
518,Revenue,CAHD,Statemented Support Academies,Schools Funding,Castle School Education Trust,659.53, 25-Jan-2019
519,Revenue,CAHD,Statemented Support Academies,Schools Funding,Castle School Education Trust,565.20, 25-Jan-2019
520,Revenue,CAHD,Statemented Support Academies,Schools Funding,Castle School Education Trust,635.95, 25-Jan-2019
521,Revenue,CAHD,Statemented Support Academies,Schools Funding,Castle School Education Trust,706.70, 25-Jan-2019
522,Revenue,CAHD,Statemented Support Academies,Schools Funding,Castle School Education Trust,918.95, 25-Jan-2019
523,Revenue,CAHD,Statemented Support Academies,Schools Funding,Castle School Education Trust,1072.24, 25-Jan-2019
524,Revenue,CAHD,Statemented Support Academies,Schools Funding,Castle School Education Trust,683.12, 25-Jan-2019
525,Revenue,CAHD,Statemented Support Academies,Schools Funding,Castle School Education Trust,812.83, 25-Jan-2019
526,Revenue,CAHD,Statemented Support Academies,Schools Funding,Castle School Education Trust,1001.49, 25-Jan-2019
527,Revenue,CAHD,Statemented Support Academies,Schools Funding,Castle School Education Trust,1602.87, 25-Jan-2019
528,Revenue,CAHD,Statemented Support Academies,Schools Funding,Castle School Education Trust,1001.49, 25-Jan-2019
529,Revenue,CAHD,Statemented Support Academies,Schools Funding,Castle School Education Trust,1142.99, 25-Jan-2019
530,Revenue,CAHD,Statemented Support Academies,Schools Funding,Castle School Education Trust,1260.91, 25-Jan-2019
531,Revenue,CAHD,Statemented Support Academies,Schools Funding,Castle School Education Trust,647.74, 25-Jan-2019
532,Revenue,CAHD,Statemented Support Academies,Schools Funding,Castle School Education Trust,506.24, 25-Jan-2019
533,Revenue,CAHD,Statemented Support Academies,Schools Funding,Castle School Education Trust,730.28, 25-Jan-2019
534,Revenue,CAHD,Statemented Support Academies,Schools Funding,Castle School Education Trust,541.62, 25-Jan-2019
535,Revenue,CAHD,Statemented Support Academies,Schools Funding,Castle School Education Trust,1095.83, 25-Jan-2019
536,Revenue,CAHD,Statemented Support Academies,Schools Funding,Castle School Education Trust,718.49, 25-Jan-2019
537,Revenue,CAHD,Statemented Support Academies,Schools Funding,Castle School Education Trust,765.66, 25-Jan-2019
538,Revenue,CAHD,Statemented Support Academies,Schools Funding,Castle School Education Trust,966.12, 25-Jan-2019
539,Revenue,CAHD,Statemented Support Academies,Schools Funding,Castle School Education Trust,848.20, 25-Jan-2019
540,Revenue,CAHD,Statemented Support Academies,Schools Funding,Castle School Education Trust,989.70, 25-Jan-2019
541,Revenue,CAHD,Statemented Support Academies,Schools Funding,Castle School Education Trust,1378.83, 25-Jan-2019
542,Revenue,CAHD,Statemented Support Academies,Schools Funding,Castle School Education Trust,1201.95, 25-Jan-2019
543,Revenue,CAHD,Statemented Support Academies,Schools Funding,Castle School Education Trust,659.53, 25-Jan-2019
544,Revenue,CAHD,Statemented Support Academies,Schools Funding,Castle School Education Trust,718.49, 25-Jan-2019
545,Revenue,CAHD,Statemented Support Academies,Schools Funding,Castle School Education Trust,1284.49, 25-Jan-2019
546,Revenue,CAHD,Academy Resource Base Funding,Other Public Bodies,Castle School Education Trust,1175.88, 23-Jan-2019
547,Revenue,CAHD,Academy Resource Base Funding,Other Public Bodies,Castle School Education Trust,1702.96, 23-Jan-2019
548,Revenue,CAHD,Academy Resource Base Funding,Other Public Bodies,Castle School Education Trust,2189.53, 23-Jan-2019
549,Revenue,CAHD,Academy Resource Base Funding,Other Public Bodies,Castle School Education Trust,1702.96, 23-Jan-2019
550,Revenue,CAHD,Academy Resource Base Funding,Other Public Bodies,Castle School Education Trust,1702.96, 23-Jan-2019
551,Revenue,CAHD,Academy Resource Base Funding,Other Public Bodies,Castle School Education Trust,1702.96, 23-Jan-2019
552,Revenue,CAHD,Academy Resource Base Funding,Other Public Bodies,Castle School Education Trust,1702.96, 23-Jan-2019
553,Revenue,CAHD,Statemented Support Academies,Schools Funding,Castle School Education Trust,612.37, 25-Jan-2019
554,Revenue,CAHD,Statemented Support Academies,Schools Funding,Castle School Education Trust,1626.45, 25-Jan-2019
555,Revenue,CAHD,Statemented Support Academies,Schools Funding,Castle School Education Trust,812.83, 25-Jan-2019
556,Revenue,CAHD,Statemented Support Academies,Schools Funding,Castle School Education Trust,1013.28, 25-Jan-2019
557,Revenue,CAHD,Statemented Support Academies,Schools Funding,Castle School Education Trust,989.70, 25-Jan-2019
558,Revenue,CAHD,Statemented Support Academies,Schools Funding,Castle School Education Trust,1048.66, 25-Jan-2019
559,Revenue,CAHD,Statemented Support Academies,Schools Funding,Castle School Education Trust,1331.66, 25-Jan-2019
560,Revenue,CAHD,Statemented Support Academies,Schools Funding,Castle School Education Trust,1697.20, 25-Jan-2019
561,Revenue,CAHD,Statemented Support Academies,Schools Funding,Castle School Education Trust,1166.58, 25-Jan-2019
562,Revenue,CAHD,Statemented Support Academies,Schools Funding,Castle School Education Trust,1614.66, 25-Jan-2019
563,Revenue,CAHD,Statemented Support Academies,Schools Funding,Castle School Education Trust,918.95, 25-Jan-2019
564,Revenue,CAHD,Home Care - Elderly - North,Day Care / Social Activities,Causeway House,1389.44, 15-Jan-2019
565,Revenue,CAHD,Homecare - Central,Day Care / Social Activities,Causeway House,1110.24, 15-Jan-2019
566,Revenue,CAHD,Home Care - Elderly - South,Day Care / Social Activities,Causeway House,5130.52, 15-Jan-2019
567,Revenue,CAHD,18-25 Year Olds,Day Care / Social Activities,Causeway House,4311.60, 15-Jan-2019
568,Revenue,CAHD,Homecare - Central,Day Care / Social Activities,Causeway House,2775.60, 15-Jan-2019
569,Revenue,CAHD,Homecare - Central,Day Care / Social Activities,Causeway House,1665.36, 15-Jan-2019
570,Revenue,CAHD,Home Care - Elderly - North,Day Care / Social Activities,Causeway House,3150.88, 15-Jan-2019
571,Revenue,CAHD,Home Care - Elderly - North,Day Care / Social Activities,Causeway House,4694.24, 15-Jan-2019
572,Revenue,CAHD,Homecare - Central,Day Care / Social Activities,Causeway House,2775.60, 15-Jan-2019
573,Revenue,CAHD,Home Care - Elderly - North,Day Care / Social Activities,Causeway House,3075.56, 15-Jan-2019
574,Revenue,CAHD,Home Care - Elderly - North,Day Care / Social Activities,Causeway House,555.12, 15-Jan-2019
575,Revenue,CAHD,CSC - Adoption Support Fund,Post Adoption,CCS Adoption,800.00, 29-Jan-2019
576,Revenue,CAHD,Bed Purchasing - Elderly S117- North,Permanent Residential,Challenge House,2511.12, 15-Jan-2019
577,Revenue,CAHD,Bed Purchasing - South,Respite Emergency - Residential,Challenge House,2315.16, 15-Jan-2019
578,Revenue,CAHD,Bed Purchasing - North,Permanent Residential,Challenge House,2180.68, 15-Jan-2019
579,Revenue,CAHD,Bed Purchasing - North,Permanent Residential,Challenge House,2315.16, 15-Jan-2019
580,Revenue,CAHD,Bed Purchasing - North,Permanent Residential,Challenge House,2039.72, 15-Jan-2019
581,Revenue,CAHD,Bed Purchasing - South,Respite Planned - Residential,Challenge House,2077.20, 15-Jan-2019
582,Revenue,CAHD,Bed Purchasing - North,Permanent Nursing,Challenge House,3057.00, 15-Jan-2019
583,Revenue,CAHD,Bed Purchasing - Elderly S117- North,Permanent Nursing,Challenge House,2339.64, 15-Jan-2019
584,Revenue,CAHD,Bed Purchasing - North,Permanent Residential,Challenge House,2343.72, 15-Jan-2019
585,Revenue,CAHD,Bed Purchasing - North,Permanent Residential,Challenge House,2683.84, 15-Jan-2019
586,Revenue,CAHD,Bed Purchasing - North,Permanent Nursing,Challenge House,2511.12, 15-Jan-2019
587,Revenue,CAHD,Bed Purchasing - North,Permanent Nursing,Challenge House,2339.64, 15-Jan-2019
588,Revenue,CAHD,Bed Purchasing - North,Permanent Nursing,Challenge House,3057.00, 15-Jan-2019
589,Revenue,CAHD,Bed Purchasing - Central,Permanent Residential,Challenge House,3000.00, 15-Jan-2019
590,Revenue,CAHD,Bed Purchasing - South,Permanent Nursing,Charnwood House Nursing Home,9835.60, 15-Jan-2019
591,Revenue,CAHD,Homecare - Central,Other Small Contracts,Cherish Able Care Limited,1612.70, 04-Jan-2019
592,Revenue,CAHD,Home Care - Elderly - South,Other Small Contracts,Cherish Able Care Limited,5203.32, 04-Jan-2019
593,Revenue,CAHD,Homecare - Central,Other Small Contracts,Cherish Able Care Limited,1571.98, 07-Jan-2019
594,Revenue,CAHD,Home Care - Elderly - South,Other Small Contracts,Cherish Able Care Limited,5212.46, 07-Jan-2019
595,Revenue,CAHD,Homecare - Central,Other Small Contracts,Cherish Able Care Limited,1552.66, 11-Jan-2019
596,Revenue,CAHD,Home Care - Elderly - South,Other Small Contracts,Cherish Able Care Limited,3984.38, 11-Jan-2019
597,Revenue,CAHD,Homecare - Central,Other Small Contracts,Cherish Able Care Limited,1551.62, 15-Jan-2019
598,Revenue,CAHD,Home Care - Elderly - South,Other Small Contracts,Cherish Able Care Limited,4782.88, 15-Jan-2019
599,Revenue,CAHD,Homecare - Central,Other Small Contracts,Cherish Able Care Limited,1561.80, 23-Jan-2019
600,Revenue,CAHD,Home Care - Elderly - South,Other Small Contracts,Cherish Able Care Limited,4773.74, 23-Jan-2019
601,Revenue,CAHD,Bed purchasing - S28A Under 65 - South,Permanent Residential,Chescombe Lodge,9535.60, 15-Jan-2019
602,Revenue,CAHD,CSC - Agency Fostering,Foster Parent Allowances,Child Care Bureau Limited,3928.01, 23-Jan-2019
603,Revenue,CAHD,CSC - LAC Placements,"Holidays, Outings & Visits",Childrens Contact Services Ltd,450.00, 21-Jan-2019
604,Revenue,CAHD,18-25 Year Olds,Other Small Contracts,Cintre,52.36, 15-Jan-2019
605,Revenue,CAHD,Homecare - Central,Other Small Contracts,Cintre,414.12, 15-Jan-2019
606,Revenue,CAHD,Home Care - Elderly - South,Other Small Contracts,Cintre,1090.04, 15-Jan-2019
607,Revenue,CAHD,18-25 Year Olds,Other Small Contracts,Cintre,104.72, 15-Jan-2019
608,Revenue,CAHD,Homecare - Central,Other Small Contracts,Cintre,418.88, 15-Jan-2019
609,Revenue,CAHD,Home Care - Elderly - South,Other Small Contracts,Cintre,1080.52, 15-Jan-2019
610,Revenue,CAHD,18-25 Year Olds,Other Small Contracts,Cintre,52.36, 15-Jan-2019
611,Revenue,CAHD,Homecare - Central,Other Small Contracts,Cintre,209.44, 15-Jan-2019
612,Revenue,CAHD,Home Care - Elderly - South,Other Small Contracts,Cintre,285.60, 15-Jan-2019
613,Revenue,CAHD,18-25 Year Olds,Other Small Contracts,Cintre,104.72, 15-Jan-2019
614,Revenue,CAHD,Homecare - Central,Other Small Contracts,Cintre,152.32, 15-Jan-2019
615,Revenue,CAHD,Home Care - Elderly - South,Other Small Contracts,Cintre,476.00, 15-Jan-2019
616,Revenue,CAHD,18-25 Year Olds,Other Small Contracts,Cintre,104.72, 23-Jan-2019
617,Revenue,CAHD,Homecare - Central,Other Small Contracts,Cintre,304.64, 23-Jan-2019
618,Revenue,CAHD,Home Care - Elderly - South,Other Small Contracts,Cintre,990.08, 23-Jan-2019
619,Revenue,CAHD,Learning Difficulties,Premises Hire,Circadian Trust,585.00, 18-Jan-2019
620,Revenue,CAHD,Learning Difficulties,Premises Hire,Circadian Trust,585.00, 29-Jan-2019
621,Revenue,CAHD,Flexible Homelessness Support Grant,Fees - General,Civica UK Limited,5250.00, 21-Jan-2019
622,Revenue,CAHD,MH Purchasing - Younger,Permanent Residential,Claro Homes,2803.60, 15-Jan-2019
623,Revenue,CAHD,Section 117 Placements MH Younger,Permanent Residential,Claro Homes,3471.28, 15-Jan-2019
624,Revenue,CAHD,Bed Purchasing - North,Permanent Nursing,Claro Homes,5555.04, 15-Jan-2019
625,Revenue,CAHD,Bed Purchasing - North,Permanent Nursing,Claro Homes,3240.44, 15-Jan-2019
626,Revenue,CAHD,Bed Purchasing - South,Permanent Residential,Cleeve Lodge,3085.71, 15-Jan-2019
627,Revenue,CAHD,Bed Purchasing - South,Permanent Residential,Cleeve Lodge,514.29, 15-Jan-2019
628,Revenue,CAHD,Bed Purchasing - South,Permanent Residential,Cleeve Lodge,3600.00, 15-Jan-2019
629,Revenue,CAHD,Bed Purchasing - South,Permanent Residential,Cleeve Lodge,1277.76, 15-Jan-2019
630,Revenue,CAHD,Bed Purchasing - South,Permanent Residential,Cleeve Lodge,2853.20, 15-Jan-2019
631,Revenue,CAHD,Bed Purchasing - South,Permanent Residential,Cleeve Lodge,3014.16, 15-Jan-2019
632,Revenue,CAHD,Bed Purchasing - South,Permanent Residential,Cleeve Lodge,3220.04, 15-Jan-2019
633,Revenue,CAHD,Bed Purchasing - South,Permanent Residential,Cleeve Lodge,2787.08, 15-Jan-2019
634,Revenue,CAHD,Bed Purchasing - South,Permanent Residential,Cleeve Lodge,2573.84, 15-Jan-2019
635,Revenue,CAHD,Independent Special Placements - Pre 16,Other Private Contractors,Clifton College,8140.00, 10-Jan-2019
636,Revenue,CAHD,Home Care - Elderly - North,Other Small Contracts,Clover Health and Home Care Ltd,2610.72, 11-Jan-2019
637,Revenue,CAHD,Homecare - Central,Other Small Contracts,Clover Health and Home Care Ltd,1465.94, 28-Jan-2019
638,Revenue,CAHD,Bed Purchasing - South,Permanent Residential,Collingwood Residential Home,2760.00, 15-Jan-2019
639,Revenue,CAHD,Bed Purchasing - South,Permanent Residential,Collingwood Residential Home,2188.76, 15-Jan-2019
640,Revenue,CAHD,Bed Purchasing - South,Permanent Residential,Collingwood Residential Home,2364.08, 15-Jan-2019
641,Revenue,CAHD,Bed Purchasing - South,Permanent Residential,Collingwood Residential Home,2547.52, 15-Jan-2019
642,Revenue,CAHD,Bed Purchasing - South,Permanent Residential,Collingwood Residential Home,2445.60, 15-Jan-2019
643,Revenue,CAHD,Bed Purchasing - South,Permanent Residential,Collingwood Residential Home,2920.00, 15-Jan-2019
644,Revenue,CAHD,Bed Purchasing - South,Permanent Residential,Collingwood Residential Home,1981.43, 15-Jan-2019
645,Revenue,CAHD,CSC - Ofsted Work,Conference Expenses,Compass Career Opportunities Ltd,8829.00, 11-Jan-2019
646,Revenue,CAHD,Homecare - Central,Other Small Contracts,Complimenting Care and Training Services (CCTS) Lt,1240.09, 04-Jan-2019
647,Revenue,CAHD,Home Care - Elderly - South,Other Small Contracts,Complimenting Care and Training Services (CCTS) Lt,124.47, 04-Jan-2019
648,Revenue,CAHD,Home Care - Elderly - North,Day Care / Social Activities,Complimenting Care and Training Services (CCTS) Lt,55.32, 04-Jan-2019
649,Revenue,CAHD,Home Care - Elderly - North,Other Small Contracts,Complimenting Care and Training Services (CCTS) Lt,10363.28, 04-Jan-2019
650,Revenue,CAHD,Homecare - Central,Other Small Contracts,Complimenting Care and Training Services (CCTS) Lt,1170.94, 11-Jan-2019
651,Revenue,CAHD,Home Care - Elderly - South,Other Small Contracts,Complimenting Care and Training Services (CCTS) Lt,110.64, 11-Jan-2019
652,Revenue,CAHD,Home Care - Elderly - North,Day Care / Social Activities,Complimenting Care and Training Services (CCTS) Lt,87.59, 11-Jan-2019
653,Revenue,CAHD,Home Care - Elderly - North,Other Small Contracts,Complimenting Care and Training Services (CCTS) Lt,10178.88, 11-Jan-2019
654,Revenue,CAHD,Bed and Breakfast,Bed & Breakfast,Connolly & Callaghan Limited,791.00, 23-Jan-2019
655,Revenue,CAHD,Bed and Breakfast,Bed & Breakfast,Connolly & Callaghan Limited,791.00, 24-Jan-2019
656,Revenue,CAHD,Bed and Breakfast,Bed & Breakfast,Connolly & Callaghan Limited,497.00, 24-Jan-2019
657,Revenue,CAHD,Bed and Breakfast,Bed & Breakfast,Connolly & Callaghan Limited,791.00, 24-Jan-2019
658,Revenue,CAHD,Bed and Breakfast,Bed & Breakfast,Connolly & Callaghan Limited,581.00, 24-Jan-2019
659,Revenue,CAHD,Bed and Breakfast,Bed & Breakfast,Connolly & Callaghan Limited,791.00, 24-Jan-2019
660,Revenue,CAHD,Bed and Breakfast,Bed & Breakfast,Connolly & Callaghan Limited,840.00, 15-Jan-2019
661,Revenue,CAHD,CSC - Section 17 - NORTH,Bed & Breakfast,Connolly & Callaghan Limited,497.00, 30-Jan-2019
662,Revenue,CAHD,Bed and Breakfast,Bed & Breakfast,Connolly & Callaghan Limited,581.00, 15-Jan-2019
663,Revenue,CAHD,Bed and Breakfast,Bed & Breakfast,Connolly & Callaghan Limited,623.00, 15-Jan-2019
664,Revenue,CAHD,CSC - Section 17 - NORTH,Bed & Breakfast,Connolly & Callaghan Limited,497.00, 29-Jan-2019
665,Revenue,CAHD,Bed and Breakfast,Bed & Breakfast,Connolly & Callaghan Limited,455.00, 15-Jan-2019
666,Revenue,CAHD,Bed and Breakfast,Bed & Breakfast,Connolly & Callaghan Limited,581.00, 24-Jan-2019
667,Revenue,CAHD,Bed and Breakfast,Bed & Breakfast,Connolly & Callaghan Limited,798.00, 24-Jan-2019
668,Revenue,CAHD,Bed and Breakfast,Other Supplies & Services,Connolly & Callaghan Limited,658.00, 24-Jan-2019
669,Revenue,CAHD,Bed and Breakfast,Bed & Breakfast,Connolly & Callaghan Limited,798.00, 24-Jan-2019
670,Revenue,CAHD,Bed and Breakfast,Bed & Breakfast,Connolly & Callaghan Limited,455.00, 24-Jan-2019
671,Revenue,CAHD,Bed and Breakfast,Bed & Breakfast,Connolly & Callaghan Limited,448.00, 04-Jan-2019
672,Revenue,CAHD,Bed and Breakfast,Bed & Breakfast,Connolly & Callaghan Limited,455.00, 04-Jan-2019
673,Revenue,CAHD,CSC - Section 17 - NORTH,Bed & Breakfast,Connolly & Callaghan Limited,497.00, 30-Jan-2019
674,Revenue,CAHD,Bed and Breakfast,Bed & Breakfast,Connolly & Callaghan Limited,623.00, 10-Jan-2019
675,Revenue,CAHD,Bed and Breakfast,Bed & Breakfast,Connolly & Callaghan Limited,455.00, 10-Jan-2019
676,Revenue,CAHD,Bed and Breakfast,Bed & Breakfast,Connolly & Callaghan Limited,497.00, 04-Jan-2019
677,Revenue,CAHD,Bed and Breakfast,Bed & Breakfast,Connolly & Callaghan Limited,532.00, 04-Jan-2019
678,Revenue,CAHD,Bed and Breakfast,Bed & Breakfast,Connolly & Callaghan Limited,805.00, 03-Jan-2019
679,Revenue,CAHD,Bed and Breakfast,Bed & Breakfast,Connolly & Callaghan Limited,490.00, 04-Jan-2019
680,Revenue,CAHD,Bed and Breakfast,Bed & Breakfast,Connolly & Callaghan Limited,497.00, 04-Jan-2019
681,Revenue,CAHD,Bed and Breakfast,Bed & Breakfast,Connolly & Callaghan Limited,448.00, 04-Jan-2019
682,Revenue,CAHD,Bed and Breakfast,Bed & Breakfast,Connolly & Callaghan Limited,574.00, 04-Jan-2019
683,Revenue,CAHD,Bed and Breakfast,Bed & Breakfast,Connolly & Callaghan Limited,581.00, 03-Jan-2019
684,Revenue,CAHD,Bed and Breakfast,Bed & Breakfast,Connolly & Callaghan Limited,455.00, 03-Jan-2019
685,Revenue,CAHD,Bed and Breakfast,Bed & Breakfast,Connolly & Callaghan Limited,448.00, 04-Jan-2019
686,Revenue,CAHD,Bed and Breakfast,Bed & Breakfast,Connolly & Callaghan Limited,455.00, 04-Jan-2019
687,Revenue,CAHD,Bed and Breakfast,Bed & Breakfast,Connolly & Callaghan Limited,497.00, 10-Jan-2019
688,Revenue,CAHD,Bed and Breakfast,Bed & Breakfast,Connolly & Callaghan Limited,581.00, 10-Jan-2019
689,Revenue,CAHD,Bed and Breakfast,Bed & Breakfast,Connolly & Callaghan Limited,455.00, 14-Jan-2019
690,Revenue,CAHD,Bed and Breakfast,Bed & Breakfast,Connolly & Callaghan Limited,504.00, 02-Jan-2019
691,Revenue,CAHD,CSC - Section 17 - NORTH,Bed & Breakfast,Connolly & Callaghan Limited,497.00, 21-Jan-2019
692,Revenue,CAHD,Bed and Breakfast,Bed & Breakfast,Connolly & Callaghan Limited,623.00, 08-Jan-2019
693,Revenue,CAHD,Bed and Breakfast,Bed & Breakfast,Connolly & Callaghan Limited,455.00, 10-Jan-2019
694,Revenue,CAHD,Bed and Breakfast,Bed & Breakfast,Connolly & Callaghan Limited,497.00, 08-Jan-2019
695,Revenue,CAHD,Bed and Breakfast,Bed & Breakfast,Connolly & Callaghan Limited,532.00, 08-Jan-2019
696,Revenue,CAHD,Bed and Breakfast,Bed & Breakfast,Connolly & Callaghan Limited,805.00, 08-Jan-2019
697,Revenue,CAHD,Bed and Breakfast,Bed & Breakfast,Connolly & Callaghan Limited,490.00, 08-Jan-2019
698,Revenue,CAHD,Bed and Breakfast,Bed & Breakfast,Connolly & Callaghan Limited,448.00, 08-Jan-2019
699,Revenue,CAHD,Bed and Breakfast,Bed & Breakfast,Connolly & Callaghan Limited,574.00, 08-Jan-2019
700,Revenue,CAHD,Bed and Breakfast,Bed & Breakfast,Connolly & Callaghan Limited,581.00, 09-Jan-2019
701,Revenue,CAHD,Bed and Breakfast,Bed & Breakfast,Connolly & Callaghan Limited,455.00, 09-Jan-2019
702,Revenue,CAHD,Bed and Breakfast,Bed & Breakfast,Connolly & Callaghan Limited,448.00, 09-Jan-2019
703,Revenue,CAHD,Bed and Breakfast,Bed & Breakfast,Connolly & Callaghan Limited,455.00, 14-Jan-2019
704,Revenue,CAHD,Bed and Breakfast,Bed & Breakfast,Connolly & Callaghan Limited,497.00, 10-Jan-2019
705,Revenue,CAHD,Bed and Breakfast,Bed & Breakfast,Connolly & Callaghan Limited,581.00, 09-Jan-2019
706,Revenue,CAHD,Bed and Breakfast,Bed & Breakfast,Connolly & Callaghan Limited,426.00, 09-Jan-2019
707,Revenue,CAHD,Bed and Breakfast,Bed & Breakfast,Connolly & Callaghan Limited,455.00, 09-Jan-2019
708,Revenue,CAHD,Bed and Breakfast,Bed & Breakfast,Connolly & Callaghan Limited,504.00, 10-Jan-2019
709,Revenue,CAHD,Bed and Breakfast,Bed & Breakfast,Connolly & Callaghan Limited,588.00, 10-Jan-2019
710,Revenue,CAHD,Bed and Breakfast,Bed & Breakfast,Connolly & Callaghan Limited,606.00, 09-Jan-2019
711,Revenue,CAHD,Bed and Breakfast,Bed & Breakfast,Connolly & Callaghan Limited,623.00, 14-Jan-2019
712,Revenue,CAHD,Bed and Breakfast,Bed & Breakfast,Connolly & Callaghan Limited,497.00, 14-Jan-2019
713,Revenue,CAHD,Bed and Breakfast,Bed & Breakfast,Connolly & Callaghan Limited,532.00, 14-Jan-2019
714,Revenue,CAHD,Bed and Breakfast,Bed & Breakfast,Connolly & Callaghan Limited,805.00, 15-Jan-2019
715,Revenue,CAHD,Bed and Breakfast,Bed & Breakfast,Connolly & Callaghan Limited,490.00, 14-Jan-2019
716,Revenue,CAHD,Bed and Breakfast,Bed & Breakfast,Connolly & Callaghan Limited,448.00, 14-Jan-2019
717,Revenue,CAHD,Bed and Breakfast,Bed & Breakfast,Connolly & Callaghan Limited,574.00, 14-Jan-2019
718,Revenue,CAHD,Bed and Breakfast,Bed & Breakfast,Connolly & Callaghan Limited,581.00, 15-Jan-2019
719,Revenue,CAHD,Bed and Breakfast,Bed & Breakfast,Connolly & Callaghan Limited,455.00, 15-Jan-2019
720,Revenue,CAHD,Bed and Breakfast,Bed & Breakfast,Connolly & Callaghan Limited,448.00, 14-Jan-2019
721,Revenue,CAHD,Bed and Breakfast,Bed & Breakfast,Connolly & Callaghan Limited,455.00, 15-Jan-2019
722,Revenue,CAHD,Bed and Breakfast,Bed & Breakfast,Connolly & Callaghan Limited,497.00, 15-Jan-2019
723,Revenue,CAHD,Bed and Breakfast,Bed & Breakfast,Connolly & Callaghan Limited,581.00, 15-Jan-2019
724,Revenue,CAHD,Bed and Breakfast,Bed & Breakfast,Connolly & Callaghan Limited,497.00, 14-Jan-2019
725,Revenue,CAHD,Bed and Breakfast,Bed & Breakfast,Connolly & Callaghan Limited,455.00, 15-Jan-2019
726,Revenue,CAHD,Bed and Breakfast,Bed & Breakfast,Connolly & Callaghan Limited,504.00, 15-Jan-2019
727,Revenue,CAHD,Bed and Breakfast,Bed & Breakfast,Connolly & Callaghan Limited,588.00, 15-Jan-2019
728,Revenue,CAHD,Bed and Breakfast,Bed & Breakfast,Connolly & Callaghan Limited,707.00, 15-Jan-2019
729,Revenue,CAHD,CSC - Section 17 - NORTH,Bed & Breakfast,Connolly & Callaghan Limited,497.00, 30-Jan-2019
730,Revenue,CAHD,Bed and Breakfast,Bed & Breakfast,Connolly & Callaghan Limited,623.00, 22-Jan-2019
731,Revenue,CAHD,Bed and Breakfast,Bed & Breakfast,Connolly & Callaghan Limited,497.00, 23-Jan-2019
732,Revenue,CAHD,Bed and Breakfast,Bed & Breakfast,Connolly & Callaghan Limited,490.00, 23-Jan-2019
733,Revenue,CAHD,Bed and Breakfast,Bed & Breakfast,Connolly & Callaghan Limited,448.00, 23-Jan-2019
734,Revenue,CAHD,Bed and Breakfast,Bed & Breakfast,Connolly & Callaghan Limited,448.00, 23-Jan-2019
735,Revenue,CAHD,Bed and Breakfast,Bed & Breakfast,Connolly & Callaghan Limited,455.00, 23-Jan-2019
736,Revenue,CAHD,Bed and Breakfast,Bed & Breakfast,Connolly & Callaghan Limited,497.00, 22-Jan-2019
737,Revenue,CAHD,Bed and Breakfast,Bed & Breakfast,Connolly & Callaghan Limited,581.00, 23-Jan-2019
738,Revenue,CAHD,Bed and Breakfast,Bed & Breakfast,Connolly & Callaghan Limited,497.00, 23-Jan-2019
739,Revenue,CAHD,Bed and Breakfast,Bed & Breakfast,Connolly & Callaghan Limited,504.00, 22-Jan-2019
740,Revenue,CAHD,Bed and Breakfast,Bed & Breakfast,Connolly & Callaghan Limited,588.00, 23-Jan-2019
741,Revenue,CAHD,Bed and Breakfast,Bed & Breakfast,Connolly & Callaghan Limited,707.00, 23-Jan-2019
742,Revenue,CAHD,CSC - Section 17 - NORTH,Bed & Breakfast,Connolly & Callaghan Limited,497.00, 28-Jan-2019
743,Revenue,CAHD,Bed and Breakfast,Bed & Breakfast,Connolly & Callaghan Limited,623.00, 30-Jan-2019
744,Revenue,CAHD,Bed and Breakfast,Bed & Breakfast,Connolly & Callaghan Limited,497.00, 30-Jan-2019
745,Revenue,CAHD,Bed and Breakfast,Bed & Breakfast,Connolly & Callaghan Limited,532.00, 31-Jan-2019
746,Revenue,CAHD,Bed and Breakfast,Bed & Breakfast,Connolly & Callaghan Limited,805.00, 31-Jan-2019
747,Revenue,CAHD,Bed and Breakfast,Bed & Breakfast,Connolly & Callaghan Limited,448.00, 30-Jan-2019
748,Revenue,CAHD,Bed and Breakfast,Bed & Breakfast,Connolly & Callaghan Limited,574.00, 31-Jan-2019
749,Revenue,CAHD,Bed and Breakfast,Bed & Breakfast,Connolly & Callaghan Limited,581.00, 30-Jan-2019
750,Revenue,CAHD,Bed and Breakfast,Bed & Breakfast,Connolly & Callaghan Limited,455.00, 31-Jan-2019
751,Revenue,CAHD,Bed and Breakfast,Bed & Breakfast,Connolly & Callaghan Limited,448.00, 31-Jan-2019
752,Revenue,CAHD,Bed and Breakfast,Bed & Breakfast,Connolly & Callaghan Limited,455.00, 30-Jan-2019
753,Revenue,CAHD,Bed and Breakfast,Bed & Breakfast,Connolly & Callaghan Limited,497.00, 30-Jan-2019
754,Revenue,CAHD,Bed and Breakfast,Bed & Breakfast,Connolly & Callaghan Limited,581.00, 30-Jan-2019
755,Revenue,CAHD,Bed and Breakfast,Bed & Breakfast,Connolly & Callaghan Limited,535.00, 31-Jan-2019
756,Revenue,CAHD,Bed and Breakfast,Bed & Breakfast,Connolly & Callaghan Limited,504.00, 30-Jan-2019
757,Revenue,CAHD,Bed and Breakfast,Bed & Breakfast,Connolly & Callaghan Limited,588.00, 31-Jan-2019
758,Revenue,CAHD,Bed and Breakfast,Bed & Breakfast,Connolly & Callaghan Limited,707.00, 30-Jan-2019
759,Revenue,CAHD,CSC - Section 17 - NORTH,Bed & Breakfast,Connolly & Callaghan Limited,497.00, 30-Jan-2019
760,Revenue,CAHD,Independent Special Placements - Post 16,Other Private Contractors,Cotswold Chine School,46897.50, 04-Jan-2019
761,Revenue,CAHD,Independent Special Placements - Pre 16,Other Private Contractors,Cotswold Chine School,22815.00, 04-Jan-2019
762,Revenue,CAHD,Alexandra Way,Cleaning & Domestic Services,Countrywide Healthcare Supplies Ltd,551.14, 11-Jan-2019
763,Revenue,CAHD,Alexandra Way,Cleaning & Domestic Services,Countrywide Healthcare Supplies Ltd,701.63, 17-Jan-2019
764,Revenue,CAHD,Alexandra Way,Cleaning & Domestic Services,Countrywide Healthcare Supplies Ltd,473.89, 24-Jan-2019
765,Revenue,CAHD,Home Care - Elderly - South,Supported Living,Craegmoor SYI Bristol & Wiltshire Priory,887.04, 15-Jan-2019
766,Revenue,CAHD,Bed Purchasing - North,Permanent Residential,Cream Iii Ltd,8441.40, 15-Jan-2019
767,Revenue,CAHD,Bed purchasing - S28A Under 65 - South,Permanent Residential,Creedy Court,10349.56, 15-Jan-2019
768,Revenue,CAHD,Bed purchasing - S28A Under 65 - South,Permanent Residential,Creedy Court,8696.20, 15-Jan-2019
769,Revenue,CAHD,Bed Purchasing - North,Permanent Residential,Creedy Court,13724.60, 15-Jan-2019
770,Revenue,CAHD,EARLY YEARS DISABILITY  ACCES FUND,Preventative Assistance,Crossways Pre-School,615.00, 07-Jan-2019
771,Revenue,CAHD,Training Budget - Children`s Social Serv,Training Expenses,Cruidin Training and Consultancy Ltd,3163.75, 25-Jan-2019
772,Revenue,CAHD,Training Budget - Children`s Social Serv,Training Expenses,Cruidin Training and Consultancy Ltd,2104.50, 09-Jan-2019
773,Revenue,CAHD,SRRP,Other Supplies & Services,Curo Care & Support,950.21, 31-Jan-2019
774,Revenue,CAHD,Bed Purchasing - South,Permanent Residential,Daneswood,11981.24, 15-Jan-2019
775,Revenue,CAHD,Home Care - Elderly - South,Day Care / Social Activities,Daneswood,1380.32, 15-Jan-2019
776,Revenue,CAHD,Bed Purchasing - North,Permanent Residential,Daneswood,10023.44, 15-Jan-2019
777,Revenue,CAHD,Bed Purchasing - Elderly S117- North,Permanent Nursing,Danshell Healthcare Group,10617.44, 15-Jan-2019
778,Revenue,CAHD,Jointly Funded H&SC Packages,Permanent Nursing,Danshell Healthcare Group,1575.48, 15-Jan-2019
779,Revenue,CAHD,Learning Difficulties PSL,Other Supplies & Services,Individual,2400.00, 24-Jan-2019
780,Revenue,CAHD,Children Centres - North Locality,Printing & Stationery,De Lage Landen Leasing Ltd,1117.23, 10-Jan-2019
781,Revenue,CAHD,Children Centres - South Locality,Printing & Stationery,De Lage Landen Leasing Ltd,1117.22, 10-Jan-2019
782,Revenue,CAHD,CSC - Adoption Support Fund,Post Adoption,Individual,1608.00, 11-Jan-2019
783,Revenue,CAHD,Adult Safeguarding Board,Complaints External Expenses,Individual,527.00, 11-Jan-2019
784,Revenue,CAHD,Post 16 High Needs Placements,Other Private Contractors,Derwen College,17183.37, 10-Jan-2019
785,Revenue,CAHD,Home Care - Elderly - South,Supported Living,Design House,2599.08, 15-Jan-2019
786,Revenue,CAHD,Home Care - Elderly - South,Supported Living,Design House,2991.52, 15-Jan-2019
787,Revenue,CAHD,Home Care - Elderly - South,Supported Living,Design House,3059.64, 15-Jan-2019
788,Revenue,CAHD,Home Care - Elderly - South,Supported Living,Design House,2923.40, 15-Jan-2019
789,Revenue,CAHD,Home Care - Elderly - South,Day Care / Social Activities,Design House,501.92, 15-Jan-2019
790,Revenue,CAHD,18-25 Year Olds,Supported Living,Design House,603.24, 15-Jan-2019
791,Revenue,CAHD,18-25 Year Olds,Supported Living,Design House,603.24, 15-Jan-2019
792,Revenue,CAHD,Homecare - Central,Day Care / Social Activities,Design House,2383.88, 15-Jan-2019
793,Revenue,CAHD,Home Care - Elderly - South,Day Care / Social Activities,Design House,752.88, 15-Jan-2019
794,Revenue,CAHD,Home Care - Elderly - South,Supported Living,Design House,2577.00, 15-Jan-2019
795,Revenue,CAHD,Home Care - Elderly - South,Supported Living,Design House,2577.00, 15-Jan-2019
796,Revenue,CAHD,Home Care - Elderly - South,Supported Living,Design House,2099.16, 15-Jan-2019
797,Revenue,CAHD,Home Care - Elderly - South,Day Care / Social Activities,Design House,501.92, 15-Jan-2019
798,Revenue,CAHD,Home Care - Elderly - South,Supported Living,Design House,1852.24, 15-Jan-2019
799,Revenue,CAHD,Home Care - Elderly - South,Supported Living,Design House,2457.84, 15-Jan-2019
800,Revenue,CAHD,Home Care - Elderly - South,Supported Living,Design House,4206.60, 15-Jan-2019
801,Revenue,CAHD,Home Care - Elderly - South,Supported Living,Design House,2982.96, 15-Jan-2019
802,Revenue,CAHD,Home Care - Elderly - South,Day Care / Social Activities,Design House,1470.80, 15-Jan-2019
803,Revenue,CAHD,Home Care - Elderly - South,Supported Living,Design House,2856.40, 15-Jan-2019
804,Revenue,CAHD,Home Care - Elderly - South,Supported Living,Design House,2483.44, 15-Jan-2019
805,Revenue,CAHD,Home Care - Elderly - South,Supported Living,Design House,2204.80, 15-Jan-2019
806,Revenue,CAHD,Home Care - Elderly - South,Supported Living,Design House,2204.80, 15-Jan-2019
807,Revenue,CAHD,Home Care - Elderly - South,Supported Living,Dimensions  Suite 2,1858.68, 15-Jan-2019
808,Revenue,CAHD,Home Care - Elderly - South,Supported Living,Dimensions  Suite 2,1857.88, 15-Jan-2019
809,Revenue,CAHD,Home Care - Elderly - South,Supported Living,Dimensions  Suite 2,1857.88, 15-Jan-2019
810,Revenue,CAHD,Home Care - Elderly - South,Supported Living,Dimensions  Suite 2,1857.88, 15-Jan-2019
811,Revenue,CAHD,Supported Living (S28a) South,Supported Living,Dimensions  Suite 2,1857.88, 15-Jan-2019
812,Revenue,CAHD,Bed Purchasing - South,Permanent Residential,Dimensions  Suite 2,5498.80, 15-Jan-2019
813,Revenue,CAHD,Bed Purchasing - South,Permanent Residential,Dimensions  Suite 2,2740.36, 15-Jan-2019
814,Revenue,CAHD,CSC - Section 17 SOUTH,Leaving Care,DNA Worldwide Group,527.00, 02-Jan-2019
815,Revenue,CAHD,Training - Adult Services,Training Expenses,Do The Write Thing,850.00, 10-Jan-2019
816,Revenue,CAHD,Training - Adult Services,Training Expenses,Do The Write Thing,850.00, 07-Jan-2019
817,Revenue,CAHD,Homecare - Central,Other Small Contracts,DoCare Limited,13887.32, 23-Jan-2019
818,Revenue,CAHD,Home Care - Elderly - South,Day Care / Social Activities,DoCare Limited,73.78, 23-Jan-2019
819,Revenue,CAHD,Home Care - Elderly - South,Other Small Contracts,DoCare Limited,691.84, 23-Jan-2019
820,Revenue,CAHD,Home Care - Elderly - North,Day Care / Social Activities,DoCare Limited,256.15, 23-Jan-2019
821,Revenue,CAHD,Home Care - Elderly - North,Other Small Contracts,DoCare Limited,5204.22, 23-Jan-2019
822,Revenue,CAHD,Homecare - Central,Other Small Contracts,DoCare Limited,11901.69, 25-Jan-2019
823,Revenue,CAHD,Home Care - Elderly - South,Day Care / Social Activities,DoCare Limited,21.08, 25-Jan-2019
824,Revenue,CAHD,Home Care - Elderly - South,Other Small Contracts,DoCare Limited,467.65, 25-Jan-2019
825,Revenue,CAHD,Home Care - Elderly - North,Day Care / Social Activities,DoCare Limited,294.30, 25-Jan-2019
826,Revenue,CAHD,Home Care - Elderly - North,Other Small Contracts,DoCare Limited,4758.68, 25-Jan-2019
827,Revenue,CAHD,Bed Purchasing - North,Permanent Residential,Dorset Limited,6640.44, 15-Jan-2019
828,Revenue,CAHD,Statemented Support Academies,Schools Funding,Downend School,1119.41, 25-Jan-2019
829,Revenue,CAHD,Statemented Support Academies,Schools Funding,Downend School,541.62, 25-Jan-2019
830,Revenue,CAHD,Statemented Support Academies,Schools Funding,Downend School,1166.58, 25-Jan-2019
831,Revenue,CAHD,Statemented Support Academies,Schools Funding,Downend School,565.20, 25-Jan-2019
832,Revenue,CAHD,Statemented Support Academies,Schools Funding,Downend School,1154.78, 25-Jan-2019
833,Revenue,CAHD,Statemented Support Academies,Schools Funding,Downend School,942.53, 25-Jan-2019
834,Revenue,CAHD,Statemented Support Academies,Schools Funding,Downend School,671.33, 25-Jan-2019
835,Revenue,CAHD,Statemented Support Academies,Schools Funding,Downend School,612.37, 25-Jan-2019
836,Revenue,CAHD,Statemented Support Academies,Schools Funding,Downend School,1249.12, 25-Jan-2019
837,Revenue,CAHD,Statemented Support Academies,Schools Funding,Downend School,694.91, 25-Jan-2019
838,Revenue,CAHD,Statemented Support Academies,Schools Funding,Downend School,600.58, 25-Jan-2019
839,Revenue,CAHD,Statemented Support Academies,Schools Funding,Downend School,553.41, 25-Jan-2019
840,Revenue,CAHD,Statemented Support Academies,Schools Funding,Downend School,1850.49, 25-Jan-2019
841,Revenue,CAHD,Statemented Support Academies,Schools Funding,Downend School,553.41, 25-Jan-2019
842,Revenue,CAHD,Social Lettings Agency,Other Supplies & Services,Individual,605.64, 24-Jan-2019
843,Revenue,CAHD,Bed Purchasing - Central,Permanent Nursing,Drakes Court,2832.84, 15-Jan-2019
844,Revenue,CAHD,South Glos Users in South Glos Homes,Permanent Nursing,Drakes Court,632.64, 15-Jan-2019
845,Revenue,CAHD,Bed Purchasing - Central,Permanent Nursing,Drakes Court,2017.24, 15-Jan-2019
846,Revenue,CAHD,South Glos Users in South Glos Homes,Permanent Nursing,Drakes Court,632.64, 15-Jan-2019
847,Revenue,CAHD,Bed Purchasing - South,Permanent Nursing,Drakes Court,2832.84, 15-Jan-2019
848,Revenue,CAHD,South Glos Users in South Glos Homes,Permanent Nursing,Drakes Court,632.64, 15-Jan-2019
849,Revenue,CAHD,South Glos Users in South Glos Homes,Permanent Nursing,Drakes Court,632.64, 15-Jan-2019
850,Revenue,CAHD,Bed Purchasing - Central,Permanent Nursing,Drakes Court,2832.84, 15-Jan-2019
851,Revenue,CAHD,South Glos Users in South Glos Homes,Permanent Nursing,Drakes Court,632.64, 15-Jan-2019
852,Revenue,CAHD,South Glos Users in South Glos Homes,Permanent Nursing,Drakes Court,632.64, 15-Jan-2019
853,Revenue,CAHD,Bed Purchasing - North,Permanent Nursing,Drakes Court,2017.24, 15-Jan-2019
854,Revenue,CAHD,Bed Purchasing - Central,Permanent Nursing,Drakes Court,2017.24, 15-Jan-2019
855,Revenue,CAHD,South Glos Users in South Glos Homes,Permanent Nursing,Drakes Court,632.64, 15-Jan-2019
856,Revenue,CAHD,Bed Purchasing - Central,Permanent Nursing,Drakes Court,5162.86, 15-Jan-2019
857,Revenue,CAHD,Bed Purchasing - Central,Permanent Nursing,Drakes Court,2780.00, 15-Jan-2019
858,Revenue,CAHD,South Glos Users in South Glos Homes,Permanent Nursing,Drakes Court,632.64, 15-Jan-2019
859,Revenue,CAHD,South Glos Users in South Glos Homes,Permanent Nursing,Drakes Court,632.64, 15-Jan-2019
860,Revenue,CAHD,South Glos Users in South Glos Homes,Permanent Nursing,Drakes Court,632.64, 15-Jan-2019
861,Revenue,CAHD,South Glos Users in South Glos Homes,Permanent Nursing,Drakes Court,632.64, 15-Jan-2019
862,Revenue,CAHD,Bed Purchasing - North,Permanent Residential,Drakes Court,1956.04, 15-Jan-2019
863,Revenue,CAHD,Bed Purchasing - South,Permanent Nursing,Drakes Court,2780.00, 15-Jan-2019
864,Revenue,CAHD,South Glos Users in South Glos Homes,Permanent Nursing,Drakes Court,632.64, 15-Jan-2019
865,Revenue,CAHD,Bed Purchasing - Central,Permanent Residential,Drakes Court,2780.00, 15-Jan-2019
866,Revenue,CAHD,South Glos Users in South Glos Homes,Permanent Nursing,Drakes Court,632.64, 15-Jan-2019
867,Revenue,CAHD,South Glos Users in South Glos Homes,Permanent Nursing,Drakes Court,632.64, 15-Jan-2019
868,Revenue,CAHD,MH Purchasing - Younger,Permanent Residential,Dunraven House,7151.85, 15-Jan-2019
869,Revenue,CAHD,MH Purchasing - Younger,Fees & Charges Income - General,Dunraven House,1533.75, 15-Jan-2019
870,Revenue,CAHD,CSC - Care Leavers Independent Living,Independent Living,Individual,525.85, 18-Jan-2019
871,Revenue,CAHD,CSC - Care Leavers Support Costs,Furniture & Fittings Loose,Individual,1008.00, 18-Jan-2019
872,Revenue,CAHD,Bed and Breakfast,Bed & Breakfast,Individual,522.00, 08-Jan-2019
873,Revenue,CAHD,Bed and Breakfast,Bed & Breakfast,Individual,672.00, 09-Jan-2019
874,Revenue,CAHD,Bed and Breakfast,Bed & Breakfast,Individual,567.00, 08-Jan-2019
875,Revenue,CAHD,Bed and Breakfast,Bed & Breakfast,Individual,672.00, 08-Jan-2019
876,Revenue,CAHD,Bed and Breakfast,Bed & Breakfast,Individual,567.00, 08-Jan-2019
877,Revenue,CAHD,Bed and Breakfast,Bed & Breakfast,Individual,672.00, 15-Jan-2019
878,Revenue,CAHD,Bed and Breakfast,Bed & Breakfast,Individual,567.00, 15-Jan-2019
879,Revenue,CAHD,Bed and Breakfast,Bed & Breakfast,Individual,672.00, 22-Jan-2019
880,Revenue,CAHD,Bed and Breakfast,Bed & Breakfast,Individual,567.00, 22-Jan-2019
881,Revenue,CAHD,Bed and Breakfast,Bed & Breakfast,Individual,672.00, 30-Jan-2019
882,Revenue,CAHD,Bed and Breakfast,Bed & Breakfast,Individual,567.00, 31-Jan-2019
883,Revenue,CAHD,Bed Purchasing - North,Permanent Residential,East Court,2698.80, 15-Jan-2019
884,Revenue,CAHD,Minor Adaptations Service,Operational Equipment,Eastman & Co (Timber) Limited,1081.88, 25-Jan-2019
885,Revenue,CAHD,Care Management Team - North,Long Service Awards,Edenred (UK Group) Limited,561.00, 18-Jan-2019
886,Revenue,CAHD,Bed Purchasing - South,Permanent Residential,Edgecumbe Lodge,2600.00, 15-Jan-2019
887,Revenue,CAHD,Bed Purchasing - South,Permanent Residential,Edgecumbe Lodge,2600.00, 15-Jan-2019
888,Revenue,CAHD,Bed Purchasing - South,Permanent Residential,Edgecumbe Lodge,2148.68, 15-Jan-2019
889,Revenue,CAHD,Bed Purchasing - Elderly S117- North,Permanent Residential,Edgecumbe Lodge,2656.00, 15-Jan-2019
890,Revenue,CAHD,Bed Purchasing - South,Permanent Residential,Edgecumbe Lodge,2220.00, 15-Jan-2019
891,Revenue,CAHD,Bed Purchasing - South,Permanent Residential,Edgecumbe Lodge,2600.00, 15-Jan-2019
892,Revenue,CAHD,Bed Purchasing - South,Permanent Residential,Edgecumbe Lodge,2220.00, 15-Jan-2019
893,Revenue,CAHD,Bed Purchasing - South,Permanent Residential,Edgecumbe Lodge,2445.60, 15-Jan-2019
894,Revenue,CAHD,Bed Purchasing - South,Permanent Residential,Edgecumbe Lodge,2477.40, 15-Jan-2019
895,Revenue,CAHD,Bed Purchasing - North,Permanent Residential,Edgecumbe Lodge,2197.20, 15-Jan-2019
896,Revenue,CAHD,Bed Purchasing - South,Permanent Residential,Edgemont House Ltd,2600.00, 15-Jan-2019
897,Revenue,CAHD,Bed Purchasing - South,Permanent Residential,Edgemont House Ltd,1948.72, 15-Jan-2019
898,Revenue,CAHD,Bed Purchasing - North,Respite Planned - Residential,Edgemont House Ltd,857.14, 15-Jan-2019
899,Revenue,CAHD,Bed Purchasing - North,Respite Planned - Residential,Edgemont House Ltd,750.00, 15-Jan-2019
900,Revenue,CAHD,Bed Purchasing - North,Respite Planned - Residential,Edgemont House Ltd,750.00, 15-Jan-2019
901,Revenue,CAHD,South Glos Users in South Glos Homes,Permanent Nursing,Edgemont View Nursing Home,632.64, 15-Jan-2019
902,Revenue,CAHD,Bed Purchasing - South,Permanent Nursing,Edgemont View Nursing Home,3464.60, 15-Jan-2019
903,Revenue,CAHD,South Glos Users in South Glos Homes,Permanent Nursing,Edgemont View Nursing Home,632.64, 15-Jan-2019
904,Revenue,CAHD,South Glos Users in South Glos Homes,Permanent Nursing,Edgemont View Nursing Home,632.64, 15-Jan-2019
905,Revenue,CAHD,South Glos Users in South Glos Homes,Permanent Nursing,Edgemont View Nursing Home,632.64, 15-Jan-2019
906,Revenue,CAHD,Bed Purchasing - South,Permanent Nursing,Edgemont View Nursing Home,982.14, 15-Jan-2019
907,Revenue,CAHD,Bed Purchasing - South,Permanent Nursing,Edgemont View Nursing Home,1517.86, 15-Jan-2019
908,Revenue,CAHD,Bed Purchasing - Southmead Hospital,Permanent Nursing,Edgemont View Nursing Home,4032.64, 15-Jan-2019
909,Revenue,CAHD,Bed Purchasing - Southmead Hospital,Permanent Nursing,Edgemont View Nursing Home,3744.59, 15-Jan-2019
910,Revenue,CAHD,South Glos Users in South Glos Homes,Permanent Nursing,Edgemont View Nursing Home,632.64, 15-Jan-2019
911,Revenue,CAHD,South Glos Users in South Glos Homes,Permanent Nursing,Edgemont View Nursing Home,632.64, 15-Jan-2019
912,Revenue,CAHD,South Glos Users in South Glos Homes,Permanent Nursing,Edgemont View Nursing Home,632.64, 15-Jan-2019
913,Revenue,CAHD,South Glos Users in South Glos Homes,Permanent Nursing,Edgemont View Nursing Home,632.64, 15-Jan-2019
914,Revenue,CAHD,Bed Purchasing - South,Permanent Nursing,Edgemont View Nursing Home,3200.00, 15-Jan-2019
915,Revenue,CAHD,South Glos Users in South Glos Homes,Permanent Nursing,Edgemont View Nursing Home,2033.49, 15-Jan-2019
916,Revenue,CAHD,South Glos Users in South Glos Homes,Permanent Nursing,Edgemont View Nursing Home,632.64, 15-Jan-2019
917,Revenue,CAHD,Bed Purchasing - South,Permanent Nursing,Edgemont View Nursing Home,2934.72, 15-Jan-2019
918,Revenue,CAHD,South Glos Users in South Glos Homes,Permanent Nursing,Edgemont View Nursing Home,632.64, 15-Jan-2019
919,Revenue,CAHD,South Glos Users in South Glos Homes,Permanent Nursing,Edgemont View Nursing Home,632.64, 15-Jan-2019
920,Revenue,CAHD,South Glos Users in South Glos Homes,Permanent Nursing,Edgemont View Nursing Home,632.64, 15-Jan-2019
921,Revenue,CAHD,South Glos Users in South Glos Homes,Permanent Nursing,Edgemont View Nursing Home,2056.08, 15-Jan-2019
922,Revenue,CAHD,South Glos Users in South Glos Homes,Permanent Nursing,Edgemont View Nursing Home,632.64, 15-Jan-2019
923,Revenue,CAHD,South Glos Users in South Glos Homes,Permanent Nursing,Edgemont View Nursing Home,632.64, 15-Jan-2019
924,Revenue,CAHD,Bed Purchasing - South,Permanent Nursing,Edgemont View Nursing Home,2934.72, 15-Jan-2019
925,Revenue,CAHD,South Glos Users in South Glos Homes,Permanent Nursing,Edgemont View Nursing Home,632.64, 15-Jan-2019
926,Revenue,CAHD,Bed Purchasing - South,Permanent Nursing,Edgemont View Nursing Home,2310.44, 15-Jan-2019
927,Revenue,CAHD,South Glos Users in South Glos Homes,Permanent Nursing,Edgemont View Nursing Home,632.64, 15-Jan-2019
928,Revenue,CAHD,South Glos Users in South Glos Homes,Permanent Nursing,Edgemont View Nursing Home,632.64, 15-Jan-2019
929,Revenue,CAHD,South Glos Users in South Glos Homes,Permanent Nursing,Edgemont View Nursing Home,632.64, 15-Jan-2019
930,Revenue,CAHD,Bed and Breakfast,Bed & Breakfast,Elim Housing Association Limited,595.00, 04-Jan-2019
931,Revenue,CAHD,Bed and Breakfast,Bed & Breakfast,Elim Housing Association Limited,980.00, 10-Jan-2019
932,Revenue,CAHD,Bed and Breakfast,Bed & Breakfast,Elim Housing Association Limited,875.00, 10-Jan-2019
933,Revenue,CAHD,Bed and Breakfast,Bed & Breakfast,Elim Housing Association Limited,710.00, 15-Jan-2019
934,Revenue,CAHD,Home Care - Elderly - South,Day Care / Social Activities,Elite Home Care Ltd,185.20, 07-Jan-2019
935,Revenue,CAHD,Home Care - Elderly - South,Other Small Contracts,Elite Home Care Ltd,5713.42, 07-Jan-2019
936,Revenue,CAHD,Home Care - Elderly - North,Other Small Contracts,Elite Home Care Ltd,810.25, 07-Jan-2019
937,Revenue,CAHD,Home Care - Elderly - South,Day Care / Social Activities,Elite Home Care Ltd,152.79, 11-Jan-2019
938,Revenue,CAHD,Home Care - Elderly - South,Other Small Contracts,Elite Home Care Ltd,5259.68, 11-Jan-2019
939,Revenue,CAHD,Home Care - Elderly - North,Other Small Contracts,Elite Home Care Ltd,708.39, 11-Jan-2019
940,Revenue,CAHD,Home Care - Elderly - South,Day Care / Social Activities,Elite Home Care Ltd,180.57, 15-Jan-2019
941,Revenue,CAHD,Home Care - Elderly - South,Other Small Contracts,Elite Home Care Ltd,5931.03, 15-Jan-2019
942,Revenue,CAHD,Home Care - Elderly - North,Other Small Contracts,Elite Home Care Ltd,717.65, 15-Jan-2019
943,Revenue,CAHD,Home Care - Elderly - South,Day Care / Social Activities,Elite Home Care Ltd,185.20, 23-Jan-2019
944,Revenue,CAHD,Home Care - Elderly - South,Other Small Contracts,Elite Home Care Ltd,6065.30, 23-Jan-2019
945,Revenue,CAHD,Home Care - Elderly - North,Other Small Contracts,Elite Home Care Ltd,731.54, 23-Jan-2019
946,Revenue,CAHD,Home Care - Elderly - South,Day Care / Social Activities,Elite Home Care Ltd,185.20, 29-Jan-2019
947,Revenue,CAHD,Home Care - Elderly - South,Other Small Contracts,Elite Home Care Ltd,5444.88, 29-Jan-2019
948,Revenue,CAHD,Home Care - Elderly - North,Other Small Contracts,Elite Home Care Ltd,731.54, 29-Jan-2019
949,Revenue,CAHD,CSC - Vinney Green Secure Unit,Training Expenses,Elysium Healthcare Ltd,5000.00, 25-Jan-2019
950,Revenue,CAHD,Special ISB,Other Public Bodies,Enable Trust,1540.83, 23-Jan-2019
951,Revenue,CAHD,Special ISB,Other Public Bodies,Enable Trust,892.04, 23-Jan-2019
952,Revenue,CAHD,Special ISB,Other Public Bodies,Enable Trust,892.04, 23-Jan-2019
953,Revenue,CAHD,Special ISB,Other Public Bodies,Enable Trust,1540.83, 23-Jan-2019
954,Revenue,CAHD,Special ISB,Other Public Bodies,Enable Trust,1175.88, 23-Jan-2019
955,Revenue,CAHD,Special ISB,Other Public Bodies,Enable Trust,1175.88, 23-Jan-2019
956,Revenue,CAHD,Special ISB,Other Public Bodies,Enable Trust,1175.88, 23-Jan-2019
957,Revenue,CAHD,Special ISB,Other Public Bodies,Enable Trust,1540.83, 23-Jan-2019
958,Revenue,CAHD,Special ISB,Other Public Bodies,Enable Trust,892.04, 23-Jan-2019
959,Revenue,CAHD,Special ISB,Other Public Bodies,Enable Trust,1175.88, 23-Jan-2019
960,Revenue,CAHD,Special ISB,Other Public Bodies,Enable Trust,1175.88, 23-Jan-2019
961,Revenue,CAHD,Special ISB,Other Public Bodies,Enable Trust,1175.88, 23-Jan-2019
962,Revenue,CAHD,Special ISB,Other Public Bodies,Enable Trust,648.71, 23-Jan-2019
963,Revenue,CAHD,Special ISB,Other Public Bodies,Enable Trust,1540.83, 23-Jan-2019
964,Revenue,CAHD,Special ISB,Other Public Bodies,Enable Trust,648.71, 23-Jan-2019
965,Revenue,CAHD,Special ISB,Other Public Bodies,Enable Trust,1013.74, 23-Jan-2019
966,Revenue,CAHD,Special ISB,Other Public Bodies,Enable Trust,892.04, 23-Jan-2019
967,Revenue,CAHD,Special ISB,Other Public Bodies,Enable Trust,1175.88, 23-Jan-2019
968,Revenue,CAHD,Special ISB,Other Public Bodies,Enable Trust,1175.88, 23-Jan-2019
969,Revenue,CAHD,Special ISB,Other Public Bodies,Enable Trust,1013.74, 23-Jan-2019
970,Revenue,CAHD,Special ISB,Other Public Bodies,Enable Trust,892.04, 23-Jan-2019
971,Revenue,CAHD,Special ISB,Other Public Bodies,Enable Trust,1175.88, 23-Jan-2019
972,Revenue,CAHD,Special ISB,Other Public Bodies,Enable Trust,1540.83, 23-Jan-2019
973,Revenue,CAHD,Special ISB,Other Public Bodies,Enable Trust,648.71, 23-Jan-2019
974,Revenue,CAHD,Special ISB,Other Public Bodies,Enable Trust,892.04, 23-Jan-2019
975,Revenue,CAHD,Special ISB,Other Public Bodies,Enable Trust,1540.83, 23-Jan-2019
976,Revenue,CAHD,Special ISB,Other Public Bodies,Enable Trust,1175.88, 23-Jan-2019
977,Revenue,CAHD,Special ISB,Other Public Bodies,Enable Trust,892.04, 23-Jan-2019
978,Revenue,CAHD,Special ISB,Other Public Bodies,Enable Trust,1175.88, 23-Jan-2019
979,Revenue,CAHD,Special ISB,Other Public Bodies,Enable Trust,892.04, 23-Jan-2019
980,Revenue,CAHD,Special ISB,Other Public Bodies,Enable Trust,2189.53, 23-Jan-2019
981,Revenue,CAHD,Special ISB,Other Public Bodies,Enable Trust,1175.88, 23-Jan-2019
982,Revenue,CAHD,Special ISB,Other Public Bodies,Enable Trust,2712.76, 23-Jan-2019
983,Revenue,CAHD,Special ISB,Other Public Bodies,Enable Trust,1175.88, 23-Jan-2019
984,Revenue,CAHD,Special ISB,Other Public Bodies,Enable Trust,1175.88, 23-Jan-2019
985,Revenue,CAHD,Special ISB,Other Public Bodies,Enable Trust,1175.88, 23-Jan-2019
986,Revenue,CAHD,Special ISB,Other Public Bodies,Enable Trust,1175.88, 23-Jan-2019
987,Revenue,CAHD,Special ISB,Other Public Bodies,Enable Trust,1175.88, 23-Jan-2019
988,Revenue,CAHD,Special ISB,Other Public Bodies,Enable Trust,1540.83, 23-Jan-2019
989,Revenue,CAHD,Special ISB,Other Public Bodies,Enable Trust,1175.88, 23-Jan-2019
990,Revenue,CAHD,Special ISB,Other Public Bodies,Enable Trust,1540.83, 23-Jan-2019
991,Revenue,CAHD,Special ISB,Other Public Bodies,Enable Trust,1175.88, 23-Jan-2019
992,Revenue,CAHD,Special ISB,Other Public Bodies,Enable Trust,892.04, 23-Jan-2019
993,Revenue,CAHD,Special ISB,Other Public Bodies,Enable Trust,1540.83, 23-Jan-2019
994,Revenue,CAHD,Special ISB,Other Public Bodies,Enable Trust,1175.88, 23-Jan-2019
995,Revenue,CAHD,Special ISB,Other Public Bodies,Enable Trust,1540.83, 23-Jan-2019
996,Revenue,CAHD,Special ISB,Other Public Bodies,Enable Trust,1175.88, 23-Jan-2019
997,Revenue,CAHD,Special ISB,Other Public Bodies,Enable Trust,892.04, 23-Jan-2019
998,Revenue,CAHD,Special ISB,Other Public Bodies,Enable Trust,1175.88, 23-Jan-2019
999,Revenue,CAHD,Special ISB,Other Public Bodies,Enable Trust,1175.88, 23-Jan-2019
1000,Revenue,CAHD,Special ISB,Other Public Bodies,Enable Trust,1175.88, 23-Jan-2019
1001,Revenue,CAHD,Special ISB,Other Public Bodies,Enable Trust,1540.83, 23-Jan-2019
1002,Revenue,CAHD,Special ISB,Other Public Bodies,Enable Trust,892.04, 23-Jan-2019
1003,Revenue,CAHD,Special ISB,Other Public Bodies,Enable Trust,1175.88, 23-Jan-2019
1004,Revenue,CAHD,Special ISB,Other Public Bodies,Enable Trust,1175.88, 23-Jan-2019
1005,Revenue,CAHD,Special ISB,Other Public Bodies,Enable Trust,1540.83, 23-Jan-2019
1006,Revenue,CAHD,Special ISB,Other Public Bodies,Enable Trust,892.04, 23-Jan-2019
1007,Revenue,CAHD,Special ISB,Other Public Bodies,Enable Trust,892.04, 23-Jan-2019
1008,Revenue,CAHD,Special ISB,Other Public Bodies,Enable Trust,892.04, 23-Jan-2019
1009,Revenue,CAHD,Special ISB,Other Public Bodies,Enable Trust,1540.83, 23-Jan-2019
1010,Revenue,CAHD,Special ISB,Other Public Bodies,Enable Trust,1540.83, 23-Jan-2019
1011,Revenue,CAHD,Special ISB,Other Public Bodies,Enable Trust,648.71, 23-Jan-2019
1012,Revenue,CAHD,Special ISB,Other Public Bodies,Enable Trust,1175.88, 23-Jan-2019
1013,Revenue,CAHD,Special ISB,Other Public Bodies,Enable Trust,1540.83, 23-Jan-2019
1014,Revenue,CAHD,School Grants - Special,Other Public Bodies,Enable Trust,8863.00, 23-Jan-2019
1015,Revenue,CAHD,Special ISB,Other Public Bodies,Enable Trust,4246.60, 25-Jan-2019
1016,Revenue,CAHD,Special ISB,Other Public Bodies,Enable Trust,4109.60, 25-Jan-2019
1017,Revenue,CAHD,Special ISB,Other Public Bodies,Enable Trust,4246.60, 25-Jan-2019
1018,Revenue,CAHD,Special ISB,Other Public Bodies,Enable Trust,4246.60, 25-Jan-2019
1019,Revenue,CAHD,Special ISB,Other Public Bodies,Enable Trust,892.04, 23-Jan-2019
1020,Revenue,CAHD,Special ISB,Other Public Bodies,Enable Trust,1702.96, 23-Jan-2019
1021,Revenue,CAHD,Special ISB,Other Public Bodies,Enable Trust,1508.33, 23-Jan-2019
1022,Revenue,CAHD,Special ISB,Other Public Bodies,Enable Trust,1175.88, 23-Jan-2019
1023,Revenue,CAHD,Special ISB,Other Public Bodies,Enable Trust,1175.88, 23-Jan-2019
1024,Revenue,CAHD,Special ISB,Other Public Bodies,Enable Trust,892.04, 23-Jan-2019
1025,Revenue,CAHD,Special ISB,Other Public Bodies,Enable Trust,1175.88, 23-Jan-2019
1026,Revenue,CAHD,Special ISB,Other Public Bodies,Enable Trust,1175.88, 23-Jan-2019
1027,Revenue,CAHD,Special ISB,Other Public Bodies,Enable Trust,1175.88, 23-Jan-2019
1028,Revenue,CAHD,Special ISB,Other Public Bodies,Enable Trust,1175.88, 23-Jan-2019
1029,Revenue,CAHD,Special ISB,Other Public Bodies,Enable Trust,1175.88, 23-Jan-2019
1030,Revenue,CAHD,Special ISB,Other Public Bodies,Enable Trust,892.04, 23-Jan-2019
1031,Revenue,CAHD,Special ISB,Other Public Bodies,Enable Trust,1175.88, 23-Jan-2019
1032,Revenue,CAHD,Special ISB,Other Public Bodies,Enable Trust,648.71, 23-Jan-2019
1033,Revenue,CAHD,Special ISB,Other Public Bodies,Enable Trust,1702.96, 23-Jan-2019
1034,Revenue,CAHD,Special ISB,Other Public Bodies,Enable Trust,1702.96, 23-Jan-2019
1035,Revenue,CAHD,Special ISB,Other Public Bodies,Enable Trust,1540.83, 23-Jan-2019
1036,Revenue,CAHD,Special ISB,Other Public Bodies,Enable Trust,1702.96, 23-Jan-2019
1037,Revenue,CAHD,Special ISB,Other Public Bodies,Enable Trust,892.04, 23-Jan-2019
1038,Revenue,CAHD,Special ISB,Other Public Bodies,Enable Trust,2513.89, 23-Jan-2019
1039,Revenue,CAHD,Special ISB,Other Public Bodies,Enable Trust,892.04, 23-Jan-2019
1040,Revenue,CAHD,Special ISB,Other Public Bodies,Enable Trust,1702.96, 23-Jan-2019
1041,Revenue,CAHD,Special ISB,Other Public Bodies,Enable Trust,1508.33, 23-Jan-2019
1042,Revenue,CAHD,Special ISB,Other Public Bodies,Enable Trust,1175.88, 23-Jan-2019
1043,Revenue,CAHD,Special ISB,Other Public Bodies,Enable Trust,1702.96, 23-Jan-2019
1044,Revenue,CAHD,Special ISB,Other Public Bodies,Enable Trust,1175.88, 23-Jan-2019
1045,Revenue,CAHD,Special ISB,Other Public Bodies,Enable Trust,2189.53, 23-Jan-2019
1046,Revenue,CAHD,Special ISB,Other Public Bodies,Enable Trust,1175.88, 23-Jan-2019
1047,Revenue,CAHD,Special ISB,Other Public Bodies,Enable Trust,1702.96, 23-Jan-2019
1048,Revenue,CAHD,Special ISB,Other Public Bodies,Enable Trust,1702.96, 23-Jan-2019
1049,Revenue,CAHD,Special ISB,Other Public Bodies,Enable Trust,1175.88, 23-Jan-2019
1050,Revenue,CAHD,Special ISB,Other Public Bodies,Enable Trust,892.04, 23-Jan-2019
1051,Revenue,CAHD,Special ISB,Other Public Bodies,Enable Trust,892.04, 23-Jan-2019
1052,Revenue,CAHD,Special ISB,Other Public Bodies,Enable Trust,1702.96, 23-Jan-2019
1053,Revenue,CAHD,Special ISB,Other Public Bodies,Enable Trust,892.04, 23-Jan-2019
1054,Revenue,CAHD,Special ISB,Other Public Bodies,Enable Trust,1175.88, 23-Jan-2019
1055,Revenue,CAHD,Special ISB,Other Public Bodies,Enable Trust,1175.88, 23-Jan-2019
1056,Revenue,CAHD,Special ISB,Other Public Bodies,Enable Trust,1013.74, 23-Jan-2019
1057,Revenue,CAHD,Special ISB,Other Public Bodies,Enable Trust,1702.96, 23-Jan-2019
1058,Revenue,CAHD,Special ISB,Other Public Bodies,Enable Trust,892.04, 23-Jan-2019
1059,Revenue,CAHD,Special ISB,Other Public Bodies,Enable Trust,1175.88, 23-Jan-2019
1060,Revenue,CAHD,Special ISB,Other Public Bodies,Enable Trust,1175.88, 23-Jan-2019
1061,Revenue,CAHD,Special ISB,Other Public Bodies,Enable Trust,1702.96, 23-Jan-2019
1062,Revenue,CAHD,Special ISB,Other Public Bodies,Enable Trust,2189.53, 23-Jan-2019
1063,Revenue,CAHD,Special ISB,Other Public Bodies,Enable Trust,2189.53, 23-Jan-2019
1064,Revenue,CAHD,Special ISB,Other Public Bodies,Enable Trust,892.04, 23-Jan-2019
1065,Revenue,CAHD,Special ISB,Other Public Bodies,Enable Trust,1702.96, 23-Jan-2019
1066,Revenue,CAHD,Special ISB,Other Public Bodies,Enable Trust,892.04, 23-Jan-2019
1067,Revenue,CAHD,Special ISB,Other Public Bodies,Enable Trust,892.04, 23-Jan-2019
1068,Revenue,CAHD,Special ISB,Other Public Bodies,Enable Trust,892.04, 23-Jan-2019
1069,Revenue,CAHD,Special ISB,Other Public Bodies,Enable Trust,2189.53, 23-Jan-2019
1070,Revenue,CAHD,Special ISB,Other Public Bodies,Enable Trust,1175.88, 23-Jan-2019
1071,Revenue,CAHD,Special ISB,Other Public Bodies,Enable Trust,2189.53, 23-Jan-2019
1072,Revenue,CAHD,Special ISB,Other Public Bodies,Enable Trust,1175.88, 23-Jan-2019
1073,Revenue,CAHD,Special ISB,Other Public Bodies,Enable Trust,1175.88, 23-Jan-2019
1074,Revenue,CAHD,Special ISB,Other Public Bodies,Enable Trust,1175.88, 23-Jan-2019
1075,Revenue,CAHD,Special ISB,Other Public Bodies,Enable Trust,892.04, 23-Jan-2019
1076,Revenue,CAHD,Special ISB,Other Public Bodies,Enable Trust,1175.88, 23-Jan-2019
1077,Revenue,CAHD,Special ISB,Other Public Bodies,Enable Trust,1175.88, 23-Jan-2019
1078,Revenue,CAHD,Special ISB,Other Public Bodies,Enable Trust,892.04, 23-Jan-2019
1079,Revenue,CAHD,Special ISB,Other Public Bodies,Enable Trust,892.04, 23-Jan-2019
1080,Revenue,CAHD,Special ISB,Other Public Bodies,Enable Trust,892.04, 23-Jan-2019
1081,Revenue,CAHD,Special ISB,Other Public Bodies,Enable Trust,1175.88, 23-Jan-2019
1082,Revenue,CAHD,Special ISB,Other Public Bodies,Enable Trust,1175.88, 23-Jan-2019
1083,Revenue,CAHD,Special ISB,Other Public Bodies,Enable Trust,1175.88, 23-Jan-2019
1084,Revenue,CAHD,Special ISB,Other Public Bodies,Enable Trust,1175.88, 23-Jan-2019
1085,Revenue,CAHD,Special ISB,Other Public Bodies,Enable Trust,1508.33, 23-Jan-2019
1086,Revenue,CAHD,Special ISB,Other Public Bodies,Enable Trust,1175.88, 23-Jan-2019
1087,Revenue,CAHD,Special ISB,Other Public Bodies,Enable Trust,1702.96, 23-Jan-2019
1088,Revenue,CAHD,Special ISB,Other Public Bodies,Enable Trust,1999.58, 23-Jan-2019
1089,Revenue,CAHD,Special ISB,Other Public Bodies,Enable Trust,1175.88, 23-Jan-2019
1090,Revenue,CAHD,Special ISB,Other Public Bodies,Enable Trust,892.04, 23-Jan-2019
1091,Revenue,CAHD,Special ISB,Other Public Bodies,Enable Trust,1702.96, 23-Jan-2019
1092,Revenue,CAHD,Special ISB,Other Public Bodies,Enable Trust,1702.96, 23-Jan-2019
1093,Revenue,CAHD,Special ISB,Other Public Bodies,Enable Trust,2189.53, 23-Jan-2019
1094,Revenue,CAHD,Special ISB,Other Public Bodies,Enable Trust,1702.96, 23-Jan-2019
1095,Revenue,CAHD,Special ISB,Other Public Bodies,Enable Trust,2513.89, 23-Jan-2019
1096,Revenue,CAHD,Special ISB,Other Public Bodies,Enable Trust,1175.88, 23-Jan-2019
1097,Revenue,CAHD,Special ISB,Other Public Bodies,Enable Trust,892.04, 23-Jan-2019
1098,Revenue,CAHD,Special ISB,Other Public Bodies,Enable Trust,1175.88, 23-Jan-2019
1099,Revenue,CAHD,Special ISB,Other Public Bodies,Enable Trust,1175.88, 23-Jan-2019
1100,Revenue,CAHD,Special ISB,Other Public Bodies,Enable Trust,892.04, 23-Jan-2019
1101,Revenue,CAHD,Special ISB,Other Public Bodies,Enable Trust,892.04, 23-Jan-2019
1102,Revenue,CAHD,Special ISB,Other Public Bodies,Enable Trust,892.04, 23-Jan-2019
1103,Revenue,CAHD,Special ISB,Other Public Bodies,Enable Trust,1175.88, 23-Jan-2019
1104,Revenue,CAHD,Special ISB,Other Public Bodies,Enable Trust,892.04, 23-Jan-2019
1105,Revenue,CAHD,Special ISB,Other Public Bodies,Enable Trust,1702.96, 23-Jan-2019
1106,Revenue,CAHD,School Grants - Special,Other Public Bodies,Enable Trust,7878.00, 23-Jan-2019
1107,Revenue,CAHD,Special ISB,Other Public Bodies,Enable Trust,1643.84, 25-Jan-2019
1108,Revenue,CAHD,Special ISB,Other Public Bodies,Enable Trust,1698.64, 25-Jan-2019
1109,Revenue,CAHD,Special ISB,Other Public Bodies,Enable Trust,1698.64, 25-Jan-2019
1110,Revenue,CAHD,Placements OLA Special Schools and RB,Other L.A.'s - General,Excalibur Academies Trust T/A,1013.17, 25-Jan-2019
1111,Revenue,CAHD,Homeless - Private Sector Leasing,Prop.Serv. General Repairs,Express Property Services Limited,1724.01, 08-Jan-2019
1112,Revenue,CAHD,Extra Care Housing,Private & Voluntary Home Care,Extra Care Charitable Trust,26335.39, 07-Jan-2019
1113,Revenue,CAHD,Bed Purchasing - North,Permanent Residential,Eyre Court,3632.00, 15-Jan-2019
1114,Revenue,CAHD,South Glos Users in South Glos Homes,Permanent Nursing,Fairview Court,632.64, 15-Jan-2019
1115,Revenue,CAHD,South Glos Users in South Glos Homes,Permanent Nursing,Fairview Court,632.64, 15-Jan-2019
1116,Revenue,CAHD,Bed Purchasing - Southmead Hospital,Permanent Nursing,Fairview Court,3721.24, 15-Jan-2019
1117,Revenue,CAHD,Bed Purchasing - Southmead Hospital,Permanent Nursing,Fairview Court,2525.13, 15-Jan-2019
1118,Revenue,CAHD,South Glos Users in South Glos Homes,Permanent Nursing,Fairview Court,632.64, 15-Jan-2019
1119,Revenue,CAHD,Bed Purchasing - Southmead Hospital,Permanent Nursing,Fairview Court,3721.24, 15-Jan-2019
1120,Revenue,CAHD,South Glos Users in South Glos Homes,Permanent Nursing,Fairview Court,1242.69, 15-Jan-2019
1121,Revenue,CAHD,South Glos Users in South Glos Homes,Permanent Nursing,Fairview Court,632.64, 15-Jan-2019
1122,Revenue,CAHD,South Glos Users in South Glos Homes,Permanent Nursing,Fairview Court,632.64, 15-Jan-2019
1123,Revenue,CAHD,Bed Purchasing - Southmead Hospital,Permanent Nursing,Fairview Court,3721.08, 15-Jan-2019
1124,Revenue,CAHD,Bed Purchasing - South,Permanent Nursing,Fairview Court,3464.60, 15-Jan-2019
1125,Revenue,CAHD,South Glos Users in South Glos Homes,Permanent Nursing,Fairview Court,632.64, 15-Jan-2019
1126,Revenue,CAHD,Bed Purchasing - South,Permanent Nursing,Fairview Court,3721.24, 15-Jan-2019
1127,Revenue,CAHD,South Glos Users in South Glos Homes,Permanent Nursing,Fairview Court,1965.70, 15-Jan-2019
1128,Revenue,CAHD,South Glos Users in South Glos Homes,Permanent Nursing,Fairview Court,632.64, 15-Jan-2019
1129,Revenue,CAHD,Bed Purchasing - South,Permanent Nursing,Fairview Court,3423.84, 15-Jan-2019
1130,Revenue,CAHD,South Glos Users in South Glos Homes,Permanent Nursing,Fairview Court,632.64, 15-Jan-2019
1131,Revenue,CAHD,South Glos Users in South Glos Homes,Permanent Nursing,Fairview Court,632.64, 15-Jan-2019
1132,Revenue,CAHD,South Glos Users in South Glos Homes,Permanent Nursing,Fairview Court,2530.56, 15-Jan-2019
1133,Revenue,CAHD,South Glos Users in South Glos Homes,Permanent Nursing,Fairview Court,632.64, 15-Jan-2019
1134,Revenue,CAHD,Bed purchasing - Elderly S117 - South,Permanent Nursing,Fairview Court,4076.00, 15-Jan-2019
1135,Revenue,CAHD,South Glos Users in South Glos Homes,Permanent Nursing,Fairview Court,632.64, 15-Jan-2019
1136,Revenue,CAHD,South Glos Users in South Glos Homes,Permanent Nursing,Fairview Court,632.64, 15-Jan-2019
1137,Revenue,CAHD,Bed Purchasing - South,Permanent Nursing,Fairview Court,3303.20, 15-Jan-2019
1138,Revenue,CAHD,South Glos Users in South Glos Homes,Permanent Nursing,Fairview Court,632.64, 15-Jan-2019
1139,Revenue,CAHD,Bed Purchasing - South,Permanent Nursing,Fairview Court,3721.08, 15-Jan-2019
1140,Revenue,CAHD,South Glos Users in South Glos Homes,Permanent Nursing,Fairview Court,632.64, 15-Jan-2019
1141,Revenue,CAHD,South Glos Users in South Glos Homes,Permanent Nursing,Fairview Court,632.64, 15-Jan-2019
1142,Revenue,CAHD,South Glos Users in South Glos Homes,Permanent Nursing,Fairview Court,632.64, 15-Jan-2019
1143,Revenue,CAHD,Bed Purchasing - South,Permanent Nursing,Fairview Court,3721.24, 15-Jan-2019
1144,Revenue,CAHD,South Glos Users in South Glos Homes,Permanent Nursing,Fairview Court,1378.25, 15-Jan-2019
1145,Revenue,CAHD,South Glos Users in South Glos Homes,Permanent Nursing,Fairview Court,632.64, 15-Jan-2019
1146,Revenue,CAHD,South Glos Users in South Glos Homes,Permanent Nursing,Fairview Court,632.64, 15-Jan-2019
1147,Revenue,CAHD,Bed Purchasing - South,Permanent Nursing,Fairview Court,3464.60, 15-Jan-2019
1148,Revenue,CAHD,South Glos Users in South Glos Homes,Permanent Nursing,Fairview Court,632.64, 15-Jan-2019
1149,Revenue,CAHD,South Glos Users in South Glos Homes,Permanent Nursing,Fairview Court,632.64, 15-Jan-2019
1150,Revenue,CAHD,South Glos Users in South Glos Homes,Permanent Nursing,Fairview Court,632.64, 15-Jan-2019
1151,Revenue,CAHD,South Glos Users in South Glos Homes,Permanent Nursing,Fairview Court,632.64, 15-Jan-2019
1152,Revenue,CAHD,Bed Purchasing - South,Permanent Nursing,Fairview Court,3721.24, 15-Jan-2019
1153,Revenue,CAHD,South Glos Users in South Glos Homes,Permanent Nursing,Fairview Court,2688.72, 15-Jan-2019
1154,Revenue,CAHD,South Glos Users in South Glos Homes,Permanent Nursing,Fairview Court,632.64, 15-Jan-2019
1155,Revenue,CAHD,South Glos Users in South Glos Homes,Permanent Nursing,Fairview Court,632.64, 15-Jan-2019
1156,Revenue,CAHD,South Glos Users in South Glos Homes,Permanent Nursing,Fairview Court,632.64, 15-Jan-2019
1157,Revenue,CAHD,Bed Purchasing - South,Permanent Nursing,Fairview Court,3400.00, 15-Jan-2019
1158,Revenue,CAHD,South Glos Users in South Glos Homes,Permanent Nursing,Fairview Court,632.64, 15-Jan-2019
1159,Revenue,CAHD,South Glos Users in South Glos Homes,Permanent Nursing,Fairview Court,632.64, 15-Jan-2019
1160,Revenue,CAHD,South Glos Users in South Glos Homes,Permanent Nursing,Fairview Court,632.64, 15-Jan-2019
1161,Revenue,CAHD,South Glos Users in South Glos Homes,Permanent Nursing,Fairview Court,632.64, 15-Jan-2019
1162,Revenue,CAHD,Bed Purchasing - North,Permanent Nursing,Fairview Court,3464.60, 15-Jan-2019
1163,Revenue,CAHD,South Glos Users in South Glos Homes,Permanent Nursing,Fairview Court,632.64, 15-Jan-2019
1164,Revenue,CAHD,South Glos Users in South Glos Homes,Permanent Nursing,Fairview Court,632.64, 15-Jan-2019
1165,Revenue,CAHD,South Glos Users in South Glos Homes,Permanent Nursing,Fairview Court,3954.00, 15-Jan-2019
1166,Revenue,CAHD,Bed Purchasing - South,Permanent Nursing,Fairview Court,3400.00, 15-Jan-2019
1167,Revenue,CAHD,South Glos Users in South Glos Homes,Permanent Nursing,Fairview Court,632.64, 15-Jan-2019
1168,Revenue,CAHD,South Glos Users in South Glos Homes,Permanent Nursing,Fairview Court,632.64, 15-Jan-2019
1169,Revenue,CAHD,South Glos Users in South Glos Homes,Permanent Nursing,Fairview Court,632.64, 15-Jan-2019
1170,Revenue,CAHD,South Glos Users in South Glos Homes,Permanent Nursing,Fairview Court,632.64, 15-Jan-2019
1171,Revenue,CAHD,Bed Purchasing - North,Permanent Nursing,Fairview Court,3721.24, 15-Jan-2019
1172,Revenue,CAHD,South Glos Users in South Glos Homes,Permanent Nursing,Fairview Court,632.64, 15-Jan-2019
1173,Revenue,CAHD,South Glos Users in South Glos Homes,Permanent Nursing,Fairview Court,632.64, 15-Jan-2019
1174,Revenue,CAHD,Bed Purchasing - South,Permanent Nursing,Fairview Court,3057.00, 15-Jan-2019
1175,Revenue,CAHD,South Glos Users in South Glos Homes,Permanent Nursing,Fairview Court,632.64, 15-Jan-2019
1176,Revenue,CAHD,Bed Purchasing - South,Permanent Nursing,Fairview Court,3721.24, 15-Jan-2019
1177,Revenue,CAHD,South Glos Users in South Glos Homes,Permanent Nursing,Fairview Court,632.64, 15-Jan-2019
1178,Revenue,CAHD,Bed Purchasing - South,Permanent Nursing,Fairview Court,3464.60, 15-Jan-2019
1179,Revenue,CAHD,South Glos Users in South Glos Homes,Permanent Nursing,Fairview Court,632.64, 15-Jan-2019
1180,Revenue,CAHD,South Glos Users in South Glos Homes,Permanent Nursing,Fairview Court,632.64, 15-Jan-2019
1181,Revenue,CAHD,South Glos Users in South Glos Homes,Permanent Nursing,Fairview Court,632.64, 15-Jan-2019
1182,Revenue,CAHD,Bed purchasing - Elderly S117 - South,Permanent Residential,Fairview House,2219.20, 15-Jan-2019
1183,Revenue,CAHD,Bed Purchasing - South,Permanent Residential,Fairview House,2219.20, 15-Jan-2019
1184,Revenue,CAHD,Bed Purchasing - North,Permanent Residential,Fairview House,2780.00, 15-Jan-2019
1185,Revenue,CAHD,Bed Purchasing - Southmead Hospital,Permanent Residential,Fairview House,2780.00, 15-Jan-2019
1186,Revenue,CAHD,Bed Purchasing - South,Permanent Residential,Fairview House,2219.20, 15-Jan-2019
1187,Revenue,CAHD,Bed Purchasing - South,Permanent Residential,Fairview House,2148.68, 15-Jan-2019
1188,Revenue,CAHD,Bed Purchasing - South,Permanent Residential,Fairview House,2157.48, 15-Jan-2019
1189,Revenue,CAHD,Bed Purchasing - South,Permanent Residential,Fairview House,2547.52, 15-Jan-2019
1190,Revenue,CAHD,Bed Purchasing - North,Permanent Residential,Faith House,2055.00, 15-Jan-2019
1191,Revenue,CAHD,Bed Purchasing - North,Permanent Residential,Faith House,685.00, 15-Jan-2019
1192,Revenue,CAHD,Bed Purchasing - North,Permanent Residential,Faith House,2740.00, 15-Jan-2019
1193,Revenue,CAHD,Bed Purchasing - Southmead Hospital,Permanent Residential,Faith House,2740.00, 15-Jan-2019
1194,Revenue,CAHD,Bed Purchasing - South,Permanent Residential,Faith House,2740.00, 15-Jan-2019
1195,Revenue,CAHD,Bed Purchasing - Central,Permanent Nursing,Festival House,2983.44, 15-Jan-2019
1196,Revenue,CAHD,Bed Purchasing - North,Permanent Nursing,Field House Care Home,2164.36, 15-Jan-2019
1197,Revenue,CAHD,Bed Purchasing - North,Permanent Nursing,Field House Care Home,3440.00, 15-Jan-2019
1198,Revenue,CAHD,South Glos Users in South Glos Homes,Permanent Nursing,Field House Care Home,632.64, 15-Jan-2019
1199,Revenue,CAHD,Bed Purchasing - North,Permanent Nursing,Field House Care Home,3440.00, 15-Jan-2019
1200,Revenue,CAHD,Bed Purchasing - North,Permanent Nursing,Field House Care Home,3323.84, 15-Jan-2019
1201,Revenue,CAHD,Bed Purchasing - North,Permanent Nursing,Field House Care Home,3505.36, 15-Jan-2019
1202,Revenue,CAHD,Bed Purchasing - North,Permanent Nursing,Field House Care Home,3342.32, 15-Jan-2019
1203,Revenue,CAHD,Bed Purchasing - North,Respite Planned - Nursing,Field House Care Home,3680.00, 15-Jan-2019
1204,Revenue,CAHD,Bed Purchasing - North,Respite Planned - Nursing,Field House Care Home,3342.32, 15-Jan-2019
1205,Revenue,CAHD,Bed Purchasing - North,Permanent Nursing,Field House Care Home,3342.32, 15-Jan-2019
1206,Revenue,CAHD,Bed Purchasing - North,Permanent Nursing,Field House Care Home,2164.36, 15-Jan-2019
1207,Revenue,CAHD,South Glos Users in South Glos Homes,Permanent Nursing,Field House Care Home,632.64, 15-Jan-2019
1208,Revenue,CAHD,Bed Purchasing - North,Permanent Nursing,Field House Care Home,2164.36, 15-Jan-2019
1209,Revenue,CAHD,Bed Purchasing - North,Permanent Nursing,Field House Care Home,3423.84, 15-Jan-2019
1210,Revenue,CAHD,Bed Purchasing - North,Permanent Nursing,Field House Care Home,3423.84, 15-Jan-2019
1211,Revenue,CAHD,Bed Purchasing - Central,Permanent Residential,Fieldview,3400.00, 15-Jan-2019
1212,Revenue,CAHD,Bed Purchasing - North,Permanent Residential,Fieldview,2890.28, 15-Jan-2019
1213,Revenue,CAHD,Bed Purchasing - North,Permanent Residential,Fieldview,3668.40, 15-Jan-2019
1214,Revenue,CAHD,MH Purchasing - Younger,Permanent Nursing,Fieldview,5367.68, 15-Jan-2019
1215,Revenue,CAHD,Bed Purchasing - South,Permanent Residential,Fig House,2890.28, 15-Jan-2019
1216,Revenue,CAHD,Statemented Support Payments to OLAs,Other L.A.'s - General,Filton Avenue Primary School,1131.20, 25-Jan-2019
1217,Revenue,CAHD,Statemented Support Payments to OLAs,Other L.A.'s - General,Filton Avenue Primary School,1331.66, 25-Jan-2019
1218,Revenue,CAHD,Early Years Inclusion Fund,Other Public Bodies,First Steps Day Nursery,2450.00, 08-Jan-2019
1219,Revenue,CAHD,CSC - Agency Fostering,Foster Parent Allowances,Five Rivers Child Care Limited,4152.86, 09-Jan-2019
1220,Revenue,CAHD,CSC - Agency Fostering,Foster Parent Allowances,Foster Care Associates Limited,4131.68, 23-Jan-2019
1221,Revenue,CAHD,CSC - Asylum Seekers - Unaccompanied,Foster Parent Allowances,Foster Care Associates Limited,2406.22, 23-Jan-2019
1222,Revenue,CAHD,Homecare - Central,Other Small Contracts,Fourways Care Limited,258.42, 11-Jan-2019
1223,Revenue,CAHD,Home Care - Elderly - South,Other Small Contracts,Fourways Care Limited,880.08, 11-Jan-2019
1224,Revenue,CAHD,Home Care - Elderly - North,Other Small Contracts,Fourways Care Limited,9127.92, 11-Jan-2019
1225,Revenue,CAHD,Homecare - Central,Other Small Contracts,Fourways Care Limited,140.16, 11-Jan-2019
1226,Revenue,CAHD,Home Care - Elderly - South,Other Small Contracts,Fourways Care Limited,823.26, 11-Jan-2019
1227,Revenue,CAHD,Home Care - Elderly - North,Other Small Contracts,Fourways Care Limited,7305.84, 11-Jan-2019
1228,Revenue,CAHD,Homecare - Central,Other Small Contracts,Fourways Care Limited,127.02, 15-Jan-2019
1229,Revenue,CAHD,Home Care - Elderly - South,Other Small Contracts,Fourways Care Limited,891.24, 15-Jan-2019
1230,Revenue,CAHD,Home Care - Elderly - North,Other Small Contracts,Fourways Care Limited,7735.08, 15-Jan-2019
1231,Revenue,CAHD,Homecare - Central,Other Small Contracts,Fourways Care Limited,232.14, 23-Jan-2019
1232,Revenue,CAHD,Home Care - Elderly - South,Other Small Contracts,Fourways Care Limited,884.58, 23-Jan-2019
1233,Revenue,CAHD,Home Care - Elderly - North,Other Small Contracts,Fourways Care Limited,8703.06, 23-Jan-2019
1234,Revenue,CAHD,Homecare - Central,Other Small Contracts,Fourways Care Limited,232.14, 25-Jan-2019
1235,Revenue,CAHD,Home Care - Elderly - South,Other Small Contracts,Fourways Care Limited,962.28, 25-Jan-2019
1236,Revenue,CAHD,Home Care - Elderly - North,Other Small Contracts,Fourways Care Limited,8541.00, 25-Jan-2019
1237,Revenue,CAHD,Freeways,Permanent Residential,Freeways Trust Limited,3748.60, 25-Jan-2019
1238,Revenue,CAHD,Freeways,Permanent Residential,Freeways Trust Limited,2410.80, 25-Jan-2019
1239,Revenue,CAHD,Freeways,Permanent Residential,Freeways Trust Limited,2410.80, 25-Jan-2019
1240,Revenue,CAHD,Freeways,Permanent Residential,Freeways Trust Limited,3507.76, 25-Jan-2019
1241,Revenue,CAHD,Freeways,Permanent Residential,Freeways Trust Limited,2410.80, 25-Jan-2019
1242,Revenue,CAHD,Freeways,Permanent Residential,Freeways Trust Limited,3553.44, 25-Jan-2019
1243,Revenue,CAHD,Freeways,Permanent Residential,Freeways Trust Limited,2674.68, 25-Jan-2019
1244,Revenue,CAHD,Freeways,Permanent Residential,Freeways Trust Limited,3719.68, 25-Jan-2019
1245,Revenue,CAHD,Freeways,Permanent Residential,Freeways Trust Limited,2267.40, 25-Jan-2019
1246,Revenue,CAHD,Freeways,Permanent Residential,Freeways Trust Limited,2847.12, 25-Jan-2019
1247,Revenue,CAHD,Freeways,Permanent Residential,Freeways Trust Limited,2819.80, 25-Jan-2019
1248,Revenue,CAHD,Freeways,Permanent Residential,Freeways Trust Limited,3183.32, 25-Jan-2019
1249,Revenue,CAHD,Freeways,Permanent Residential,Freeways Trust Limited,2410.80, 25-Jan-2019
1250,Revenue,CAHD,Freeways,Respite Planned - Residential,Freeways Trust Limited,6229.77, 25-Jan-2019
1251,Revenue,CAHD,Freeways,Respite Planned - Residential,Freeways Trust Limited,1808.69, 25-Jan-2019
1252,Revenue,CAHD,Freeways,Permanent Residential,Freeways Trust Limited,3748.60, 08-Jan-2019
1253,Revenue,CAHD,Freeways,Permanent Residential,Freeways Trust Limited,2410.80, 08-Jan-2019
1254,Revenue,CAHD,Freeways,Permanent Residential,Freeways Trust Limited,2410.80, 08-Jan-2019
1255,Revenue,CAHD,Freeways,Permanent Residential,Freeways Trust Limited,3507.76, 08-Jan-2019
1256,Revenue,CAHD,Freeways,Permanent Residential,Freeways Trust Limited,2410.80, 08-Jan-2019
1257,Revenue,CAHD,Freeways,Permanent Residential,Freeways Trust Limited,3553.44, 08-Jan-2019
1258,Revenue,CAHD,Freeways,Permanent Residential,Freeways Trust Limited,2674.68, 08-Jan-2019
1259,Revenue,CAHD,Freeways,Permanent Residential,Freeways Trust Limited,3719.68, 08-Jan-2019
1260,Revenue,CAHD,Freeways,Permanent Residential,Freeways Trust Limited,2267.40, 08-Jan-2019
1261,Revenue,CAHD,Freeways,Permanent Residential,Freeways Trust Limited,2847.12, 08-Jan-2019
1262,Revenue,CAHD,Freeways,Permanent Residential,Freeways Trust Limited,2819.80, 08-Jan-2019
1263,Revenue,CAHD,Freeways,Permanent Residential,Freeways Trust Limited,3183.32, 08-Jan-2019
1264,Revenue,CAHD,Freeways,Permanent Residential,Freeways Trust Limited,2410.80, 08-Jan-2019
1265,Revenue,CAHD,Freeways,Respite Planned - Residential,Freeways Trust Limited,1740.67, 08-Jan-2019
1266,Revenue,CAHD,Freeways,Respite Planned - Residential,Freeways Trust Limited,549.69, 08-Jan-2019
1267,Revenue,CAHD,Freeways,Respite Planned - Residential,Freeways Trust Limited,3165.20, 08-Jan-2019
1268,Revenue,CAHD,Freeways,Respite Planned - Residential,Freeways Trust Limited,2565.20, 08-Jan-2019
1269,Revenue,CAHD,Freeways,Respite Planned - Residential,Freeways Trust Limited,824.53, 08-Jan-2019
1270,Revenue,CAHD,18-25 Year Olds,Respite Planned - Residential,Freeways Trust Limited,682.28, 21-Jan-2019
1271,Revenue,CAHD,Home Care - Elderly - South,Day Care / Social Activities,Freeways Trust Limited,1203.20, 21-Jan-2019
1272,Revenue,CAHD,Homecare - Central,Other Small Contracts,Freeways Trust Limited,582.80, 21-Jan-2019
1273,Revenue,CAHD,Homecare - Central,Other Small Contracts,Freeways Trust Limited,714.40, 21-Jan-2019
1274,Revenue,CAHD,Home Care - Elderly - South,Day Care / Social Activities,Freeways Trust Limited,1015.20, 23-Jan-2019
1275,Revenue,CAHD,Home Care - Elderly - South,Day Care / Social Activities,Freeways Trust Limited,526.40, 21-Jan-2019
1276,Revenue,CAHD,Home Care - Elderly - North,Other Small Contracts,Freeways Trust Limited,827.20, 07-Jan-2019
1277,Revenue,CAHD,Home Care - Elderly - North,Other Small Contracts,Freeways Trust Limited,827.20, 07-Jan-2019
1278,Revenue,CAHD,Home Care - Elderly - North,Other Small Contracts,Freeways Trust Limited,827.20, 07-Jan-2019
1279,Revenue,CAHD,Homecare - Central,Other Small Contracts,Freeways Trust Limited,714.40, 07-Jan-2019
1280,Revenue,CAHD,Home Care - Elderly - South,Day Care / Social Activities,Freeways Trust Limited,1090.40, 21-Jan-2019
1281,Revenue,CAHD,Home Care - Elderly - North,Other Small Contracts,Freeways Trust Limited,827.20, 25-Jan-2019
1282,Revenue,CAHD,Home Care - Elderly - North,Supported Living,Freeways Trust Ltd,825.80, 15-Jan-2019
1283,Revenue,CAHD,Bed purchasing - S28A Under 65 - South,Permanent Residential,Freeways Trust Ltd,3795.56, 15-Jan-2019
1284,Revenue,CAHD,Bed Purchasing - North,Permanent Residential,Freeways Trust Ltd,3675.20, 15-Jan-2019
1285,Revenue,CAHD,Bed Purchasing - South,Permanent Residential,Freeways Trust Ltd,3897.84, 15-Jan-2019
1286,Revenue,CAHD,Bed Purchasing - North,Permanent Residential,Freeways Trust Ltd,2943.20, 15-Jan-2019
1287,Revenue,CAHD,Bed Purchasing - South,Permanent Residential,Freeways Trust Ltd,3101.48, 15-Jan-2019
1288,Revenue,CAHD,Bed Purchasing - North,Permanent Residential,Freeways Trust Ltd,3250.60, 15-Jan-2019
1289,Revenue,CAHD,Bed Purchasing - North,Permanent Residential,Freeways Trust Ltd,3890.76, 15-Jan-2019
1290,Revenue,CAHD,18-25 Year Olds,Permanent Residential,Freeways Trust Ltd,3594.20, 15-Jan-2019
1291,Revenue,CAHD,Section 117 Placements MH Younger,Permanent Residential,Freeways Trust Ltd,3260.80, 15-Jan-2019
1292,Revenue,CAHD,Home Care - Elderly - South,Day Care / Social Activities,Frenchay Beckspool Building,801.44, 15-Jan-2019
1293,Revenue,CAHD,Homecare - Central,Day Care / Social Activities,Frenchay Beckspool Building,673.20, 15-Jan-2019
1294,Revenue,CAHD,Home Care - Elderly - South,Day Care / Social Activities,Frenchay Beckspool Building,880.40, 15-Jan-2019
1295,Revenue,CAHD,Home Care - Elderly - South,Day Care / Social Activities,Frenchay Beckspool Building,625.12, 15-Jan-2019
1296,Revenue,CAHD,Pathway 3 - (Complex Beds),Permanent Nursing,Frenchay House,6528.00, 11-Jan-2019
1297,Revenue,CAHD,Pathway 3 - (Complex Beds),Permanent Nursing,Frenchay House,3264.00, 24-Jan-2019
1298,Revenue,CAHD,Bed Purchasing - North,Permanent Nursing,Frenchay Park Nursing Home,3400.00, 15-Jan-2019
1299,Revenue,CAHD,Bed Purchasing - North,Permanent Nursing,Frenchay Park Nursing Home,1214.29, 15-Jan-2019
1300,Revenue,CAHD,Bed Purchasing - North,Permanent Nursing,Frenchay Park Nursing Home,3400.00, 15-Jan-2019
1301,Revenue,CAHD,Bed Purchasing - North,Permanent Nursing,Frenchay Park Nursing Home,3260.80, 15-Jan-2019
1302,Revenue,CAHD,Bed Purchasing - Southmead Hospital,Permanent Nursing,Frenchay Park Nursing Home,8257.14, 15-Jan-2019
1303,Revenue,CAHD,Bed Purchasing - Southmead Hospital,Permanent Nursing,Frenchay Park Nursing Home,3400.00, 15-Jan-2019
1304,Revenue,CAHD,CSC - Social Work Team - NORTH,Agency Staff (Admin/Support Staff) Pay,Frontline Staffing Ltd,1731.23, 07-Jan-2019
1305,Revenue,CAHD,CSC - Social Work Team - SOUTH,Agency Staff (Admin/Support Staff) Pay,Frontline Staffing Ltd,1871.60, 07-Jan-2019
1306,Revenue,CAHD,CSC - Social Work Team - SOUTH,Agency Staff (Admin/Support Staff) Pay,Frontline Staffing Ltd,1871.60, 07-Jan-2019
1307,Revenue,CAHD,CSC - Social Work Team - NORTH,Agency Staff (Admin/Support Staff) Pay,Frontline Staffing Ltd,1742.93, 09-Jan-2019
1308,Revenue,CAHD,CSC - Social Work Team - CENTRAL,Agency Staff (Admin/Support Staff) Pay,Frontline Staffing Ltd,1731.23, 09-Jan-2019
1309,Revenue,CAHD,CSC - Social Work Team - NORTH,Agency Staff (Admin/Support Staff) Pay,Frontline Staffing Ltd,1473.89, 14-Jan-2019
1310,Revenue,CAHD,CSC - Social Work Team - CENTRAL,Agency Staff (Admin/Support Staff) Pay,Frontline Staffing Ltd,1497.28, 14-Jan-2019
1311,Revenue,CAHD,CSC - Social Work Team - SOUTH,Agency Staff (Admin/Support Staff) Pay,Frontline Staffing Ltd,1122.96, 15-Jan-2019
1312,Revenue,CAHD,CSC - Social Work Team - SOUTH,Agency Staff (Admin/Support Staff) Pay,Frontline Staffing Ltd,1052.78, 15-Jan-2019
1313,Revenue,CAHD,CSC - Social Work Team - NORTH,Agency Staff (Admin/Support Staff) Pay,Frontline Staffing Ltd,924.10, 18-Jan-2019
1314,Revenue,CAHD,CSC - Social Work Team - CENTRAL,Agency Staff (Admin/Support Staff) Pay,Frontline Staffing Ltd,1731.23, 22-Jan-2019
1315,Revenue,CAHD,CSC - Social Work Team - NORTH,Agency Staff (Admin/Support Staff) Pay,Frontline Staffing Ltd,1871.60, 21-Jan-2019
1316,Revenue,CAHD,CSC - Social Work Team - CENTRAL,Agency Staff (Admin/Support Staff) Pay,Frontline Staffing Ltd,1848.21, 21-Jan-2019
1317,Revenue,CAHD,CSC - Social Work Team - NORTH,Agency Staff (Admin/Support Staff) Pay,Frontline Staffing Ltd,1754.63, 22-Jan-2019
1318,Revenue,CAHD,CSC - Social Work Team - NORTH,Agency Staff (Admin/Support Staff) Pay,Frontline Staffing Ltd,1731.23, 22-Jan-2019
1319,Revenue,CAHD,CSC - Social Work Team - NORTH,Agency Staff (Admin/Support Staff) Pay,Frontline Staffing Ltd,889.01, 22-Jan-2019
1320,Revenue,CAHD,CSC - Social Work Team - NORTH,Agency Staff (Admin/Support Staff) Pay,Frontline Staffing Ltd,1345.21, 22-Jan-2019
1321,Revenue,CAHD,CSC - Social Work Team - NORTH,Agency Staff (Admin/Support Staff) Pay,Frontline Staffing Ltd,1731.23, 22-Jan-2019
1322,Revenue,CAHD,CSC - Social Work Team - SOUTH,Agency Staff (Admin/Support Staff) Pay,Frontline Staffing Ltd,1871.60, 23-Jan-2019
1323,Revenue,CAHD,CSC - Social Work Team - NORTH,Agency Staff (Admin/Support Staff) Pay,Frontline Staffing Ltd,1871.60, 29-Jan-2019
1324,Revenue,CAHD,CSC - Social Work Team - CENTRAL,Agency Staff (Admin/Support Staff) Pay,Frontline Staffing Ltd,1871.60, 29-Jan-2019
1325,Revenue,CAHD,CSC - Social Work Team - SOUTH,Agency Staff (Admin/Support Staff) Pay,Frontline Staffing Ltd,1871.60, 30-Jan-2019
1326,Revenue,CAHD,CSC - Social Work Team - NORTH,Agency Staff (Admin/Support Staff) Pay,Frontline Staffing Ltd,1731.23, 31-Jan-2019
1327,Revenue,CAHD,CSC - Social Work Team - SOUTH,Agency Staff (Admin/Support Staff) Pay,Frontline Staffing Ltd,1193.15, 31-Jan-2019
1328,Revenue,CAHD,CSC - Social Work Team - SOUTH,Agency Staff (Admin/Support Staff) Pay,Frontline Staffing Ltd,1871.60, 31-Jan-2019
1329,Revenue,CAHD,Bed Purchasing - South,Permanent Nursing,Fshc  1St Floor,2670.96, 15-Jan-2019
1330,Revenue,CAHD,South Glos Users in South Glos Homes,Permanent Nursing,Fshc  1St Floor,632.64, 15-Jan-2019
1331,Revenue,CAHD,Bed Purchasing - South,Permanent Nursing,Fshc  1St Floor,2324.64, 15-Jan-2019
1332,Revenue,CAHD,Bed Purchasing - South,Permanent Nursing,Fshc  1St Floor,2310.44, 15-Jan-2019
1333,Revenue,CAHD,South Glos Users in South Glos Homes,Permanent Nursing,Fshc  1St Floor,632.64, 15-Jan-2019
1334,Revenue,CAHD,Bed Purchasing - Southmead Hospital,Permanent Nursing,Fshc  1St Floor,2310.44, 15-Jan-2019
1335,Revenue,CAHD,South Glos Users in South Glos Homes,Permanent Nursing,Fshc  1St Floor,632.64, 15-Jan-2019
1336,Revenue,CAHD,Bed Purchasing - South,Permanent Residential,Fshc  1St Floor,2404.84, 15-Jan-2019
1337,Revenue,CAHD,Bed Purchasing - South,Permanent Nursing,Fshc  1St Floor,3120.74, 15-Jan-2019
1338,Revenue,CAHD,Bed Purchasing - South,Permanent Nursing,Fshc  1St Floor,2742.86, 15-Jan-2019
1339,Revenue,CAHD,Bed Purchasing - South,Permanent Nursing,Fshc  1St Floor,2560.00, 15-Jan-2019
1340,Revenue,CAHD,South Glos Users in South Glos Homes,Permanent Nursing,Fshc  1St Floor,632.64, 15-Jan-2019
1341,Revenue,CAHD,Bed Purchasing - South,Fees & Charges Income - General,Fshc  1St Floor,591.86, 15-Jan-2019
1342,Revenue,CAHD,South Glos Users in South Glos Homes,Permanent Nursing,Fshc  1St Floor,632.64, 15-Jan-2019
1343,Revenue,CAHD,Bed Purchasing - North,Permanent Nursing,Fshc  1St Floor,2824.00, 15-Jan-2019
1344,Revenue,CAHD,South Glos Users in South Glos Homes,Permanent Nursing,Fshc  1St Floor,1807.54, 15-Jan-2019
1345,Revenue,CAHD,South Glos Users in South Glos Homes,Permanent Nursing,Fshc  1St Floor,632.64, 15-Jan-2019
1346,Revenue,CAHD,South Glos Users in South Glos Homes,Permanent Nursing,Fshc  1St Floor,1333.06, 15-Jan-2019
1347,Revenue,CAHD,South Glos Users in South Glos Homes,Permanent Nursing,Fshc  1St Floor,632.64, 15-Jan-2019
1348,Revenue,CAHD,Bed Purchasing - Southmead Hospital,Permanent Nursing,Fshc  1St Floor,2857.14, 15-Jan-2019
1349,Revenue,CAHD,Bed Purchasing - South,Permanent Nursing,Fshc  1St Floor,2600.00, 15-Jan-2019
1350,Revenue,CAHD,South Glos Users in South Glos Homes,Permanent Nursing,Fshc  1St Floor,632.64, 15-Jan-2019
1351,Revenue,CAHD,South Glos Users in South Glos Homes,Permanent Nursing,Fshc  1St Floor,632.64, 15-Jan-2019
1352,Revenue,CAHD,South Glos Users in South Glos Homes,Permanent Nursing,Fshc  1St Floor,1018.90, 15-Jan-2019
1353,Revenue,CAHD,South Glos Users in South Glos Homes,Permanent Nursing,Fshc  1St Floor,632.64, 15-Jan-2019
1354,Revenue,CAHD,Bed Purchasing - South,Permanent Nursing,Fshc  1St Floor,2824.00, 15-Jan-2019
1355,Revenue,CAHD,Bed Purchasing - South,Permanent Nursing,Fshc  1St Floor,2560.00, 15-Jan-2019
1356,Revenue,CAHD,South Glos Users in South Glos Homes,Permanent Nursing,Fshc  1St Floor,632.64, 15-Jan-2019
1357,Revenue,CAHD,Bed Purchasing - South,Permanent Nursing,Fshc  1St Floor,2663.20, 15-Jan-2019
1358,Revenue,CAHD,South Glos Users in South Glos Homes,Permanent Nursing,Fshc  1St Floor,632.64, 15-Jan-2019
1359,Revenue,CAHD,South Glos Users in South Glos Homes,Permanent Nursing,Fshc  1St Floor,632.64, 15-Jan-2019
1360,Revenue,CAHD,South Glos Users in South Glos Homes,Permanent Nursing,Fshc  1St Floor,632.64, 15-Jan-2019
1361,Revenue,CAHD,South Glos Users in South Glos Homes,Permanent Nursing,Fshc  1St Floor,632.64, 15-Jan-2019
1362,Revenue,CAHD,Bed Purchasing - South,Permanent Nursing,Fshc  1St Floor,2800.00, 15-Jan-2019
1363,Revenue,CAHD,Bed Purchasing - South,Permanent Nursing,Fshc  1St Floor,2324.64, 15-Jan-2019
1364,Revenue,CAHD,South Glos Users in South Glos Homes,Permanent Nursing,Fshc  1St Floor,632.64, 15-Jan-2019
1365,Revenue,CAHD,Bed Purchasing - South,Permanent Nursing,Fshc  1St Floor,2404.84, 15-Jan-2019
1366,Revenue,CAHD,South Glos Users in South Glos Homes,Permanent Nursing,Fshc  1St Floor,632.64, 15-Jan-2019
1367,Revenue,CAHD,Bed Purchasing - South,Permanent Nursing,Fshc  1St Floor,2310.44, 15-Jan-2019
1368,Revenue,CAHD,South Glos Users in South Glos Homes,Permanent Nursing,Fshc  1St Floor,632.64, 15-Jan-2019
1369,Revenue,CAHD,Bed Purchasing - South,Permanent Nursing,Fshc  1St Floor,2310.44, 15-Jan-2019
1370,Revenue,CAHD,South Glos Users in South Glos Homes,Permanent Nursing,Fshc  1St Floor,632.64, 15-Jan-2019
1371,Revenue,CAHD,South Glos Users in South Glos Homes,Permanent Nursing,Fshc  1St Floor,1897.92, 15-Jan-2019
1372,Revenue,CAHD,South Glos Users in South Glos Homes,Permanent Nursing,Fshc  1St Floor,632.64, 15-Jan-2019
1373,Revenue,CAHD,Bed Purchasing - South,Permanent Nursing,Fshc  1St Floor,2310.44, 15-Jan-2019
1374,Revenue,CAHD,South Glos Users in South Glos Homes,Permanent Nursing,Fshc  1St Floor,632.64, 15-Jan-2019
1375,Revenue,CAHD,Bed Purchasing - South,Permanent Nursing,Fshc  1St Floor,3072.00, 15-Jan-2019
1376,Revenue,CAHD,South Glos Users in South Glos Homes,Permanent Nursing,Fshc  1St Floor,632.64, 15-Jan-2019
1377,Revenue,CAHD,Bed Purchasing - South,Permanent Nursing,Fshc  1St Floor,2324.64, 15-Jan-2019
1378,Revenue,CAHD,South Glos Users in South Glos Homes,Permanent Nursing,Fshc  1St Floor,632.64, 15-Jan-2019
1379,Revenue,CAHD,South Glos Users in South Glos Homes,Permanent Nursing,Fshc  1St Floor,632.64, 15-Jan-2019
1380,Revenue,CAHD,Bed Purchasing - South,Permanent Nursing,Fshc  1St Floor,2445.60, 15-Jan-2019
1381,Revenue,CAHD,Bed Purchasing - South,Permanent Nursing,Fshc  1St Floor,3097.76, 15-Jan-2019
1382,Revenue,CAHD,South Glos Users in South Glos Homes,Permanent Nursing,Fshc  1St Floor,632.64, 15-Jan-2019
1383,Revenue,CAHD,Bed Purchasing - South,Permanent Nursing,Fshc  1St Floor,2404.84, 15-Jan-2019
1384,Revenue,CAHD,South Glos Users in South Glos Homes,Permanent Nursing,Fshc  1St Floor,632.64, 15-Jan-2019
1385,Revenue,CAHD,Bed Purchasing - South,Permanent Nursing,Fshc  1St Floor,2864.24, 15-Jan-2019
1386,Revenue,CAHD,Bed Purchasing - North,Permanent Residential,Fshc  1St Floor,2824.00, 15-Jan-2019
1387,Revenue,CAHD,South Glos Users in South Glos Homes,Permanent Nursing,Fshc  1St Floor,632.64, 15-Jan-2019
1388,Revenue,CAHD,Bed Purchasing - Central,Permanent Nursing,Fshc  1St Floor,2310.44, 15-Jan-2019
1389,Revenue,CAHD,South Glos Users in South Glos Homes,Permanent Nursing,Fshc  1St Floor,632.64, 15-Jan-2019
1390,Revenue,CAHD,Bed Purchasing - Central,Permanent Nursing,Fshc  1St Floor,2339.64, 15-Jan-2019
1391,Revenue,CAHD,South Glos Users in South Glos Homes,Permanent Nursing,Fshc  1St Floor,632.64, 15-Jan-2019
1392,Revenue,CAHD,Bed Purchasing - Central,Permanent Nursing,Fshc  1St Floor,2339.64, 15-Jan-2019
1393,Revenue,CAHD,South Glos Users in South Glos Homes,Permanent Nursing,Fshc  1St Floor,632.64, 15-Jan-2019
1394,Revenue,CAHD,South Glos Users in South Glos Homes,Permanent Nursing,Fshc  1St Floor,632.64, 15-Jan-2019
1395,Revenue,CAHD,Bed Purchasing - Central,Permanent Residential,Fshc  1St Floor,2700.00, 15-Jan-2019
1396,Revenue,CAHD,Bed Purchasing - Central,Permanent Residential,Fshc  1St Floor,2700.00, 15-Jan-2019
1397,Revenue,CAHD,Bed Purchasing - North,Permanent Nursing,Fshc  1St Floor,2310.44, 15-Jan-2019
1398,Revenue,CAHD,South Glos Users in South Glos Homes,Permanent Nursing,Fshc  1St Floor,632.64, 15-Jan-2019
1399,Revenue,CAHD,Bed Purchasing - Central,Permanent Residential,Fshc  1St Floor,2148.68, 15-Jan-2019
1400,Revenue,CAHD,South Glos Users in South Glos Homes,Permanent Nursing,Fshc  1St Floor,632.64, 15-Jan-2019
1401,Revenue,CAHD,South Glos Users in South Glos Homes,Permanent Nursing,Fshc  1St Floor,632.64, 15-Jan-2019
1402,Revenue,CAHD,Bed Purchasing - North,Permanent Residential,Fshc  1St Floor,2832.84, 15-Jan-2019
1403,Revenue,CAHD,Bed Purchasing - South,Permanent Residential,Fshc  1St Floor,2751.32, 15-Jan-2019
1404,Revenue,CAHD,Bed Purchasing - North,Permanent Nursing,Fshc  1St Floor,2339.64, 15-Jan-2019
1405,Revenue,CAHD,South Glos Users in South Glos Homes,Permanent Nursing,Fshc  1St Floor,632.64, 15-Jan-2019
1406,Revenue,CAHD,Bed Purchasing - Central,Permanent Nursing,Fshc  1St Floor,2311.20, 15-Jan-2019
1407,Revenue,CAHD,South Glos Users in South Glos Homes,Permanent Nursing,Fshc  1St Floor,632.64, 15-Jan-2019
1408,Revenue,CAHD,Bed Purchasing - Central,Permanent Nursing,Fshc  1St Floor,2310.44, 15-Jan-2019
1409,Revenue,CAHD,South Glos Users in South Glos Homes,Permanent Nursing,Fshc  1St Floor,632.64, 15-Jan-2019
1410,Revenue,CAHD,Bed Purchasing - North,Permanent Nursing,Fshc  1St Floor,2310.44, 15-Jan-2019
1411,Revenue,CAHD,South Glos Users in South Glos Homes,Permanent Nursing,Fshc  1St Floor,632.64, 15-Jan-2019
1412,Revenue,CAHD,South Glos Users in South Glos Homes,Permanent Nursing,Fshc  1St Floor,6190.83, 15-Jan-2019
1413,Revenue,CAHD,South Glos Users in South Glos Homes,Permanent Nursing,Fshc  1St Floor,1838.45, 15-Jan-2019
1414,Revenue,CAHD,Bed Purchasing - North,Permanent Nursing,Fshc  1St Floor,2310.44, 15-Jan-2019
1415,Revenue,CAHD,South Glos Users in South Glos Homes,Permanent Nursing,Fshc  1St Floor,632.64, 15-Jan-2019
1416,Revenue,CAHD,South Glos Users in South Glos Homes,Permanent Nursing,Fshc  1St Floor,632.64, 15-Jan-2019
1417,Revenue,CAHD,Bed Purchasing - Central,Permanent Residential,Fshc  1St Floor,2700.00, 15-Jan-2019
1418,Revenue,CAHD,Bed Purchasing - North,Permanent Nursing,Fshc  1St Floor,2339.64, 15-Jan-2019
1419,Revenue,CAHD,South Glos Users in South Glos Homes,Permanent Nursing,Fshc  1St Floor,632.64, 15-Jan-2019
1420,Revenue,CAHD,Bed Purchasing - North,Permanent Nursing,Fshc  1St Floor,2339.64, 15-Jan-2019
1421,Revenue,CAHD,South Glos Users in South Glos Homes,Permanent Nursing,Fshc  1St Floor,632.64, 15-Jan-2019
1422,Revenue,CAHD,Bed Purchasing - North,Permanent Nursing,Fshc  1St Floor,6787.84, 15-Jan-2019
1423,Revenue,CAHD,Bed Purchasing - North,Permanent Nursing,Fshc  1St Floor,2310.44, 15-Jan-2019
1424,Revenue,CAHD,South Glos Users in South Glos Homes,Permanent Nursing,Fshc  1St Floor,632.64, 15-Jan-2019
1425,Revenue,CAHD,South Glos Users in South Glos Homes,Permanent Nursing,Fshc  1St Floor,632.64, 15-Jan-2019
1426,Revenue,CAHD,South Glos Users in South Glos Homes,Permanent Nursing,Fshc  1St Floor,632.64, 15-Jan-2019
1427,Revenue,CAHD,Bed Purchasing - North,Permanent Nursing,Fshc  1St Floor,2382.00, 15-Jan-2019
1428,Revenue,CAHD,South Glos Users in South Glos Homes,Permanent Nursing,Fshc  1St Floor,632.64, 15-Jan-2019
1429,Revenue,CAHD,South Glos Users in South Glos Homes,Permanent Nursing,Fshc  1St Floor,632.64, 15-Jan-2019
1430,Revenue,CAHD,Bed Purchasing - North,Permanent Residential,Fshc  1St Floor,2382.00, 15-Jan-2019
1431,Revenue,CAHD,South Glos Users in South Glos Homes,Permanent Nursing,Fshc  1St Floor,632.64, 15-Jan-2019
1432,Revenue,CAHD,South Glos Users in South Glos Homes,Permanent Nursing,Fshc  1St Floor,632.64, 15-Jan-2019
1433,Revenue,CAHD,Bed Purchasing - Central,Respite Planned - Nursing,Fshc  1St Floor,2311.20, 15-Jan-2019
1434,Revenue,CAHD,Bed Purchasing - Central,Respite Planned - Nursing,Fshc  1St Floor,1238.14, 15-Jan-2019
1435,Revenue,CAHD,South Glos Users in South Glos Homes,Permanent Nursing,Fshc  1St Floor,632.64, 15-Jan-2019
1436,Revenue,CAHD,Bed Purchasing - Central,Permanent Nursing,Fshc  1St Floor,2310.44, 15-Jan-2019
1437,Revenue,CAHD,South Glos Users in South Glos Homes,Permanent Nursing,Fshc  1St Floor,632.64, 15-Jan-2019
1438,Revenue,CAHD,South Glos Users in South Glos Homes,Permanent Nursing,Fshc  1St Floor,632.64, 15-Jan-2019
1439,Revenue,CAHD,South Glos Users in South Glos Homes,Permanent Nursing,Fshc  1St Floor,1220.09, 15-Jan-2019
1440,Revenue,CAHD,South Glos Users in South Glos Homes,Permanent Nursing,Fshc  1St Floor,632.64, 15-Jan-2019
1441,Revenue,CAHD,Bed Purchasing - North,Permanent Nursing,Fshc  1St Floor,2310.44, 15-Jan-2019
1442,Revenue,CAHD,South Glos Users in South Glos Homes,Permanent Nursing,Fshc  1St Floor,632.64, 15-Jan-2019
1443,Revenue,CAHD,South Glos Users in South Glos Homes,Permanent Nursing,Fshc  1St Floor,632.64, 15-Jan-2019
1444,Revenue,CAHD,Bed Purchasing - Central,Permanent Nursing,Fshc  1St Floor,2380.00, 15-Jan-2019
1445,Revenue,CAHD,Bed Purchasing - Central,Permanent Nursing,Fshc  1St Floor,2295.00, 15-Jan-2019
1446,Revenue,CAHD,South Glos Users in South Glos Homes,Permanent Nursing,Fshc  1St Floor,632.64, 15-Jan-2019
1447,Revenue,CAHD,South Glos Users in South Glos Homes,Permanent Nursing,Fshc  1St Floor,632.64, 15-Jan-2019
1448,Revenue,CAHD,South Glos Users in South Glos Homes,Permanent Nursing,Fshc  1St Floor,564.86, 15-Jan-2019
1449,Revenue,CAHD,Bed Purchasing - Central,Permanent Nursing,Fshc  1St Floor,2311.20, 15-Jan-2019
1450,Revenue,CAHD,Bed Purchasing - Central,Permanent Nursing,Fshc  1St Floor,990.51, 15-Jan-2019
1451,Revenue,CAHD,South Glos Users in South Glos Homes,Permanent Nursing,Fshc  1St Floor,632.64, 15-Jan-2019
1452,Revenue,CAHD,Bed Purchasing - North,Permanent Nursing,Fshc  1St Floor,2380.00, 15-Jan-2019
1453,Revenue,CAHD,South Glos Users in South Glos Homes,Permanent Nursing,Fshc  1St Floor,632.64, 15-Jan-2019
1454,Revenue,CAHD,Bed Purchasing - North,Permanent Nursing,Fshc  1St Floor,2310.44, 15-Jan-2019
1455,Revenue,CAHD,South Glos Users in South Glos Homes,Permanent Nursing,Fshc  1St Floor,632.64, 15-Jan-2019
1456,Revenue,CAHD,Bed Purchasing - North,Permanent Nursing,Fshc  1St Floor,2310.44, 15-Jan-2019
1457,Revenue,CAHD,South Glos Users in South Glos Homes,Permanent Nursing,Fshc  1St Floor,632.64, 15-Jan-2019
1458,Revenue,CAHD,Bed Purchasing - Central,Permanent Nursing,Fshc  1St Floor,2310.44, 15-Jan-2019
1459,Revenue,CAHD,South Glos Users in South Glos Homes,Permanent Nursing,Fshc  1St Floor,632.64, 15-Jan-2019
1460,Revenue,CAHD,Bed Purchasing - North,Permanent Nursing,Fshc  1St Floor,2380.96, 15-Jan-2019
1461,Revenue,CAHD,South Glos Users in South Glos Homes,Permanent Nursing,Fshc  1St Floor,632.64, 15-Jan-2019
1462,Revenue,CAHD,South Glos Users in South Glos Homes,Permanent Nursing,Fshc  1St Floor,632.64, 15-Jan-2019
1463,Revenue,CAHD,Bed Purchasing - North,Permanent Nursing,Fshc  1St Floor,2270.32, 15-Jan-2019
1464,Revenue,CAHD,South Glos Users in South Glos Homes,Permanent Nursing,Fshc  1St Floor,632.64, 15-Jan-2019
1465,Revenue,CAHD,Bed Purchasing - North,Permanent Nursing,Fshc  1St Floor,2380.96, 15-Jan-2019
1466,Revenue,CAHD,South Glos Users in South Glos Homes,Permanent Nursing,Fshc  1St Floor,632.64, 15-Jan-2019
1467,Revenue,CAHD,Bed Purchasing - Central,Permanent Nursing,Fshc  1St Floor,2427.84, 15-Jan-2019
1468,Revenue,CAHD,South Glos Users in South Glos Homes,Permanent Nursing,Fshc  1St Floor,632.64, 15-Jan-2019
1469,Revenue,CAHD,Bed Purchasing - North,Permanent Nursing,Fshc  1St Floor,2310.44, 15-Jan-2019
1470,Revenue,CAHD,South Glos Users in South Glos Homes,Permanent Nursing,Fshc  1St Floor,632.64, 15-Jan-2019
1471,Revenue,CAHD,Bed Purchasing - North,Permanent Nursing,Fshc  1St Floor,2310.44, 15-Jan-2019
1472,Revenue,CAHD,South Glos Users in South Glos Homes,Permanent Nursing,Fshc  1St Floor,632.64, 15-Jan-2019
1473,Revenue,CAHD,Bed Purchasing - Central,Permanent Nursing,Fshc  1St Floor,3158.92, 15-Jan-2019
1474,Revenue,CAHD,South Glos Users in South Glos Homes,Permanent Nursing,Fshc  1St Floor,632.64, 15-Jan-2019
1475,Revenue,CAHD,South Glos Users in South Glos Homes,Permanent Nursing,Fshc  1St Floor,632.64, 15-Jan-2019
1476,Revenue,CAHD,South Glos Users in South Glos Homes,Permanent Nursing,Fshc  1St Floor,632.64, 15-Jan-2019
1477,Revenue,CAHD,South Glos Users in South Glos Homes,Permanent Nursing,Fshc  1St Floor,632.64, 15-Jan-2019
1478,Revenue,CAHD,Bed Purchasing - North,Permanent Nursing,Fshc  1St Floor,2323.12, 15-Jan-2019
1479,Revenue,CAHD,South Glos Users in South Glos Homes,Permanent Nursing,Fshc  1St Floor,632.64, 15-Jan-2019
1480,Revenue,CAHD,South Glos Users in South Glos Homes,Permanent Nursing,Fshc  1St Floor,632.64, 15-Jan-2019
1481,Revenue,CAHD,Bed Purchasing - Central,Permanent Nursing,Fshc  1St Floor,2667.36, 15-Jan-2019
1482,Revenue,CAHD,South Glos Users in South Glos Homes,Permanent Nursing,Fshc  1St Floor,632.64, 15-Jan-2019
1483,Revenue,CAHD,Bed Purchasing - Central,Permanent Nursing,Fshc  1St Floor,2867.36, 15-Jan-2019
1484,Revenue,CAHD,Bed Purchasing - Central,Permanent Nursing,Fshc  1St Floor,2927.36, 15-Jan-2019
1485,Revenue,CAHD,South Glos Users in South Glos Homes,Permanent Nursing,Fshc  1St Floor,632.64, 15-Jan-2019
1486,Revenue,CAHD,South Glos Users in South Glos Homes,Permanent Nursing,Fshc  1St Floor,632.64, 15-Jan-2019
1487,Revenue,CAHD,South Glos Users in South Glos Homes,Permanent Nursing,Fshc  1St Floor,632.64, 15-Jan-2019
1488,Revenue,CAHD,Bed Purchasing - Central,Respite Planned - Nursing,Fshc  1St Floor,2526.92, 15-Jan-2019
1489,Revenue,CAHD,South Glos Users in South Glos Homes,Permanent Nursing,Fshc  1St Floor,632.64, 15-Jan-2019
1490,Revenue,CAHD,South Glos Users in South Glos Homes,Permanent Nursing,Fshc  1St Floor,632.64, 15-Jan-2019
1491,Revenue,CAHD,Bed Purchasing - Central,Permanent Nursing,Fshc  1St Floor,2547.52, 15-Jan-2019
1492,Revenue,CAHD,South Glos Users in South Glos Homes,Permanent Nursing,Fshc  1St Floor,632.64, 15-Jan-2019
1493,Revenue,CAHD,South Glos Users in South Glos Homes,Permanent Nursing,Fshc  1St Floor,632.64, 15-Jan-2019
1494,Revenue,CAHD,South Glos Users in South Glos Homes,Permanent Nursing,Fshc  1St Floor,1694.57, 15-Jan-2019
1495,Revenue,CAHD,South Glos Users in South Glos Homes,Permanent Nursing,Fshc  1St Floor,632.64, 15-Jan-2019
1496,Revenue,CAHD,Bed Purchasing - North,Permanent Nursing,Fshc  1St Floor,2510.52, 15-Jan-2019
1497,Revenue,CAHD,South Glos Users in South Glos Homes,Permanent Nursing,Fshc  1St Floor,1423.44, 15-Jan-2019
1498,Revenue,CAHD,Bed Purchasing - North,Permanent Nursing,Fshc  1St Floor,836.84, 15-Jan-2019
1499,Revenue,CAHD,South Glos Users in South Glos Homes,Permanent Nursing,Fshc  1St Floor,632.64, 15-Jan-2019
1500,Revenue,CAHD,Bed Purchasing - Central,Respite Emergency - Residential,Fshc  1St Floor,1928.57, 15-Jan-2019
1501,Revenue,CAHD,South Glos Users in South Glos Homes,Permanent Nursing,Fshc  1St Floor,926.37, 15-Jan-2019
1502,Revenue,CAHD,South Glos Users in South Glos Homes,Permanent Nursing,Fshc  1St Floor,632.64, 15-Jan-2019
1503,Revenue,CAHD,Bed Purchasing - Southmead Hospital,Respite Planned - Nursing,Fshc  1St Floor,2967.36, 15-Jan-2019
1504,Revenue,CAHD,Bed Purchasing - Central,Permanent Nursing,Fshc  1St Floor,2380.96, 15-Jan-2019
1505,Revenue,CAHD,Bed Purchasing - Central,Permanent Nursing,Fshc  1St Floor,1445.58, 15-Jan-2019
1506,Revenue,CAHD,South Glos Users in South Glos Homes,Permanent Nursing,Fshc  1St Floor,632.64, 15-Jan-2019
1507,Revenue,CAHD,Bed Purchasing - Central,Permanent Nursing,Fshc  1St Floor,2967.36, 15-Jan-2019
1508,Revenue,CAHD,South Glos Users in South Glos Homes,Permanent Nursing,Fshc  1St Floor,632.64, 15-Jan-2019
1509,Revenue,CAHD,South Glos Users in South Glos Homes,Permanent Nursing,Fshc  1St Floor,632.64, 15-Jan-2019
1510,Revenue,CAHD,Bed Purchasing - North,Permanent Nursing,Fshc  1St Floor,2767.76, 15-Jan-2019
1511,Revenue,CAHD,South Glos Users in South Glos Homes,Permanent Nursing,Fshc  1St Floor,632.64, 15-Jan-2019
1512,Revenue,CAHD,South Glos Users in South Glos Homes,Permanent Nursing,Fshc  1St Floor,632.64, 15-Jan-2019
1513,Revenue,CAHD,Bed Purchasing - Central,Permanent Nursing,Fshc  1St Floor,3158.92, 15-Jan-2019
1514,Revenue,CAHD,South Glos Users in South Glos Homes,Permanent Nursing,Fshc  1St Floor,632.64, 15-Jan-2019
1515,Revenue,CAHD,Bed Purchasing - North,Permanent Nursing,Fshc  1St Floor,2456.52, 15-Jan-2019
1516,Revenue,CAHD,South Glos Users in South Glos Homes,Permanent Nursing,Fshc  1St Floor,632.64, 15-Jan-2019
1517,Revenue,CAHD,Bed Purchasing - South,Permanent Nursing,Fshc  1St Floor,2554.80, 15-Jan-2019
1518,Revenue,CAHD,South Glos Users in South Glos Homes,Permanent Nursing,Fshc  1St Floor,632.64, 15-Jan-2019
1519,Revenue,CAHD,Bed Purchasing - Central,Permanent Nursing,Fshc  1St Floor,2380.96, 15-Jan-2019
1520,Revenue,CAHD,South Glos Users in South Glos Homes,Permanent Nursing,Fshc  1St Floor,632.64, 15-Jan-2019
1521,Revenue,CAHD,Bed Purchasing - South,Permanent Nursing,Fshc  1St Floor,2477.40, 15-Jan-2019
1522,Revenue,CAHD,South Glos Users in South Glos Homes,Permanent Nursing,Fshc  1St Floor,632.64, 15-Jan-2019
1523,Revenue,CAHD,Bed Purchasing - South,Permanent Nursing,Fshc  1St Floor,3167.36, 15-Jan-2019
1524,Revenue,CAHD,South Glos Users in South Glos Homes,Permanent Nursing,Fshc  1St Floor,632.64, 15-Jan-2019
1525,Revenue,CAHD,Bed Purchasing - South,Permanent Nursing,Fshc  1St Floor,2547.52, 15-Jan-2019
1526,Revenue,CAHD,South Glos Users in South Glos Homes,Permanent Nursing,Fshc  1St Floor,632.64, 15-Jan-2019
1527,Revenue,CAHD,Bed Purchasing - South,Permanent Nursing,Fshc  1St Floor,2310.44, 15-Jan-2019
1528,Revenue,CAHD,South Glos Users in South Glos Homes,Permanent Nursing,Fshc  1St Floor,632.64, 15-Jan-2019
1529,Revenue,CAHD,South Glos Users in South Glos Homes,Permanent Nursing,Fshc  1St Floor,632.64, 15-Jan-2019
1530,Revenue,CAHD,Bed Purchasing - South,Permanent Nursing,Fshc  1St Floor,2445.60, 15-Jan-2019
1531,Revenue,CAHD,South Glos Users in South Glos Homes,Permanent Nursing,Fshc  1St Floor,632.64, 15-Jan-2019
1532,Revenue,CAHD,Bed Purchasing - South,Fees & Charges Income - General,Fshc  1St Floor,3327.48, 15-Jan-2019
1533,Revenue,CAHD,South Glos Users in South Glos Homes,Permanent Nursing,Fshc  1St Floor,632.64, 15-Jan-2019
1534,Revenue,CAHD,Bed Purchasing - South,Permanent Residential,Fshc  1St Floor,2600.00, 15-Jan-2019
1535,Revenue,CAHD,South Glos Users in South Glos Homes,Permanent Nursing,Fshc  1St Floor,632.64, 15-Jan-2019
1536,Revenue,CAHD,Bed Purchasing - South,Permanent Residential,Fshc  1St Floor,2343.72, 15-Jan-2019
1537,Revenue,CAHD,Bed Purchasing - South,Permanent Residential,Fshc  1St Floor,2400.00, 15-Jan-2019
1538,Revenue,CAHD,South Glos Users in South Glos Homes,Permanent Nursing,Fshc  1St Floor,632.64, 15-Jan-2019
1539,Revenue,CAHD,Bed Purchasing - South,Permanent Residential,Fshc  1St Floor,2180.68, 15-Jan-2019
1540,Revenue,CAHD,Bed Purchasing - South,Permanent Nursing,Fshc  1St Floor,2380.96, 15-Jan-2019
1541,Revenue,CAHD,South Glos Users in South Glos Homes,Permanent Nursing,Fshc  1St Floor,632.64, 15-Jan-2019
1542,Revenue,CAHD,Bed Purchasing - South,Permanent Nursing,Fshc  1St Floor,2310.44, 15-Jan-2019
1543,Revenue,CAHD,South Glos Users in South Glos Homes,Permanent Nursing,Fshc  1St Floor,632.64, 15-Jan-2019
1544,Revenue,CAHD,Bed Purchasing - South,Permanent Nursing,Fshc  1St Floor,2683.84, 15-Jan-2019
1545,Revenue,CAHD,South Glos Users in South Glos Homes,Permanent Nursing,Fshc  1St Floor,632.64, 15-Jan-2019
1546,Revenue,CAHD,Bed Purchasing - South,Permanent Nursing,Fshc  1St Floor,2310.44, 15-Jan-2019
1547,Revenue,CAHD,South Glos Users in South Glos Homes,Permanent Nursing,Fshc  1St Floor,632.64, 15-Jan-2019
1548,Revenue,CAHD,Bed Purchasing - South,Permanent Residential,Fshc  1St Floor,2223.84, 15-Jan-2019
1549,Revenue,CAHD,Bed Purchasing - South,Permanent Nursing,Fshc  1St Floor,2233.76, 15-Jan-2019
1550,Revenue,CAHD,Bed purchasing - Elderly S117 - South,Permanent Nursing,Fshc  1St Floor,2233.76, 15-Jan-2019
1551,Revenue,CAHD,Bed Purchasing - South,Permanent Nursing,Fshc  1St Floor,3509.64, 15-Jan-2019
1552,Revenue,CAHD,Bed Purchasing - North,Permanent Nursing,Fshc  1St Floor,2233.76, 15-Jan-2019
1553,Revenue,CAHD,Bed Purchasing - North,Permanent Nursing,Fshc  1St Floor,3668.40, 15-Jan-2019
1554,Revenue,CAHD,Bed Purchasing - North,Permanent Nursing,Fshc  1St Floor,3158.92, 15-Jan-2019
1555,Revenue,CAHD,Bed Purchasing - South,Permanent Nursing,Fshc  1St Floor,2233.76, 15-Jan-2019
1556,Revenue,CAHD,Bed Purchasing - South,Permanent Residential,Fshc  1St Floor,3656.28, 15-Jan-2019
1557,Revenue,CAHD,Bed Purchasing - Southmead Hospital,Permanent Nursing,Fshc  1St Floor,3518.34, 15-Jan-2019
1558,Revenue,CAHD,Bed Purchasing - Southmead Hospital,Permanent Nursing,Fshc  1St Floor,1926.71, 15-Jan-2019
1559,Revenue,CAHD,South Glos Users in South Glos Homes,Permanent Nursing,Fshc  1St Floor,632.64, 15-Jan-2019
1560,Revenue,CAHD,Bed Purchasing - Southmead Hospital,Fees & Charges Income - General,Fshc  1St Floor,540.17, 15-Jan-2019
1561,Revenue,CAHD,Bed Purchasing - North,Permanent Residential,Fshc  1St Floor,2701.52, 15-Jan-2019
1562,Revenue,CAHD,Bed Purchasing - North,Permanent Residential,Fshc  1St Floor,2292.20, 15-Jan-2019
1563,Revenue,CAHD,Bed Purchasing - North,Permanent Nursing,Fshc  1St Floor,2235.88, 15-Jan-2019
1564,Revenue,CAHD,Bed Purchasing - Central,Respite Emergency - Residential,Fshc  1St Floor,3242.87, 15-Jan-2019
1565,Revenue,CAHD,Bed Purchasing - Central,Permanent Residential,Fshc  1St Floor,1882.88, 15-Jan-2019
1566,Revenue,CAHD,Bed Purchasing - Central,Permanent Nursing,Fshc  1St Floor,4076.00, 15-Jan-2019
1567,Revenue,CAHD,Bed Purchasing - North,Respite Emergency - Residential,Fshc  1St Floor,4338.81, 15-Jan-2019
1568,Revenue,CAHD,Bed Purchasing - North,Respite Emergency - Residential,Fshc  1St Floor,1146.10, 15-Jan-2019
1569,Revenue,CAHD,Bed Purchasing - North,Permanent Nursing,Fshc  1St Floor,2309.04, 15-Jan-2019
1570,Revenue,CAHD,Bed Purchasing - North,Permanent Residential,Fshc  1St Floor,1890.36, 15-Jan-2019
1571,Revenue,CAHD,Bed Purchasing - Southmead Hospital,Permanent Nursing,Fshc  1St Floor,2595.52, 15-Jan-2019
1572,Revenue,CAHD,CSC - Agency Fostering,Foster Parent Allowances,Fusion Fostering Ltd,4626.97, 23-Jan-2019
1573,Revenue,CAHD,CSC - Asylum Seekers - Unaccompanied,Adults - Family Support,Fusion Independence Limited,3321.43, 28-Jan-2019
1574,Revenue,CAHD,CSC - Care Leavers Independent Living,Independent Living,Fusion Independence Limited,17714.28, 30-Jan-2019
1575,Revenue,CAHD,CSC - Corporate Parenting Manager,Agency Staff (Admin/Support Staff) Pay,Gatenby Sanderson Limited,2900.00, 04-Jan-2019
1576,Revenue,CAHD,CSC - Corporate Parenting Manager,Agency Staff (Admin/Support Staff) Pay,Gatenby Sanderson Limited,3480.00, 08-Jan-2019
1577,Revenue,CAHD,CSC - Corporate Parenting Manager,Agency Staff (Admin/Support Staff) Pay,Gatenby Sanderson Limited,2320.00, 14-Jan-2019
1578,Revenue,CAHD,Alexandra Way,Premises Maintenance by Contractor,Individual,850.00, 23-Jan-2019
1579,Revenue,CAHD,Alexandra Way,Premises Maintenance by Contractor,Individual,1150.00, 23-Jan-2019
1580,Revenue,CAHD,Alexandra Way,Premises Maintenance by Contractor,Individual,2090.00, 09-Jan-2019
1581,Revenue,CAHD,Training - Adult Services,Training Expenses,Gizware Systems Limited,500.00, 09-Jan-2019
1582,Revenue,CAHD,Bed Purchasing - South,Permanent Residential,Gladstone House,5859.20, 15-Jan-2019
1583,Revenue,CAHD,Jointly Funded H&SC Packages,Permanent Residential,Gladstone House,765.60, 15-Jan-2019
1584,Revenue,CAHD,MH Purchasing - Younger,Permanent Residential,Gladstone House,3062.40, 15-Jan-2019
1585,Revenue,CAHD,Bed Purchasing - North,Permanent Residential,Glan Y Felin,6643.96, 15-Jan-2019
1586,Revenue,CAHD,Bed Purchasing - South,Permanent Residential,Glasallt Fawr,5219.16, 15-Jan-2019
1587,Revenue,CAHD,Bed Purchasing - North,Permanent Nursing,Glebe House Nursing Home,3578.28, 15-Jan-2019
1588,Revenue,CAHD,South Glos Users in South Glos Homes,Permanent Nursing,Glebe House Nursing Home,632.64, 15-Jan-2019
1589,Revenue,CAHD,South Glos Users in South Glos Homes,Permanent Nursing,Glebe House Nursing Home,632.64, 15-Jan-2019
1590,Revenue,CAHD,South Glos Users in South Glos Homes,Permanent Nursing,Glebe House Nursing Home,632.64, 15-Jan-2019
1591,Revenue,CAHD,Bed Purchasing - North,Permanent Nursing,Glebe House Nursing Home,3789.28, 15-Jan-2019
1592,Revenue,CAHD,South Glos Users in South Glos Homes,Permanent Nursing,Glebe House Nursing Home,632.64, 15-Jan-2019
1593,Revenue,CAHD,South Glos Users in South Glos Homes,Permanent Nursing,Glebe House Nursing Home,632.64, 15-Jan-2019
1594,Revenue,CAHD,South Glos Users in South Glos Homes,Permanent Nursing,Glebe House Nursing Home,632.64, 15-Jan-2019
1595,Revenue,CAHD,South Glos Users in South Glos Homes,Permanent Nursing,Glebe House Nursing Home,632.64, 15-Jan-2019
1596,Revenue,CAHD,Bed Purchasing - North,Permanent Residential,Glebe House Nursing Home,3696.32, 15-Jan-2019
1597,Revenue,CAHD,Bed Purchasing - North,Permanent Residential,Glebe House Nursing Home,3744.00, 15-Jan-2019
1598,Revenue,CAHD,South Glos Users in South Glos Homes,Permanent Nursing,Glebe House Nursing Home,632.64, 15-Jan-2019
1599,Revenue,CAHD,South Glos Users in South Glos Homes,Permanent Nursing,Glebe House Nursing Home,632.64, 15-Jan-2019
1600,Revenue,CAHD,Bed Purchasing - North,Permanent Nursing,Glebe House Nursing Home,3953.72, 15-Jan-2019
1601,Revenue,CAHD,South Glos Users in South Glos Homes,Permanent Nursing,Glebe House Nursing Home,632.64, 15-Jan-2019
1602,Revenue,CAHD,South Glos Users in South Glos Homes,Permanent Nursing,Glebe House Nursing Home,632.64, 15-Jan-2019
1603,Revenue,CAHD,South Glos Users in South Glos Homes,Permanent Nursing,Glebe House Nursing Home,632.64, 15-Jan-2019
1604,Revenue,CAHD,Bed Purchasing - North,Permanent Nursing,Glebe House Nursing Home,3867.36, 15-Jan-2019
1605,Revenue,CAHD,South Glos Users in South Glos Homes,Permanent Nursing,Glebe House Nursing Home,632.64, 15-Jan-2019
1606,Revenue,CAHD,South Glos Users in South Glos Homes,Permanent Nursing,Glebe House Nursing Home,948.96, 15-Jan-2019
1607,Revenue,CAHD,South Glos Users in South Glos Homes,Permanent Nursing,Glebe House Nursing Home,632.64, 15-Jan-2019
1608,Revenue,CAHD,South Glos Users in South Glos Homes,Permanent Nursing,Glebe House Nursing Home,948.96, 15-Jan-2019
1609,Revenue,CAHD,South Glos Users in South Glos Homes,Permanent Nursing,Glebe House Nursing Home,632.64, 15-Jan-2019
1610,Revenue,CAHD,South Glos Users in South Glos Homes,Permanent Nursing,Glebe House Nursing Home,632.64, 15-Jan-2019
1611,Revenue,CAHD,Bed Purchasing - North,Permanent Nursing,Glebe House Nursing Home,3420.00, 15-Jan-2019
1612,Revenue,CAHD,South Glos Users in South Glos Homes,Permanent Nursing,Glebe House Nursing Home,632.64, 15-Jan-2019
1613,Revenue,CAHD,Bed Purchasing - North,Permanent Nursing,Glebe House Nursing Home,2507.14, 15-Jan-2019
1614,Revenue,CAHD,Bed Purchasing - North,Permanent Nursing,Glenview,3224.00, 15-Jan-2019
1615,Revenue,CAHD,Bed Purchasing - Elderly S117- North,Permanent Nursing,Glenview,3224.00, 15-Jan-2019
1616,Revenue,CAHD,Bed Purchasing - North,Permanent Nursing,Glenview,6332.86, 15-Jan-2019
1617,Revenue,CAHD,Bed Purchasing - North,Fees & Charges Income - General,Glenview,1065.34, 15-Jan-2019
1618,Revenue,CAHD,Bed Purchasing - South,Permanent Nursing,Glenview,3900.00, 15-Jan-2019
1619,Revenue,CAHD,Bed Purchasing - South,Permanent Residential,Goldcare House,4625.52, 15-Jan-2019
1620,Revenue,CAHD,Bed Purchasing - South,Permanent Residential,Gordena Care Home,2635.96, 15-Jan-2019
1621,Revenue,CAHD,Bed Purchasing - South,Permanent Residential,Gordena Care Home,3752.80, 15-Jan-2019
1622,Revenue,CAHD,Bed Purchasing - South,Permanent Residential,Gordena Care Home,3764.24, 15-Jan-2019
1623,Revenue,CAHD,Bed Purchasing - South,Permanent Residential,Gordena Care Limited,4918.60, 15-Jan-2019
1624,Revenue,CAHD,Bed purchasing - S28A Under 65 - South,Permanent Residential,Gordena Care Limited,4783.60, 15-Jan-2019
1625,Revenue,CAHD,Bed Purchasing - North,Permanent Residential,Gordena Care Limited,4985.60, 15-Jan-2019
1626,Revenue,CAHD,South Glos Users in South Glos Homes,Permanent Nursing,Gracefields Nursing Home,632.64, 15-Jan-2019
1627,Revenue,CAHD,South Glos Users in South Glos Homes,Permanent Nursing,Gracefields Nursing Home,632.64, 15-Jan-2019
1628,Revenue,CAHD,Bed Purchasing - South,Permanent Nursing,Gracefields Nursing Home,3707.36, 15-Jan-2019
1629,Revenue,CAHD,South Glos Users in South Glos Homes,Permanent Nursing,Gracefields Nursing Home,632.64, 15-Jan-2019
1630,Revenue,CAHD,South Glos Users in South Glos Homes,Permanent Nursing,Gracefields Nursing Home,632.64, 15-Jan-2019
1631,Revenue,CAHD,Bed Purchasing - South,Permanent Nursing,Gracefields Nursing Home,3566.52, 15-Jan-2019
1632,Revenue,CAHD,South Glos Users in South Glos Homes,Permanent Nursing,Gracefields Nursing Home,632.64, 15-Jan-2019
1633,Revenue,CAHD,South Glos Users in South Glos Homes,Permanent Nursing,Gracefields Nursing Home,632.64, 15-Jan-2019
1634,Revenue,CAHD,Bed Purchasing - Southmead Hospital,Permanent Nursing,Gracefields Nursing Home,3567.36, 15-Jan-2019
1635,Revenue,CAHD,South Glos Users in South Glos Homes,Permanent Nursing,Gracefields Nursing Home,1242.69, 15-Jan-2019
1636,Revenue,CAHD,South Glos Users in South Glos Homes,Permanent Nursing,Gracefields Nursing Home,632.64, 15-Jan-2019
1637,Revenue,CAHD,Bed purchasing - Elderly S117 - South,Permanent Nursing,Gracefields Nursing Home,2492.16, 15-Jan-2019
1638,Revenue,CAHD,South Glos Users in South Glos Homes,Permanent Nursing,Gracefields Nursing Home,632.64, 15-Jan-2019
1639,Revenue,CAHD,Bed Purchasing - South,Permanent Nursing,Gracefields Nursing Home,3668.40, 15-Jan-2019
1640,Revenue,CAHD,South Glos Users in South Glos Homes,Permanent Nursing,Gracefields Nursing Home,632.64, 15-Jan-2019
1641,Revenue,CAHD,Bed Purchasing - South,Permanent Nursing,Gracefields Nursing Home,3153.52, 15-Jan-2019
1642,Revenue,CAHD,South Glos Users in South Glos Homes,Permanent Nursing,Gracefields Nursing Home,632.64, 15-Jan-2019
1643,Revenue,CAHD,South Glos Users in South Glos Homes,Permanent Nursing,Gracefields Nursing Home,632.64, 15-Jan-2019
1644,Revenue,CAHD,Bed Purchasing - South,Permanent Nursing,Gracefields Nursing Home,3464.60, 15-Jan-2019
1645,Revenue,CAHD,South Glos Users in South Glos Homes,Permanent Nursing,Gracefields Nursing Home,632.64, 15-Jan-2019
1646,Revenue,CAHD,South Glos Users in South Glos Homes,Permanent Nursing,Gracefields Nursing Home,632.64, 15-Jan-2019
1647,Revenue,CAHD,South Glos Users in South Glos Homes,Permanent Nursing,Gracefields Nursing Home,632.64, 15-Jan-2019
1648,Revenue,CAHD,Bed Purchasing - Central,Permanent Nursing,Gracefields Nursing Home,3567.36, 15-Jan-2019
1649,Revenue,CAHD,South Glos Users in South Glos Homes,Permanent Nursing,Gracefields Nursing Home,632.64, 15-Jan-2019
1650,Revenue,CAHD,South Glos Users in South Glos Homes,Permanent Nursing,Gracefields Nursing Home,632.64, 15-Jan-2019
1651,Revenue,CAHD,Bed Purchasing - South,Permanent Nursing,Gracefields Nursing Home,3567.36, 15-Jan-2019
1652,Revenue,CAHD,South Glos Users in South Glos Homes,Permanent Nursing,Gracefields Nursing Home,632.64, 15-Jan-2019
1653,Revenue,CAHD,South Glos Users in South Glos Homes,Permanent Nursing,Gracefields Nursing Home,632.64, 15-Jan-2019
1654,Revenue,CAHD,Bed Purchasing - South,Permanent Nursing,Gracefields Nursing Home,3566.52, 15-Jan-2019
1655,Revenue,CAHD,South Glos Users in South Glos Homes,Permanent Nursing,Gracefields Nursing Home,632.64, 15-Jan-2019
1656,Revenue,CAHD,Bed Purchasing - South,Permanent Nursing,Gracefields Nursing Home,3487.36, 15-Jan-2019
1657,Revenue,CAHD,South Glos Users in South Glos Homes,Permanent Nursing,Gracefields Nursing Home,632.64, 15-Jan-2019
1658,Revenue,CAHD,Bed Purchasing - South,Permanent Nursing,Gracefields Nursing Home,3129.76, 15-Jan-2019
1659,Revenue,CAHD,South Glos Users in South Glos Homes,Permanent Nursing,Gracefields Nursing Home,632.64, 15-Jan-2019
1660,Revenue,CAHD,South Glos Users in South Glos Homes,Permanent Nursing,Gracefields Nursing Home,632.64, 15-Jan-2019
1661,Revenue,CAHD,South Glos Users in South Glos Homes,Permanent Nursing,Gracefields Nursing Home,632.64, 15-Jan-2019
1662,Revenue,CAHD,South Glos Users in South Glos Homes,Permanent Nursing,Gracefields Nursing Home,632.64, 15-Jan-2019
1663,Revenue,CAHD,Bed Purchasing - South,Permanent Nursing,Gracefields Nursing Home,3153.52, 15-Jan-2019
1664,Revenue,CAHD,South Glos Users in South Glos Homes,Permanent Nursing,Gracefields Nursing Home,632.64, 15-Jan-2019
1665,Revenue,CAHD,Bed Purchasing - South,Permanent Nursing,Gracefields Nursing Home,3026.56, 15-Jan-2019
1666,Revenue,CAHD,South Glos Users in South Glos Homes,Permanent Nursing,Gracefields Nursing Home,632.64, 15-Jan-2019
1667,Revenue,CAHD,South Glos Users in South Glos Homes,Permanent Nursing,Gracefields Nursing Home,632.64, 15-Jan-2019
1668,Revenue,CAHD,South Glos Users in South Glos Homes,Permanent Nursing,Gracefields Nursing Home,632.64, 15-Jan-2019
1669,Revenue,CAHD,South Glos Users in South Glos Homes,Permanent Nursing,Gracefields Nursing Home,4955.36, 15-Jan-2019
1670,Revenue,CAHD,South Glos Users in South Glos Homes,Permanent Nursing,Gracefields Nursing Home,632.64, 15-Jan-2019
1671,Revenue,CAHD,South Glos Users in South Glos Homes,Permanent Nursing,Gracefields Nursing Home,632.64, 15-Jan-2019
1672,Revenue,CAHD,South Glos Users in South Glos Homes,Permanent Nursing,Gracefields Nursing Home,632.64, 15-Jan-2019
1673,Revenue,CAHD,South Glos Users in South Glos Homes,Permanent Nursing,Gracefields Nursing Home,632.64, 15-Jan-2019
1674,Revenue,CAHD,South Glos Users in South Glos Homes,Permanent Nursing,Gracefields Nursing Home,632.64, 15-Jan-2019
1675,Revenue,CAHD,South Glos Users in South Glos Homes,Permanent Nursing,Gracefields Nursing Home,632.64, 15-Jan-2019
1676,Revenue,CAHD,Bed Purchasing - South,Permanent Nursing,Gracefields Nursing Home,632.64, 15-Jan-2019
1677,Revenue,CAHD,South Glos Users in South Glos Homes,Permanent Nursing,Gracefields Nursing Home,632.64, 15-Jan-2019
1678,Revenue,CAHD,Bed Purchasing - South,Permanent Nursing,Gracefields Nursing Home,3400.00, 15-Jan-2019
1679,Revenue,CAHD,South Glos Users in South Glos Homes,Permanent Nursing,Gracefields Nursing Home,632.64, 15-Jan-2019
1680,Revenue,CAHD,Bed Purchasing - South,Permanent Nursing,Gracefields Nursing Home,3567.36, 15-Jan-2019
1681,Revenue,CAHD,Bed Purchasing - South,Permanent Nursing,Gracefields Nursing Home,2492.16, 15-Jan-2019
1682,Revenue,CAHD,South Glos Users in South Glos Homes,Permanent Nursing,Gracefields Nursing Home,632.64, 15-Jan-2019
1683,Revenue,CAHD,Bed Purchasing - South,Permanent Nursing,Gracefields Nursing Home,3464.60, 15-Jan-2019
1684,Revenue,CAHD,South Glos Users in South Glos Homes,Permanent Nursing,Gracefields Nursing Home,632.64, 15-Jan-2019
1685,Revenue,CAHD,South Glos Users in South Glos Homes,Permanent Nursing,Gracefields Nursing Home,632.64, 15-Jan-2019
1686,Revenue,CAHD,South Glos Users in South Glos Homes,Permanent Nursing,Gracefields Nursing Home,632.64, 15-Jan-2019
1687,Revenue,CAHD,South Glos Users in South Glos Homes,Permanent Nursing,Gracefields Nursing Home,632.64, 15-Jan-2019
1688,Revenue,CAHD,South Glos Users in South Glos Homes,Permanent Nursing,Gracefields Nursing Home,632.64, 15-Jan-2019
1689,Revenue,CAHD,CSC - Residential Placements,Permanent Residential,Greenfields Adolecent Development Limited,26527.14, 30-Jan-2019
1690,Revenue,CAHD,Academy Resource Base Funding,Other Public Bodies,Greenshaw Learning Trust T/A Yate Academy,1013.74, 23-Jan-2019
1691,Revenue,CAHD,Academy Resource Base Funding,Other Public Bodies,Greenshaw Learning Trust T/A Yate Academy,1013.74, 23-Jan-2019
1692,Revenue,CAHD,Academy Resource Base Funding,Other Public Bodies,Greenshaw Learning Trust T/A Yate Academy,1540.83, 23-Jan-2019
1693,Revenue,CAHD,Academy Resource Base Funding,Other Public Bodies,Greenshaw Learning Trust T/A Yate Academy,1175.88, 23-Jan-2019
1694,Revenue,CAHD,Academy Resource Base Funding,Other Public Bodies,Greenshaw Learning Trust T/A Yate Academy,648.71, 23-Jan-2019
1695,Revenue,CAHD,Academy Resource Base Funding,Other Public Bodies,Greenshaw Learning Trust T/A Yate Academy,1702.96, 23-Jan-2019
1696,Revenue,CAHD,Academy Resource Base Funding,Other Public Bodies,Greenshaw Learning Trust T/A Yate Academy,1540.83, 23-Jan-2019
1697,Revenue,CAHD,Statemented Support Academies,Schools Funding,Greenshaw Learning Trust T/A Yate Academy,694.91, 25-Jan-2019
1698,Revenue,CAHD,Statemented Support Academies,Schools Funding,Greenshaw Learning Trust T/A Yate Academy,1213.74, 25-Jan-2019
1699,Revenue,CAHD,Statemented Support Academies,Schools Funding,Greenshaw Learning Trust T/A Yate Academy,848.20, 25-Jan-2019
1700,Revenue,CAHD,Statemented Support Academies,Schools Funding,Greenshaw Learning Trust T/A Yate Academy,1461.37, 25-Jan-2019
1701,Revenue,CAHD,Statemented Support Academies,Schools Funding,Greenshaw Learning Trust T/A Yate Academy,1461.37, 25-Jan-2019
1702,Revenue,CAHD,Statemented Support Academies,Schools Funding,Greenshaw Learning Trust T/A Yate Academy,1213.74, 25-Jan-2019
1703,Revenue,CAHD,Statemented Support Academies,Schools Funding,Greenshaw Learning Trust T/A Yate Academy,1213.74, 25-Jan-2019
1704,Revenue,CAHD,Statemented Support Academies,Schools Funding,Greenshaw Learning Trust T/A Yate Academy,977.91, 25-Jan-2019
1705,Revenue,CAHD,Statemented Support Academies,Schools Funding,Greenshaw Learning Trust T/A Yate Academy,942.53, 25-Jan-2019
1706,Revenue,CAHD,Statemented Support Academies,Schools Funding,Greenshaw Learning Trust T/A Yate Academy,883.58, 25-Jan-2019
1707,Revenue,CAHD,Statemented Support Academies,Schools Funding,Greenshaw Learning Trust T/A Yate Academy,966.12, 25-Jan-2019
1708,Revenue,CAHD,Statemented Support Academies,Schools Funding,Greenshaw Learning Trust T/A Yate Academy,918.95, 25-Jan-2019
1709,Revenue,CAHD,Statemented Support Academies,Schools Funding,Greenshaw Learning Trust T/A Yate Academy,1001.49, 25-Jan-2019
1710,Revenue,CAHD,Statemented Support Academies,Schools Funding,Greenshaw Learning Trust T/A Yate Academy,765.66, 25-Jan-2019
1711,Revenue,CAHD,Statemented Support Academies,Schools Funding,Greenshaw Learning Trust T/A Yate Academy,694.91, 25-Jan-2019
1712,Revenue,CAHD,Bed Purchasing - North,Permanent Residential,Greensleeves,2075.40, 15-Jan-2019
1713,Revenue,CAHD,Bed Purchasing - South,Respite Planned - Residential,Gwendoline House,1240.00, 15-Jan-2019
1714,Revenue,CAHD,Bed Purchasing - South,Permanent Residential,Gwendoline House,2613.96, 15-Jan-2019
1715,Revenue,CAHD,Bed Purchasing - North,Permanent Residential,Gwendoline House,2480.00, 15-Jan-2019
1716,Revenue,CAHD,Bed Purchasing - North,Permanent Residential,Gwendoline House,1151.43, 15-Jan-2019
1717,Revenue,CAHD,Bed Purchasing - South,Permanent Residential,Gwendoline House,2415.44, 15-Jan-2019
1718,Revenue,CAHD,CSC - Vinney Green Secure Unit,R & M by Departments,HAG Shutters & Grilles Limited,1799.00, 04-Jan-2019
1719,Revenue,CAHD,Early Years Inclusion Fund,Other Public Bodies,Hambrook Pre-School,1500.00, 24-Jan-2019
1720,Revenue,CAHD,Social Lettings Agency,Fees - General,Individual,13.13, 25-Jan-2019
1721,Revenue,CAHD,Social Lettings Agency,Other Supplies & Services,Individual,577.72, 25-Jan-2019
1722,Revenue,CAHD,CSC - Residential Placements,Permanent Residential,Hampshire County Council,30000.00, 02-Jan-2019
1723,Revenue,CAHD,CSC - Residential Placements,Permanent Residential,Hampshire County Council,3000.00, 18-Jan-2019
1724,Revenue,CAHD,Home Care - Elderly - North,Other Supplies & Services,HAS Technology Limited T/A CM2000,1836.00, 03-Jan-2019
1725,Revenue,CAHD,Early Years Inclusion Fund,Other Public Bodies,Hazel Key,1600.00, 11-Jan-2019
1726,Revenue,CAHD,Early Years Inclusion Fund,Other Public Bodies,Hazell Thomas,1600.00, 11-Jan-2019
1727,Revenue,CAHD,Bed Purchasing - North,Permanent Nursing,Hazelwood Gardens Nursing Home,2658.04, 15-Jan-2019
1728,Revenue,CAHD,Bed Purchasing - North,Permanent Nursing,Hazelwood Gardens Nursing Home,2288.56, 15-Jan-2019
1729,Revenue,CAHD,Bed Purchasing - Central,Permanent Residential,Hc-One Ltd,2181.00, 15-Jan-2019
1730,Revenue,CAHD,Bed Purchasing - North,Permanent Nursing,Hc-One Ltd,2816.28, 15-Jan-2019
1731,Revenue,CAHD,Bed Purchasing - North,Permanent Nursing,Hc-One Ltd,2156.56, 15-Jan-2019
1732,Revenue,CAHD,Bed Purchasing - Central,Permanent Residential,Hc-One Ltd,2224.52, 15-Jan-2019
1733,Revenue,CAHD,Bed Purchasing - Central,Permanent Residential,Hc-One Ltd,2313.72, 15-Jan-2019
1734,Revenue,CAHD,Bed Purchasing - Central,Permanent Nursing,Hc-One Ltd,2267.32, 15-Jan-2019
1735,Revenue,CAHD,Bed Purchasing - North,Permanent Nursing,Hc-One Ltd,2171.08, 15-Jan-2019
1736,Revenue,CAHD,Bed Purchasing - North,Respite Planned - Residential,Hc-One Ltd,1747.84, 15-Jan-2019
1737,Revenue,CAHD,Bed Purchasing - Central,Permanent Residential,Hc-One Ltd,2224.52, 15-Jan-2019
1738,Revenue,CAHD,Bed Purchasing - North,Permanent Nursing,Head Office,2412.88, 15-Jan-2019
1739,Revenue,CAHD,CSC - Residential Placements,Permanent Residential,Headway Adolescent Resources Limited,13600.00, 16-Jan-2019
1740,Revenue,CAHD,Homecare - Central,Day Care / Social Activities,Headway Bristol,749.36, 07-Jan-2019
1741,Revenue,CAHD,Homecare - Central,Other Small Contracts,Headway Bristol,732.83, 07-Jan-2019
1742,Revenue,CAHD,Home Care - Elderly - South,Day Care / Social Activities,Headway Bristol,330.60, 07-Jan-2019
1743,Revenue,CAHD,Home Care - Elderly - South,Other Small Contracts,Headway Bristol,264.48, 07-Jan-2019
1744,Revenue,CAHD,Home Care - Elderly - North,Day Care / Social Activities,Headway Bristol,66.12, 07-Jan-2019
1745,Revenue,CAHD,Home Care - Elderly - North,Other Small Contracts,Headway Bristol,88.16, 07-Jan-2019
1746,Revenue,CAHD,Younger MH non-res purchasing,Day Care / Social Activities,Headway Bristol,88.16, 07-Jan-2019
1747,Revenue,CAHD,Homecare - Central,Day Care / Social Activities,Headway Bristol,749.36, 14-Jan-2019
1748,Revenue,CAHD,Homecare - Central,Other Small Contracts,Headway Bristol,595.08, 14-Jan-2019
1749,Revenue,CAHD,Home Care - Elderly - South,Day Care / Social Activities,Headway Bristol,330.60, 14-Jan-2019
1750,Revenue,CAHD,Home Care - Elderly - South,Other Small Contracts,Headway Bristol,330.60, 14-Jan-2019
1751,Revenue,CAHD,Home Care - Elderly - North,Day Care / Social Activities,Headway Bristol,66.12, 14-Jan-2019
1752,Revenue,CAHD,Younger MH non-res purchasing,Day Care / Social Activities,Headway Bristol,88.16, 14-Jan-2019
1753,Revenue,CAHD,Homecare - Central,Day Care / Social Activities,Headway Bristol,881.60, 30-Jan-2019
1754,Revenue,CAHD,Homecare - Central,Other Small Contracts,Headway Bristol,727.32, 30-Jan-2019
1755,Revenue,CAHD,Home Care - Elderly - South,Day Care / Social Activities,Headway Bristol,330.60, 30-Jan-2019
1756,Revenue,CAHD,Home Care - Elderly - South,Other Small Contracts,Headway Bristol,330.60, 30-Jan-2019
1757,Revenue,CAHD,Home Care - Elderly - North,Day Care / Social Activities,Headway Bristol,66.12, 30-Jan-2019
1758,Revenue,CAHD,Home Care - Elderly - North,Other Small Contracts,Headway Bristol,88.16, 30-Jan-2019
1759,Revenue,CAHD,Younger MH non-res purchasing,Day Care / Social Activities,Headway Bristol,44.08, 30-Jan-2019
1760,Revenue,CAHD,Early Years Inclusion Fund,Other Public Bodies,Heidi Johnston,1600.00, 28-Jan-2019
1761,Revenue,CAHD,Homecare - Central,Other Small Contracts,Helping Hands Homecare,1588.74, 04-Jan-2019
1762,Revenue,CAHD,Home Care - Elderly - South,Other Small Contracts,Helping Hands Homecare,548.40, 04-Jan-2019
1763,Revenue,CAHD,Home Care - Elderly - North,Other Small Contracts,Helping Hands Homecare,1193.23, 04-Jan-2019
1764,Revenue,CAHD,Homecare - Central,Other Small Contracts,Helping Hands Homecare,1558.66, 04-Jan-2019
1765,Revenue,CAHD,Home Care - Elderly - South,Other Small Contracts,Helping Hands Homecare,630.66, 04-Jan-2019
1766,Revenue,CAHD,Home Care - Elderly - North,Other Small Contracts,Helping Hands Homecare,1230.59, 04-Jan-2019
1767,Revenue,CAHD,Homecare - Central,Other Small Contracts,Helping Hands Homecare,1552.82, 16-Jan-2019
1768,Revenue,CAHD,Home Care - Elderly - South,Other Small Contracts,Helping Hands Homecare,552.97, 16-Jan-2019
1769,Revenue,CAHD,Home Care - Elderly - North,Other Small Contracts,Helping Hands Homecare,1222.84, 16-Jan-2019
1770,Revenue,CAHD,S117 Placements PCT,Permanent Residential,Hesley Hall,19258.12, 15-Jan-2019
1771,Revenue,CAHD,Bed Purchasing - Central,Permanent Residential,High Border Lodge,2092.00, 15-Jan-2019
1772,Revenue,CAHD,Bed Purchasing - North,Permanent Residential,High Border Lodge,2039.72, 15-Jan-2019
1773,Revenue,CAHD,18-25 Year Olds,Supported Living,Hillcairnie House,3406.32, 15-Jan-2019
1774,Revenue,CAHD,Home Care - Elderly - South,Supported Living,Hillcairnie House,4195.52, 15-Jan-2019
1775,Revenue,CAHD,Home Care - Elderly - South,Supported Living,Hillcairnie House,2517.76, 15-Jan-2019
1776,Revenue,CAHD,Home Care - Elderly - North,Supported Living,Hillcairnie House,2517.76, 15-Jan-2019
1777,Revenue,CAHD,Home Care - Elderly - South,Supported Living,Hillcairnie House,4195.52, 15-Jan-2019
1778,Revenue,CAHD,Home Care - Elderly - South,Supported Living,Hillcairnie House,2517.76, 15-Jan-2019
1779,Revenue,CAHD,18-25 Year Olds,Permanent Residential,Hilltop Residential Home,8603.72, 15-Jan-2019
1780,Revenue,CAHD,Jointly Funded H&SC Packages,Permanent Residential,Hilltop Residential Home,5463.12, 15-Jan-2019
1781,Revenue,CAHD,Bed Purchasing - North,Permanent Residential,Holly Tree Cottage,8331.28, 15-Jan-2019
1782,Revenue,CAHD,Jointly Funded H&SC Packages,Permanent Residential,Holly Tree Cottage,2517.28, 15-Jan-2019
1783,Revenue,CAHD,Bed Purchasing - Central,Permanent Nursing,Holly Villa,2102.68, 15-Jan-2019
1784,Revenue,CAHD,Bed Purchasing - North,Permanent Residential,Holmleigh Care Homes Ltd,4666.12, 15-Jan-2019
1785,Revenue,CAHD,Bed Purchasing - Central,Permanent Residential,Holmleigh Care Homes Ltd,8694.92, 15-Jan-2019
1786,Revenue,CAHD,Jointly Funded H&SC Packages,Permanent Residential,Holmleigh Care Homes Ltd,4720.00, 15-Jan-2019
1787,Revenue,CAHD,Bed Purchasing - South,Permanent Residential,Holmleigh Care Homes Ltd,4457.24, 15-Jan-2019
1788,Revenue,CAHD,Jointly Funded H&SC Packages,Permanent Residential,Holmleigh Care Homes Ltd,1276.96, 15-Jan-2019
1789,Revenue,CAHD,Homecare - Central,Supported Living,Home Farm Trust Ltd  5-6 Brook Office Pa,2111.48, 15-Jan-2019
1790,Revenue,CAHD,Home Care - Elderly - South,Supported Living,Home Farm Trust Ltd  5-6 Brook Office Pa,4151.60, 15-Jan-2019
1791,Revenue,CAHD,18-25 Year Olds,Permanent Residential,Home From Home Care Ltd,11822.76, 15-Jan-2019
1792,Revenue,CAHD,Bed and Breakfast,Bed & Breakfast,Homes 4 All Ltd,645.40, 17-Jan-2019
1793,Revenue,CAHD,Extra Care Housing,Private & Voluntary Home Care,Housing 21,40507.75, 15-Jan-2019
1794,Revenue,CAHD,Extra Care Housing,Private & Voluntary Home Care,Housing 21,37311.84, 04-Jan-2019
1795,Revenue,CAHD,Bed Purchasing - South,Permanent Nursing,Hydon Hill,6286.84, 15-Jan-2019
1796,Revenue,CAHD,Statemented Support Payments to OLAs,Other L.A.'s - General,IKB Academy,553.41, 25-Jan-2019
1797,Revenue,CAHD,Independent Special Placements - Pre 16,Other Private Contractors,Immanuel Christian School,1326.13, 24-Jan-2019
1798,Revenue,CAHD,SEN High Needs - Not at School Base,Other Private Contractors,Impact Mentoring,1350.00, 03-Jan-2019
1799,Revenue,CAHD,Mental Health  Projects,Project Funding,Independent Mental Health Network,600.00, 04-Jan-2019
1800,Revenue,CAHD,CSC - Vinney Green Secure Unit,Mechanical & Electrical Maintenance,Integral UK Limited,4300.00, 09-Jan-2019
1801,Revenue,CAHD,Alexandra Way,Equipment Maintenance,IRM Mobility & Healthcare Limited,431.95, 11-Jan-2019
1802,Revenue,CAHD,Bed Purchasing - Elderly S117- North,Permanent Residential,Ivybank House Care Home,10562.14, 21-Jan-2019
1803,Revenue,CAHD,Social Lettings Agency,Fees - General,Individual,12.22, 11-Jan-2019
1804,Revenue,CAHD,Social Lettings Agency,Other Supplies & Services,Individual,690.32, 11-Jan-2019
1805,Revenue,CAHD,CSC - Age Related Allowances,Children - Family Support,Individual,562.29, 11-Jan-2019
1806,Revenue,CAHD,CSC - Ofsted Work,Consultants Fees,Jo Hope,2500.00, 10-Jan-2019
1807,Revenue,CAHD,CSC - Ofsted Work,Consultants Fees,Jo Hope,3500.00, 31-Jan-2019
1808,Revenue,CAHD,Social Lettings Agency,Fees - General,Individual,12.93, 16-Jan-2019
1809,Revenue,CAHD,Social Lettings Agency,Other Supplies & Services,Individual,730.35, 16-Jan-2019
1810,Revenue,CAHD,Early Years Inclusion Fund,Other Public Bodies,Joanne Newman,1600.00, 11-Jan-2019
1811,Revenue,CAHD,Bed Purchasing - South,Permanent Residential,Jonen House,4226.52, 15-Jan-2019
1812,Revenue,CAHD,A & CL - Project Funding 18/19,Consultants Fees,Jonothan Hope,5820.00, 24-Jan-2019
1813,Revenue,CAHD,Virtual School for Looked After Children,Consultants Fees,Judith Mee Education,2000.00, 30-Jan-2019
1814,Revenue,CAHD,Health Inequalities,Other Small Contracts,Juice Community Project CIC,4320.00, 29-Jan-2019
1815,Revenue,CAHD,Post 16 High Needs Placements,Other Private Contractors,Julian & Shani Payne T/A Peopleton Brook Farm,1368.00, 07-Jan-2019
1816,Revenue,CAHD,Post 16 High Needs Placements,Other Private Contractors,Julian & Shani Payne T/A Peopleton Brook Farm,1476.00, 04-Jan-2019
1817,Revenue,CAHD,Bed Purchasing - Elderly S117- North,Permanent Residential,Kahala Court,2853.20, 15-Jan-2019
1818,Revenue,CAHD,Early Years Inclusion Fund,Other Public Bodies,Katarzyna Vowles,1600.00, 24-Jan-2019
1819,Revenue,CAHD,CSC - Adoption Support Fund,Post Adoption,Individual,577.50, 04-Jan-2019
1820,Revenue,CAHD,CSC - Adoption Support Fund,Post Adoption,Individual,594.00, 04-Jan-2019
1821,Revenue,CAHD,CSC - Adoption Support Fund,Post Adoption,Individual,636.00, 04-Jan-2019
1822,Revenue,CAHD,Statemented Support Payments to OLAs,Other L.A.'s - General,Katharine Lady Berkeley School,529.83, 25-Jan-2019
1823,Revenue,CAHD,Statemented Support Payments to OLAs,Other L.A.'s - General,Katharine Lady Berkeley School,647.74, 25-Jan-2019
1824,Revenue,CAHD,Statemented Support Payments to OLAs,Other L.A.'s - General,Katharine Lady Berkeley School,624.16, 25-Jan-2019
1825,Revenue,CAHD,CSC - Ofsted Work,Consultants Fees,Kathy O`Mahoney,2620.80, 10-Jan-2019
1826,Revenue,CAHD,CSC - Ofsted Work,Consultants Fees,Kathy O`Mahoney,1876.40, 10-Jan-2019
1827,Revenue,CAHD,Early Years Inclusion Fund,Other Public Bodies,Katya Cogan,1600.00, 17-Jan-2019
1828,Revenue,CAHD,Children & Young People�s Health,Other Supplies & Services,KE Coaching Ltd,1425.00, 10-Jan-2019
1829,Revenue,CAHD,CSC - Adoption Support Fund,Post Adoption,Keith Baker,1062.50, 10-Jan-2019
1830,Revenue,CAHD,CSC - Adoption Support Fund,Post Adoption,Keith Baker,1062.50, 10-Jan-2019
1831,Revenue,CAHD,Homecare - Central,Other Small Contracts,Kensington Community Care,1023.68, 04-Jan-2019
1832,Revenue,CAHD,Home Care - Elderly - South,Other Small Contracts,Kensington Community Care,1983.38, 04-Jan-2019
1833,Revenue,CAHD,Home Care - Elderly - North,Other Small Contracts,Kensington Community Care,196.51, 04-Jan-2019
1834,Revenue,CAHD,Homecare - Central,Other Small Contracts,Kensington Community Care,982.55, 04-Jan-2019
1835,Revenue,CAHD,Home Care - Elderly - South,Other Small Contracts,Kensington Community Care,1914.83, 04-Jan-2019
1836,Revenue,CAHD,Home Care - Elderly - North,Other Small Contracts,Kensington Community Care,196.51, 04-Jan-2019
1837,Revenue,CAHD,Homecare - Central,Other Small Contracts,Kensington Community Care,1028.25, 09-Jan-2019
1838,Revenue,CAHD,Home Care - Elderly - South,Other Small Contracts,Kensington Community Care,1914.83, 09-Jan-2019
1839,Revenue,CAHD,Home Care - Elderly - North,Other Small Contracts,Kensington Community Care,187.37, 09-Jan-2019
1840,Revenue,CAHD,Homecare - Central,Other Small Contracts,Kensington Community Care,708.35, 11-Jan-2019
1841,Revenue,CAHD,Home Care - Elderly - South,Other Small Contracts,Kensington Community Care,1773.16, 11-Jan-2019
1842,Revenue,CAHD,Home Care - Elderly - North,Other Small Contracts,Kensington Community Care,178.23, 11-Jan-2019
1843,Revenue,CAHD,Homecare - Central,Other Small Contracts,Kensington Community Care,968.84, 15-Jan-2019
1844,Revenue,CAHD,Home Care - Elderly - South,Other Small Contracts,Kensington Community Care,1841.71, 15-Jan-2019
1845,Revenue,CAHD,Home Care - Elderly - North,Other Small Contracts,Kensington Community Care,191.94, 15-Jan-2019
1846,Revenue,CAHD,Homecare - Central,Other Small Contracts,Kensington Community Care,1023.68, 25-Jan-2019
1847,Revenue,CAHD,Home Care - Elderly - South,Other Small Contracts,Kensington Community Care,1709.18, 25-Jan-2019
1848,Revenue,CAHD,Home Care - Elderly - North,Other Small Contracts,Kensington Community Care,205.65, 25-Jan-2019
1849,Revenue,CAHD,Bed Purchasing - South,Permanent Residential,Kenver House Residential Home,2291.68, 15-Jan-2019
1850,Revenue,CAHD,Bed Purchasing - South,Permanent Residential,Kenver House Residential Home,2294.84, 15-Jan-2019
1851,Revenue,CAHD,Bed Purchasing - South,Permanent Residential,Kenver House Residential Home,2509.88, 15-Jan-2019
1852,Revenue,CAHD,Bed Purchasing - South,Permanent Residential,Kenver House Residential Home,2663.20, 15-Jan-2019
1853,Revenue,CAHD,Bed Purchasing - South,Permanent Residential,Kenver House Residential Home,2509.88, 15-Jan-2019
1854,Revenue,CAHD,Bed Purchasing - North,Permanent Residential,Kenver House Residential Home,2934.72, 15-Jan-2019
1855,Revenue,CAHD,Bed Purchasing - South,Permanent Residential,Kenver House Residential Home,2509.88, 15-Jan-2019
1856,Revenue,CAHD,Bed Purchasing - South,Permanent Residential,Kenver House Residential Home,2880.00, 15-Jan-2019
1857,Revenue,CAHD,Bed Purchasing - South,Permanent Residential,Kenver House Residential Home,2853.20, 15-Jan-2019
1858,Revenue,CAHD,Bed Purchasing - South,Permanent Residential,Kenver House Residential Home,2367.36, 15-Jan-2019
1859,Revenue,CAHD,Bed Purchasing - South,Permanent Residential,Kenver House Residential Home,2291.68, 15-Jan-2019
1860,Revenue,CAHD,Bed Purchasing - South,Permanent Residential,Kenver House Residential Home,3120.00, 15-Jan-2019
1861,Revenue,CAHD,CSC - Care Leavers Independent Living,Adults - Family Support,Key2 Futures Limited,2982.90, 08-Jan-2019
1862,Revenue,CAHD,CSC - Care Leavers Independent Living,Adults - Family Support,Key2 Futures Limited,2352.00, 08-Jan-2019
1863,Revenue,CAHD,CSC - Care Leavers Independent Living,Adults - Family Support,Key2 Futures Limited,2336.40, 08-Jan-2019
1864,Revenue,CAHD,CSC - Care Leavers Independent Living,Adults - Family Support,Key2 Futures Limited,2336.40, 08-Jan-2019
1865,Revenue,CAHD,CSC - Care Leavers Independent Living,Adults - Family Support,Key2 Futures Limited,2430.40, 30-Jan-2019
1866,Revenue,CAHD,CSC - Care Leavers Independent Living,Adults - Family Support,Key2 Futures Limited,2414.28, 30-Jan-2019
1867,Revenue,CAHD,CSC - Care Leavers Independent Living,Adults - Family Support,Key2 Futures Limited,2414.28, 30-Jan-2019
1868,Revenue,CAHD,CSC - Care Leavers Independent Living,Adults - Family Support,Key2 Futures Limited,3082.33, 30-Jan-2019
1869,Revenue,CAHD,CSC - Care Leavers Independent Living,Adults - Family Support,Key2 Futures Limited,1829.62, 07-Jan-2019
1870,Revenue,CAHD,Bed Purchasing - North,Permanent Residential,Kilkhampton Lodge,18064.36, 15-Jan-2019
1871,Revenue,CAHD,Bed Purchasing - South,Permanent Nursing,Kingfisher Lodge Care Centre,4666.80, 15-Jan-2019
1872,Revenue,CAHD,Bed Purchasing - South,Permanent Nursing,Kingfisher Lodge Care Centre,3969.72, 15-Jan-2019
1873,Revenue,CAHD,Bed Purchasing - South,Permanent Nursing,Kingfisher Lodge Care Centre,1666.71, 15-Jan-2019
1874,Revenue,CAHD,Bed Purchasing - South,Fees & Charges Income - General,Kingfisher Lodge Care Centre,905.42, 15-Jan-2019
1875,Revenue,CAHD,Bed Purchasing - South,Permanent Residential,Kingfisher Lodge Care Centre,4800.00, 15-Jan-2019
1876,Revenue,CAHD,Bed Purchasing - North,Permanent Residential,Kingfisher Lodge Care Centre,5360.00, 15-Jan-2019
1877,Revenue,CAHD,Tobacco Control,Other Small Contracts,Kingswood Health Centre,810.00, 16-Jan-2019
1878,Revenue,CAHD,CSC - Emergency Duty Team,Furniture & Fittings Loose,Kinnarps UK Limited (Invoice Account),1533.56, 15-Jan-2019
1879,Revenue,CAHD,Bed Purchasing - North,Permanent Residential,Kisimul Group,12469.00, 15-Jan-2019
1880,Revenue,CAHD,Placements OLA Special Schools and RB,Other L.A.'s - General,Knowle DGE,2053.42, 25-Jan-2019
